Service Area,Service Division,Expense Type,Expense Code,Detailed Expense Type,Payment Date,Transaction Number,Amount Exc Vat,Supplier Name
Children and Adult Services,Childrens Services,Supplies and Services,384302,Miscellaneous Expenses,01-Jul-16,3148965-002,"1,000.00",BOWBURN YOUTH PROJECT.
Children and Adult Services,Childrens Services,Third Party Payments,479101,Purchase of Care,01-Jul-16,3149003-3910009628,"1,436.69",CO DURHAM & DARLINGTON NHS FOUNDATION TRUST.
Children and Adult Services,Childrens Services,Third Party Payments,479101,Purchase of Care,01-Jul-16,3149003-3910009629,"1,436.69",CO DURHAM & DARLINGTON NHS FOUNDATION TRUST.
Children and Adult Services,Childrens Services,Third Party Payments,479101,Purchase of Care,01-Jul-16,3149003-3910009630,"1,436.69",CO DURHAM & DARLINGTON NHS FOUNDATION TRUST.
Children and Adult Services,Childrens Services,Supplies and Services,384302,Miscellaneous Expenses,01-Jul-16,3149044-DCCYP007,"1,000.00",DURHAM CITY CENTRE YOUTH PROJECT.
Children and Adult Services,Childrens Services,Supplies and Services,344033,Telephones,01-Jul-16,3149350-202719,572.7,UNIFY BUSINESS SOLUTIONS LTD.
Children and Adult Services,Education,Third Party Payments,440999,Other Third Party Payments,01-Jul-16,3148982-013-JUNE2016,"2,426.30",CAPITAL 4 TRAINING LTD
Children and Adult Services,Education,Construction Work,908105,Construction work,01-Jul-16,3149242-PWG922,"1,664.20",PWG CONNECTIONS LTD.
Children and Adult Services,Education,Construction Work,908105,Construction work,01-Jul-16,3149242-PWG923,"3,411.56",PWG CONNECTIONS LTD.
Children and Adult Services,Education,Construction Work,908105,Construction work,01-Jul-16,3149274-2701,"7,319.36",SAFE STRIP UK LTD.
Children and Adult Services,Head of Adults,Third Party Payments,478151,Purchase of Care,01-Jul-16,3149067-9472,"2,567.96",ESSENTIAL CARE & SUPPORT LTD.
Children and Adult Services,Head of Adults,Supplies and Services,304999,Equipment and Materials,01-Jul-16,3149164-5856,"3,006.38",LYNCH HEALTHCARE LTD.
Children and Adult Services,Public Health,Third Party Payments,460802,Contract Payments,01-Jul-16,3148951-240061,548.63,BARTS HEALTH NHS TRUST.
Children and Adult Services,Public Health,Third Party Payments,460802,Contract Payments,01-Jul-16,3149003-3980017464,"41,774.00",CO DURHAM & DARLINGTON NHS FOUNDATION TRUST.
Children and Adult Services,Public Health,Supplies and Services,364999,Grants to Voluntary Organisations,01-Jul-16,3149030-INV148,"2,460.00",DAWDON YOUTH & COMMUNITY CENTRE.
Children and Adult Services,Public Health,Third Party Payments,460802,Contract Payments,01-Jul-16,3149040-A83054/MAY2016HC,800,DR PRM JONES & PARTNERS.
Children and Adult Services,Public Health,Supplies and Services,364999,Grants to Voluntary Organisations,01-Jul-16,3149052-02124,"1,093.47",EAST DURHAM PARTNERSHIP LTD.
Children and Adult Services,Public Health,Third Party Payments,460802,Contract Payments,01-Jul-16,3149072-A83045,"1,140.00",FERRYHILL & CHILTON MEDICAL PRACTICE.
Children and Adult Services,Public Health,Third Party Payments,460802,Contract Payments,01-Jul-16,3149151-A83066,725,JUBILEE MEDICAL GROUP.
Children and Adult Services,Public Health,Supplies and Services,384540,Miscellaneous Expenses,01-Jul-16,3149282-DASH4,"1,500.00",SEDGEFIELD SCHOOL SPORT PARTNERSHIP CIC.
Children and Adult Services,Public Health,Third Party Payments,460802,Contract Payments,01-Jul-16,3149292-A83627/MAY2016HC,535,SILVERDALE FAMILY PRACTICE.
Children and Adult Services,Public Health,Third Party Payments,460802,Contract Payments,01-Jul-16,3149331-A83022/MAY2016HC,"1,365.00",THE MEDICAL GROUP.
Children and Adult Services,Public Health,Third Party Payments,460802,Contract Payments,01-Jul-16,3149369-A83003/MAY2016HC,535,WILLINGTON MEDICAL GROUP.
Children and Adult Services,Public Health,Supplies and Services,364999,Grants to Voluntary Organisations,01-Jul-16,3149370-AEN367,"1,550.00",WINGATE & STATION TOWN FAMILY CENTRE.
Children and Adult Services,Central Charges (CYPS),Creditors,952118,Creditor-criminal injuries compen,04-Jul-16,3149408-CAS-07-2016-009,"7,607.19",REDACTED - PAYMENT TO INDIVIDUAL
Children and Adult Services,Childrens Services,Supplies and Services,338044,Services,04-Jul-16,3149487-16065,616.4,DR HELEN YOUNG.
Children and Adult Services,Childrens Services,Premises,108251,Service Repairs and Maintenance,04-Jul-16,3149624-CAS-06-2016-260,880,REDACTED - PAYMENT TO INDIVIDUAL
Children and Adult Services,Childrens Services,Premises,108099,Service Repairs and Maintenance,04-Jul-16,3149658-01213898,946.78,OTIS LTD T/A MOVEMAN SKG.
Children and Adult Services,Childrens Services,Employees,40149,Recruitment Instruction and Training,04-Jul-16,3149729-SNE20,"1,818.00",SMARTT NORTH EAST LTD.
Children and Adult Services,Childrens Services,Third Party Payments,425040,Rendered by Voluntary Organisations,04-Jul-16,3149748-27934,"3,280.00",TEAM FOSTERING.
Children and Adult Services,Childrens Services,Third Party Payments,425040,Rendered by Voluntary Organisations,04-Jul-16,3149748-27955,"2,920.00",TEAM FOSTERING.
Children and Adult Services,Childrens Services,Third Party Payments,425020,Rendered by Voluntary Organisations,04-Jul-16,3149748-27956,"2,920.00",TEAM FOSTERING.
Children and Adult Services,Childrens Services,Third Party Payments,425040,Rendered by Voluntary Organisations,04-Jul-16,3149748-27957,"5,720.00",TEAM FOSTERING.
Children and Adult Services,Childrens Services,Third Party Payments,425040,Rendered by Voluntary Organisations,04-Jul-16,3149748-27968,"3,651.43",TEAM FOSTERING.
Children and Adult Services,Childrens Services,Third Party Payments,425040,Rendered by Voluntary Organisations,04-Jul-16,3149748-27978,"3,531.43",TEAM FOSTERING.
Children and Adult Services,Childrens Services,Third Party Payments,425040,Rendered by Voluntary Organisations,04-Jul-16,3149748-27981,"3,280.00",TEAM FOSTERING.
Children and Adult Services,Childrens Services,Third Party Payments,425040,Rendered by Voluntary Organisations,04-Jul-16,3149748-28008,"2,800.00",TEAM FOSTERING.
Children and Adult Services,Childrens Services,Third Party Payments,425040,Rendered by Voluntary Organisations,04-Jul-16,3149748-28009,"2,920.00",TEAM FOSTERING.
Children and Adult Services,Childrens Services,Third Party Payments,425040,Rendered by Voluntary Organisations,04-Jul-16,3149748-28011,"3,280.00",TEAM FOSTERING.
Children and Adult Services,Childrens Services,Third Party Payments,425040,Rendered by Voluntary Organisations,04-Jul-16,3149748-28019,"2,920.00",TEAM FOSTERING.
Children and Adult Services,Childrens Services,Third Party Payments,425044,Rendered by Voluntary Organisations,04-Jul-16,3149748-28020,"1,750.00",TEAM FOSTERING.
Children and Adult Services,Childrens Services,Third Party Payments,425040,Rendered by Voluntary Organisations,04-Jul-16,3149748-28031,"2,920.00",TEAM FOSTERING.
Children and Adult Services,Childrens Services,Third Party Payments,425040,Rendered by Voluntary Organisations,04-Jul-16,3149748-28033,"2,400.00",TEAM FOSTERING.
Children and Adult Services,Childrens Services,Third Party Payments,425040,Rendered by Voluntary Organisations,04-Jul-16,3149748-28038,"2,800.00",TEAM FOSTERING.
Children and Adult Services,Childrens Services,Premises,108099,Service Repairs and Maintenance,04-Jul-16,3149773-343,"1,544.80",VENTILATION HYGIENE SPECIALISTS (VHS) LTD.
Children and Adult Services,Commissioning inc Supporting People,Third Party Payments,470111,Purchase of Care,04-Jul-16,3149600-RINVTP/00400481,"4,128.14",LEONARD CHESHIRE DISABILITY.
Children and Adult Services,Education,Third Party Payments,440999,Other Third Party Payments,04-Jul-16,3149426-009,"1,111.80",CAPITAL 4 TRAINING LTD
Children and Adult Services,Education,Third Party Payments,440999,Other Third Party Payments,04-Jul-16,3149426-010,"2,040.27",CAPITAL 4 TRAINING LTD
Children and Adult Services,Education,Third Party Payments,440999,Other Third Party Payments,04-Jul-16,3149426-012,"1,134.51",CAPITAL 4 TRAINING LTD
Children and Adult Services,Education,Third Party Payments,440999,Other Third Party Payments,04-Jul-16,3149426-DCC011,"5,709.75",CAPITAL 4 TRAINING LTD
Children and Adult Services,Education,Construction Work,908105,Construction work,04-Jul-16,3149523-E54614,795,FDB ELECTRICAL LTD.
Children and Adult Services,Education,Transport,230007,Contract Hire,04-Jul-16,3149530-APRIL-MAY2016-02/16,"1,020.00",FREEDOM PRIVATE HIRE.
Children and Adult Services,Education,Transport,230008,Contract Hire,04-Jul-16,3149535-8539,"2,732.20",GATESHEAD CENTRAL TAXIS LTD.
Children and Adult Services,Education,Transport,230008,Contract Hire,04-Jul-16,3149604-3418,"2,262.79",LINCAB TAXIS.
Children and Adult Services,Education,Transport,230008,Contract Hire,04-Jul-16,3149620-INV-106,"1,488.00",MICHAEL COBB (T/A HAIL TAXIS).
Children and Adult Services,Education,Transport,230008,Contract Hire,04-Jul-16,3149631-0119,"2,432.00",MR P CAHILL T/A KILEYS TAXIS.
Children and Adult Services,Education,Transport,230006,Contract Hire,04-Jul-16,3149663-10,740,PAUL ROSE T/A PAUL`S TAXIS.
Children and Adult Services,Education,Transport,230009,Contract Hire,04-Jul-16,3149664-DCC0062016,792,PB PRIVATE HIRE.
Children and Adult Services,Education,Supplies and Services,312009,Newspapers Books and Periodicals,04-Jul-16,3149674-1590227,998.63,PETERS LTD.
Children and Adult Services,Education,Construction Work,908105,Construction work,04-Jul-16,3149695-68237,"6,348.00",REDHILL ANALYSTS LTD.
Children and Adult Services,Education,Transport,230008,Contract Hire,04-Jul-16,3149704-553,759,ROAD RUNNERS (NE) LTD.
Children and Adult Services,Education,Supplies and Services,377015,County Durham Development,04-Jul-16,3149737-1683,800,STEVE WALLS.
Children and Adult Services,Planning & Service Strategy,Supplies and Services,338026,Services,04-Jul-16,3149775-3-4/5/16,612.5,REDACTED - PAYMENT TO INDIVIDUAL
Children and Adult Services,Public Health,Third Party Payments,460802,Contract Payments,04-Jul-16,3149406-204090,574.6,BARTS HEALTH NHS TRUST.
Children and Adult Services,Public Health,Third Party Payments,460802,Contract Payments,04-Jul-16,3149406-214455,513.68,BARTS HEALTH NHS TRUST.
Children and Adult Services,Public Health,Employees,40149,Recruitment Instruction and Training,04-Jul-16,3149552-0040192682,520,HARTLEPOOL BOROUGH COUNCIL.
Children and Adult Services,Public Health,Employees,15001,National Insurance,04-Jul-16,3149558-465PQ001498241613,"2,147.56",HMRC..
Dedicated Schools Grant,Dedicated Schools Grant,Transport,230011,Contract Hire,04-Jul-16,3149604-3420,845.5,LINCAB TAXIS.
Dedicated Schools Grant,Dedicated Schools Grant,Third Party Payments,410037,Rendered by Other Local Authorities,04-Jul-16,3149622-5053012,"7,560.00",MIDDLESBROUGH BOROUGH COUNCIL.
Dedicated Schools Grant,Dedicated Schools Grant,Transport,230010,Contract Hire,04-Jul-16,3149631-0118,924,MR P CAHILL T/A KILEYS TAXIS.
Dedicated Schools Grant,Dedicated Schools Grant,Third Party Payments,440080,Other Third Party Payments,04-Jul-16,3149639-M0019366,"1,950.00",NEWCASTLE COLLEGE.
Dedicated Schools Grant,Dedicated Schools Grant,Third Party Payments,440080,Other Third Party Payments,04-Jul-16,3149755-5849,"2,841.18",THE ROYAL NATIONAL COLLEGE FOR THE BLIND.
Children and Adult Services,Childrens Services,Third Party Payments,440001,Other Third Party Payments,05-Jul-16,3149838-1115132,595.8,REDACTED - PAYMENT TO INDIVIDUAL
Children and Adult Services,Childrens Services,Third Party Payments,440001,Other Third Party Payments,05-Jul-16,3149851-1115145,576,REDACTED - PAYMENT TO INDIVIDUAL
Children and Adult Services,Childrens Services,Third Party Payments,440032,Other Third Party Payments,05-Jul-16,3149867-1115156,842.78,REDACTED - PAYMENT TO INDIVIDUAL
Children and Adult Services,Childrens Services,Third Party Payments,440001,Other Third Party Payments,05-Jul-16,3149901-1115144,846,REDACTED - PAYMENT TO INDIVIDUAL
Children and Adult Services,Childrens Services,Third Party Payments,440029,Other Third Party Payments,05-Jul-16,3150072-1113677,655.12,REDACTED - PAYMENT TO INDIVIDUAL
Children and Adult Services,Childrens Services,Third Party Payments,440001,Other Third Party Payments,05-Jul-16,3150122-1115153,"1,542.95",REDACTED - PAYMENT TO INDIVIDUAL
Children and Adult Services,Childrens Services,Third Party Payments,440001,Other Third Party Payments,05-Jul-16,3150122-1115154,"1,086.62",REDACTED - PAYMENT TO INDIVIDUAL
Children and Adult Services,Childrens Services,Third Party Payments,440016,Other Third Party Payments,05-Jul-16,3150392-1115152,666,REDACTED - PAYMENT TO INDIVIDUAL
Children and Adult Services,Childrens Services,Third Party Payments,440001,Other Third Party Payments,05-Jul-16,3150440-1115146,886.08,REDACTED - PAYMENT TO INDIVIDUAL
Children and Adult Services,Childrens Services,Third Party Payments,440036,Other Third Party Payments,05-Jul-16,3150441-1114889,586.41,REDACTED - PAYMENT TO INDIVIDUAL
Children and Adult Services,Childrens Services,Supplies and Services,364999,Grants to Voluntary Organisations,05-Jul-16,3150465-CAS-06-2016-030,"4,192.00",AUCKLAND YOUTH & COMMUNITY ASSOCIATION.
Children and Adult Services,Childrens Services,Employees,80025,Agency Staff,05-Jul-16,3150473-2327640,"1,092.40",CELSIAN.
Children and Adult Services,Childrens Services,Supplies and Services,338094,Services,05-Jul-16,3150474-3980016879,786.56,CO DURHAM & DARLINGTON NHS FOUNDATION TRUST.
Children and Adult Services,Childrens Services,Supplies and Services,364999,Grants to Voluntary Organisations,05-Jul-16,3150477-CAS-06-2016-037,"11,276.00",CONSETT CHURCHES DETACHED YOUTH PROJECT.
Children and Adult Services,Childrens Services,Supplies and Services,364999,Grants to Voluntary Organisations,05-Jul-16,3150478-CAS-06-2016-036,"20,826.00",CONSETT YMCA.
Children and Adult Services,Childrens Services,Employees,80025,Agency Staff,05-Jul-16,3150483-332098,"139,895.83",DE POEL MANAGED SERVICES LTD.
Children and Adult Services,Childrens Services,Supplies and Services,364999,Grants to Voluntary Organisations,05-Jul-16,3150484-CAS-06-2016-043,"2,913.00",DERWENTSIDE DETACHED YOUTH PROJECT.
Children and Adult Services,Childrens Services,Premises,125009,Rents,05-Jul-16,3150565-DCC0045,"1,027.60",TYNE VIEW PROPERTY MANAGEMENT LTD.
Children and Adult Services,Childrens Services,Premises,125009,Rents,05-Jul-16,3150565-DCC029,629.09,TYNE VIEW PROPERTY MANAGEMENT LTD.
Children and Adult Services,Education,Transport,230008,Contract Hire,05-Jul-16,3150458-266145,"1,121.00",ALAN SOUTHERN T/A ALANS TAXIS PELTON FELL.
Children and Adult Services,Education,Transport,230008,Contract Hire,05-Jul-16,3150458-388145,760,ALAN SOUTHERN T/A ALANS TAXIS PELTON FELL.
Children and Adult Services,Education,Transport,230008,Contract Hire,05-Jul-16,3150458-388245,"1,415.50",ALAN SOUTHERN T/A ALANS TAXIS PELTON FELL.
Children and Adult Services,Education,Transport,230006,Contract Hire,05-Jul-16,3150461-DC6/16,900,ANDY`S TAXIS.
Children and Adult Services,Education,Transport,235005,Public Transport,05-Jul-16,3150463-110743,655,ARRIVA NORTH EAST LTD.
Children and Adult Services,Education,Transport,230007,Contract Hire,05-Jul-16,3150480-6151,"1,426.14",CROFT BUSINESS SERVICES (UK) LTD T/A CROFT TAXIS.
Children and Adult Services,Education,Transport,230008,Contract Hire,05-Jul-16,3150480-6173,"1,306.06",CROFT BUSINESS SERVICES (UK) LTD T/A CROFT TAXIS.
Children and Adult Services,Education,Supplies and Services,372009,Subscriptions,05-Jul-16,3150490-SI16-0809,"36,340.00",FFT EDUCATION LTD.
Children and Adult Services,Education,Transport,230007,Contract Hire,05-Jul-16,3150497-281AV,"8,572.28",GRAHAMS MOTOR SERVICES.
Children and Adult Services,Education,Transport,230008,Contract Hire,05-Jul-16,3150500-32,"1,170.00",IAN SHEPLEY T/A SHEPPA`S TAXIS.
Children and Adult Services,Education,Transport,230008,Contract Hire,05-Jul-16,3150509-A098-JUN,"1,216.00",K & R TAXIS.
Children and Adult Services,Education,Transfer Payments,510026,School Children,05-Jul-16,3150513-048,"1,165.50",LITTLE ACORNS NORTH EAST LTD.
Children and Adult Services,Education,Transport,230008,Contract Hire,05-Jul-16,3150517-97,"3,177.50",M BUTCHER T/A KIDDI CABS.
Children and Adult Services,Education,Transport,230008,Contract Hire,05-Jul-16,3150519-20-JUN,"1,330.00",MALCOLM CARR T/A CARLY CABS.
Children and Adult Services,Education,Transport,230008,Contract Hire,05-Jul-16,3150520-380616,"1,710.00",MARK MUSGROVE T/A MARKS TAXIS.
Children and Adult Services,Education,Transport,230008,Contract Hire,05-Jul-16,3150520-480616,874,MARK MUSGROVE T/A MARKS TAXIS.
Children and Adult Services,Education,Transport,230006,Contract Hire,05-Jul-16,3150524-MCD44753,583,MCDONALD TRAVEL.
Children and Adult Services,Education,Transport,230006,Contract Hire,05-Jul-16,3150524-MCD44754,"1,110.00",MCDONALD TRAVEL.
Children and Adult Services,Education,Transport,230008,Contract Hire,05-Jul-16,3150531-AA351,"2,861.59",MR T GUNN.
Children and Adult Services,Education,Construction Work,908105,Construction work,05-Jul-16,3150536-NEI-EXP-07-2016-003,"1,582.00",NORTHERN POWERGRID (NORTHEAST) LTD.
Children and Adult Services,Education,Transport,230008,Contract Hire,05-Jul-16,3150542-1178,"1,697.00",PODA LTD.
Children and Adult Services,Education,Transport,230008,Contract Hire,05-Jul-16,3150542-1179,855,PODA LTD.
Children and Adult Services,Education,Transport,230008,Contract Hire,05-Jul-16,3150542-1180,"1,330.00",PODA LTD.
Children and Adult Services,Education,Transport,230008,Contract Hire,05-Jul-16,3150542-1181,"1,102.00",PODA LTD.
Children and Adult Services,Education,Transport,230008,Contract Hire,05-Jul-16,3150546-545,"1,968.00",ROAD RUNNERS (NE) LTD.
Children and Adult Services,Education,Transport,230008,Contract Hire,05-Jul-16,3150547-0030,"1,615.00",RONS TAXI (CHESTER LE ST).
Children and Adult Services,Education,Transport,230008,Contract Hire,05-Jul-16,3150549-72115,"1,710.00",SHOTTON PRIVATE HIRE.
Children and Adult Services,Education,Transport,230008,Contract Hire,05-Jul-16,3150560-1193,"2,633.46",TAILORMADE TRAVEL.
Children and Adult Services,Education,Transport,235005,Public Transport,05-Jul-16,3150569-1063,"3,705.00",WEARDALE MOTOR SERVICES LTD.
Children and Adult Services,Education,Transport,230008,Contract Hire,05-Jul-16,3150572-WESTLEA300616,688.53,WESTLEA TAXIS.
Children and Adult Services,Education,Transfer Payments,510028,School Children,05-Jul-16,3150573-CAS-06-2016-196,"5,000.00",WHEATLEY HILL COMMUNITY NURSERY LTD.
Children and Adult Services,Head of Adults,Transport,230005,Contract Hire,05-Jul-16,3150476-04/16109,"1,128.00",COLLINS TAXIS.
Children and Adult Services,Head of Adults,Transport,230005,Contract Hire,05-Jul-16,3150476-05/16109,"1,274.00",COLLINS TAXIS.
Children and Adult Services,Head of Adults,Employees,80025,Agency Staff,05-Jul-16,3150483-331878,"175,030.93",DE POEL MANAGED SERVICES LTD.
Children and Adult Services,Head of Adults,Third Party Payments,478101,Purchase of Care,05-Jul-16,3150501-1636,"2,974.26",INCLUSION HOUSING CIC LTD.
Children and Adult Services,Head of Adults,Transport,230005,Contract Hire,05-Jul-16,3150511-10-30/6/16,"1,320.00",KT TAXIS.
Children and Adult Services,Head of Adults,Transport,230005,Contract Hire,05-Jul-16,3150525-H6,"1,162.00",MICHAEL A BODDY T/A MBS TAXIS.
Children and Adult Services,Head of Adults,Transport,230005,Contract Hire,05-Jul-16,3150526-SLD010616,570,MR D DONNELLY.
Children and Adult Services,Head of Adults,Transport,230005,Contract Hire,05-Jul-16,3150570-5489,"1,529.00",WEARDALE PRIVATE HIRE.
Dedicated Schools Grant,Dedicated Schools Grant,Transport,230010,Contract Hire,05-Jul-16,3150547-005-24/6/16,650,RONS TAXI (CHESTER LE ST).
Dedicated Schools Grant,Dedicated Schools Grant,Transport,230010,Contract Hire,05-Jul-16,3150564-26,"1,140.00",TRUDY`S.
Children and Adult Services,Central Charges (CYPS),Creditors,952118,Creditor-criminal injuries compen,06-Jul-16,304070-CAS-07-2016-008,"1,273.27",REDACTED - PAYMENT TO INDIVIDUAL
Children and Adult Services,Childrens Services,Supplies and Services,338043,Services,06-Jul-16,304057-HL10915,"1,621.70",FREEMAN JOHNSON SOLICITORS.
Children and Adult Services,Childrens Services,Transport,230005,Contract Hire,06-Jul-16,3150599-N27/ZG,"2,100.00",AABAT TAXIS.
Children and Adult Services,Childrens Services,Supplies and Services,364320,Grants to Voluntary Organisations,06-Jul-16,3150618-CAS-07-2016-024,760,REDACTED - PAYMENT TO INDIVIDUAL
Children and Adult Services,Childrens Services,Supplies and Services,384302,Miscellaneous Expenses,06-Jul-16,3150658-003,500,BOWBURN YOUTH PROJECT.
Children and Adult Services,Childrens Services,Supplies and Services,364301,Grants to Voluntary Organisations,06-Jul-16,3150712-CAS-06-2016-241,640,REDACTED - PAYMENT TO INDIVIDUAL
Children and Adult Services,Childrens Services,Transport,230005,Contract Hire,06-Jul-16,3150717-CLUB16023I,516,CLUBMAN CABS.
Children and Adult Services,Childrens Services,Supplies and Services,304259,Equipment and Materials,06-Jul-16,3150728-CPAM0316203883,800,CONTACT GROUP.
Children and Adult Services,Childrens Services,Supplies and Services,364999,Grants to Voluntary Organisations,06-Jul-16,3150912-CAS-06-2016-053,"3,802.00",LEADGATE YOUTH CENTRE.
Children and Adult Services,Childrens Services,Transport,230005,Contract Hire,06-Jul-16,3150922-2596,705,LOCAL TRANSPORT LTD.
Children and Adult Services,Childrens Services,Transport,230005,Contract Hire,06-Jul-16,3150922-2636,858,LOCAL TRANSPORT LTD.
Children and Adult Services,Childrens Services,Supplies and Services,384302,Miscellaneous Expenses,06-Jul-16,3150953-RADIOPROJ,"1,600.00",MID DURHAM PROJECTS CLUB.
Children and Adult Services,Childrens Services,Supplies and Services,364999,Grants to Voluntary Organisations,06-Jul-16,3150954-CAS-06-2016-057,"1,669.00",MILLBANK YOUTH CLUB.
Children and Adult Services,Childrens Services,Transport,230005,Contract Hire,06-Jul-16,3150956-KDC030516,925,MJ TIMNEY T/A KDC & C&M TAXIS.
Children and Adult Services,Childrens Services,Third Party Payments,440013,Other Third Party Payments,06-Jul-16,3150994-15386413,585,NEWSQUEST (YORKSHIRE & NORTH EAST) LTD.
Children and Adult Services,Childrens Services,Third Party Payments,440013,Other Third Party Payments,06-Jul-16,3150994-15386438,"1,695.00",NEWSQUEST (YORKSHIRE & NORTH EAST) LTD.
Children and Adult Services,Childrens Services,Third Party Payments,440013,Other Third Party Payments,06-Jul-16,3150994-15390910,"1,950.00",NEWSQUEST (YORKSHIRE & NORTH EAST) LTD.
Children and Adult Services,Childrens Services,Third Party Payments,440013,Other Third Party Payments,06-Jul-16,3150994-15391105,585,NEWSQUEST (YORKSHIRE & NORTH EAST) LTD.
Children and Adult Services,Childrens Services,Supplies and Services,364999,Grants to Voluntary Organisations,06-Jul-16,3150995-CAS-06-2016-058,"5,418.00",NEWTON AYCLIFFE YOUTH CENTRE.
Children and Adult Services,Childrens Services,Third Party Payments,425040,Rendered by Voluntary Organisations,06-Jul-16,3151073-1497,"1,160.70",REACH OUT CARE LTD.
Children and Adult Services,Childrens Services,Transport,230005,Contract Hire,06-Jul-16,3151125-72082,565,SHOTTON PRIVATE HIRE.
Children and Adult Services,Childrens Services,Supplies and Services,364999,Grants to Voluntary Organisations,06-Jul-16,3151141-CAS-06-2016-071,"3,386.00",SPENNYMOOR YOUTH & COMMUNITY ASSOCIATION.
Children and Adult Services,Childrens Services,Supplies and Services,364310,Grants to Voluntary Organisations,06-Jul-16,3151153-CAS-07-2016-015,541.32,REDACTED - PAYMENT TO INDIVIDUAL
Children and Adult Services,Childrens Services,Transport,240005,Car Allowances,06-Jul-16,3151165-4018,"1,033.45",SUPPORTIVE SRC LTD.
Children and Adult Services,Childrens Services,Transport,240045,Car Allowances,06-Jul-16,3151165-4084,636.13,SUPPORTIVE SRC LTD.
Children and Adult Services,Childrens Services,Supplies and Services,384302,Miscellaneous Expenses,06-Jul-16,3151211-4100539502,518,TOW LAW COMMUNITY ASSOCIATION.
Children and Adult Services,Childrens Services,Supplies and Services,384491,Miscellaneous Expenses,06-Jul-16,3151245-201618,650,WHEATLEY HILL COMMUNITY NURSERY LTD.
Children and Adult Services,Childrens Services,Supplies and Services,384491,Miscellaneous Expenses,06-Jul-16,3151245-201619,650,WHEATLEY HILL COMMUNITY NURSERY LTD.
Children and Adult Services,Commissioning inc Supporting People,Third Party Payments,442002,Supporting People,06-Jul-16,3150646-1964879,"16,448.04",BID SERVICES WITH DEAF PEOPLE.
Children and Adult Services,Commissioning inc Supporting People,Third Party Payments,442002,Supporting People,06-Jul-16,3150703-1964905,"3,452.04",CHILDREN NORTH EAST.
Children and Adult Services,Commissioning inc Supporting People,Third Party Payments,442002,Supporting People,06-Jul-16,3150740-1964819,"19,868.48",CREATIVE SUPPORT LTD.
Children and Adult Services,Commissioning inc Supporting People,Third Party Payments,442002,Supporting People,06-Jul-16,3150773-1964818,"5,668.48",DISC LTD.
Children and Adult Services,Commissioning inc Supporting People,Third Party Payments,442002,Supporting People,06-Jul-16,3150773-1964841,"27,885.68",DISC LTD.
Children and Adult Services,Commissioning inc Supporting People,Third Party Payments,441001,Supporting People,06-Jul-16,3150774-1964842,"20,819.76",DURHAM ACTION ON SINGLE HOUSING.
Children and Adult Services,Commissioning inc Supporting People,Third Party Payments,443001,Supporting People,06-Jul-16,3150774-1964843,"2,213.88",DURHAM ACTION ON SINGLE HOUSING.
Children and Adult Services,Commissioning inc Supporting People,Third Party Payments,443001,Supporting People,06-Jul-16,3150774-1964846,553.47,DURHAM ACTION ON SINGLE HOUSING.
Children and Adult Services,Commissioning inc Supporting People,Third Party Payments,443001,Supporting People,06-Jul-16,3150774-1964927,"1,660.41",DURHAM ACTION ON SINGLE HOUSING.
Children and Adult Services,Commissioning inc Supporting People,Third Party Payments,441001,Supporting People,06-Jul-16,3150781-1964851,"5,483.40",EAST DURHAM COMMUNITY INITIATIVES LTD.
Children and Adult Services,Commissioning inc Supporting People,Third Party Payments,442002,Supporting People,06-Jul-16,3150809-1964908,"28,981.92",FOUNDATION.
Children and Adult Services,Commissioning inc Supporting People,Third Party Payments,442002,Supporting People,06-Jul-16,3150810-1964840,"37,566.04",FOUR HOUSING GROUP & CARE & REPAIR HANDYPERSON SERVICE.
Children and Adult Services,Commissioning inc Supporting People,Third Party Payments,442002,Supporting People,06-Jul-16,3150842-1964852,"5,995.44",HANOVER HOUSING ASSOCIATION.
Children and Adult Services,Commissioning inc Supporting People,Third Party Payments,441001,Supporting People,06-Jul-16,3150843-1964820,"18,082.80",HARBOUR SUPPORT SERVICES.
Children and Adult Services,Commissioning inc Supporting People,Third Party Payments,442002,Supporting People,06-Jul-16,3150951-1964821,"5,469.72",MENTAL HEALTH MATTERS.
Children and Adult Services,Commissioning inc Supporting People,Third Party Payments,442002,Supporting People,06-Jul-16,3150963-1964822,"5,240.36",MOVING ON.
Children and Adult Services,Commissioning inc Supporting People,Third Party Payments,442002,Supporting People,06-Jul-16,3151079-1964826,"7,356.72",RICHMOND FELLOWSHIP.
Children and Adult Services,Commissioning inc Supporting People,Third Party Payments,444002,Supporting People,06-Jul-16,3151079-1964827,"4,068.24",RICHMOND FELLOWSHIP.
Children and Adult Services,Commissioning inc Supporting People,Third Party Payments,441001,Supporting People,06-Jul-16,3151079-1964839,"9,423.88",RICHMOND FELLOWSHIP.
Children and Adult Services,Commissioning inc Supporting People,Third Party Payments,442002,Supporting People,06-Jul-16,3151123-1964823,"9,044.36",SHAID.
Children and Adult Services,Commissioning inc Supporting People,Third Party Payments,442002,Supporting People,06-Jul-16,3151156-1964813,"146,528.32",STONHAM HOUSING ASSOCIATION LTD.
Children and Adult Services,Commissioning inc Supporting People,Third Party Payments,442002,Supporting People,06-Jul-16,3151156-1964825,"29,343.52",STONHAM HOUSING ASSOCIATION LTD.
Children and Adult Services,Commissioning inc Supporting People,Third Party Payments,443001,Supporting People,06-Jul-16,3151156-1964856,"17,564.68",STONHAM HOUSING ASSOCIATION LTD.
Children and Adult Services,Commissioning inc Supporting People,Third Party Payments,443001,Supporting People,06-Jul-16,3151156-1964861,"18,106.36",STONHAM HOUSING ASSOCIATION LTD.
Children and Adult Services,Commissioning inc Supporting People,Third Party Payments,443001,Supporting People,06-Jul-16,3151156-1964882,722.72,STONHAM HOUSING ASSOCIATION LTD.
Children and Adult Services,Commissioning inc Supporting People,Third Party Payments,442002,Supporting People,06-Jul-16,3151156-1964898,"23,639.04",STONHAM HOUSING ASSOCIATION LTD.
Children and Adult Services,Commissioning inc Supporting People,Third Party Payments,441001,Supporting People,06-Jul-16,3151156-1964899,"67,257.36",STONHAM HOUSING ASSOCIATION LTD.
Children and Adult Services,Commissioning inc Supporting People,Third Party Payments,441001,Supporting People,06-Jul-16,3151194-1964880,"19,231.20",THE CYRENIANS LTD T/A CHANGING LIVES.
Children and Adult Services,Commissioning inc Supporting People,Third Party Payments,442002,Supporting People,06-Jul-16,3151204-1964904,"9,289.44",THIRTEEN CARE & SUPPORT.
Children and Adult Services,Commissioning inc Supporting People,Third Party Payments,441001,Supporting People,06-Jul-16,3151204-1964906,"23,518.04",THIRTEEN CARE & SUPPORT.
Children and Adult Services,Commissioning inc Supporting People,Third Party Payments,441001,Supporting People,06-Jul-16,3151204-1964909,"7,510.04",THIRTEEN CARE & SUPPORT.
Children and Adult Services,Commissioning inc Supporting People,Third Party Payments,442002,Supporting People,06-Jul-16,3151204-1964910,"1,519.52",THIRTEEN CARE & SUPPORT.
Children and Adult Services,Commissioning inc Supporting People,Third Party Payments,441001,Supporting People,06-Jul-16,3151204-1964913,"7,776.68",THIRTEEN CARE & SUPPORT.
Children and Adult Services,Commissioning inc Supporting People,Third Party Payments,441001,Supporting People,06-Jul-16,3151237-1964853,"1,183.60",WADDINGTON STREET CENTRE LTD.
Children and Adult Services,Commissioning inc Supporting People,Third Party Payments,443001,Supporting People,06-Jul-16,3151237-1964854,"2,092.68",WADDINGTON STREET CENTRE LTD.
Children and Adult Services,Commissioning inc Supporting People,Third Party Payments,444002,Supporting People,06-Jul-16,3151237-1964915,709.2,WADDINGTON STREET CENTRE LTD.
Children and Adult Services,Commissioning inc Supporting People,Third Party Payments,441001,Supporting People,06-Jul-16,3151241-1964824,"7,157.00",WEAR VALLEY WOMENS AID.
Children and Adult Services,Education,Transport,230008,Contract Hire,06-Jul-16,304040-M047/32,"1,440.00",C STEWART.
Children and Adult Services,Education,Transport,230013,Contract Hire,06-Jul-16,304045-26,660,DAVID WILKINSON...
Children and Adult Services,Education,Transport,230006,Contract Hire,06-Jul-16,304088-11512,960,STATION TAXIS (SUNDERLAND).
Children and Adult Services,Education,Transport,230007,Contract Hire,06-Jul-16,3150586-61601,"1,349.00",24/7 TAXI SERVICES LTD.
Children and Adult Services,Education,Transport,230008,Contract Hire,06-Jul-16,3150586-61603,"1,862.00",24/7 TAXI SERVICES LTD.
Children and Adult Services,Education,Transport,230008,Contract Hire,06-Jul-16,3150586-61605,"1,809.26",24/7 TAXI SERVICES LTD.
Children and Adult Services,Education,Transport,230008,Contract Hire,06-Jul-16,3150586-61606,"1,242.03",24/7 TAXI SERVICES LTD.
Children and Adult Services,Education,Transport,230008,Contract Hire,06-Jul-16,3150586-61607,859.37,24/7 TAXI SERVICES LTD.
Children and Adult Services,Education,Transport,230006,Contract Hire,06-Jul-16,3150586-61608,660,24/7 TAXI SERVICES LTD.
Children and Adult Services,Education,Transport,230008,Contract Hire,06-Jul-16,3150586-61609,"2,207.73",24/7 TAXI SERVICES LTD.
Children and Adult Services,Education,Transport,230008,Contract Hire,06-Jul-16,3150586-61611,"1,140.00",24/7 TAXI SERVICES LTD.
Children and Adult Services,Education,Transport,230008,Contract Hire,06-Jul-16,3150605-13/16A,997.31,ADVANCE TRAVEL.
Children and Adult Services,Education,Transport,230004,Contract Hire,06-Jul-16,3150610-091,800,ALANS TAXIS BARNARD CASTLE.
Children and Adult Services,Education,Transport,230007,Contract Hire,06-Jul-16,3150634-DCC5JUNE16,540,ATLAS TAXIS BISHOP AUCKLAND.
Children and Adult Services,Education,Transport,230008,Contract Hire,06-Jul-16,3150650-06913,"1,937.24",BIRDS TAXIS.
Children and Adult Services,Education,Transport,230008,Contract Hire,06-Jul-16,3150650-06914,"1,724.82",BIRDS TAXIS.
Children and Adult Services,Education,Transport,230008,Contract Hire,06-Jul-16,3150650-06915,"1,634.00",BIRDS TAXIS.
Children and Adult Services,Education,Transport,230008,Contract Hire,06-Jul-16,3150650-06916,"1,786.00",BIRDS TAXIS.
Children and Adult Services,Education,Transport,230008,Contract Hire,06-Jul-16,3150675-PS0137,"1,200.80",BURNDALE PRIVATE HIRE.
Children and Adult Services,Education,Transport,230008,Contract Hire,06-Jul-16,3150675-PS0138,514.8,BURNDALE PRIVATE HIRE.
Children and Adult Services,Education,Transport,230007,Contract Hire,06-Jul-16,3150718-C/9267,"6,053.78",COCHRANES T/A KELVIN TRAVEL.
Children and Adult Services,Education,Transport,230007,Contract Hire,06-Jul-16,3150718-C/9268,"3,299.54",COCHRANES T/A KELVIN TRAVEL.
Children and Adult Services,Education,Transport,230007,Contract Hire,06-Jul-16,3150718-C/9269,"2,644.99",COCHRANES T/A KELVIN TRAVEL.
Children and Adult Services,Education,Transport,230007,Contract Hire,06-Jul-16,3150718-C/9270,"4,756.84",COCHRANES T/A KELVIN TRAVEL.
Children and Adult Services,Education,Transport,230007,Contract Hire,06-Jul-16,3150718-C/9271,"2,850.00",COCHRANES T/A KELVIN TRAVEL.
Children and Adult Services,Education,Transport,230007,Contract Hire,06-Jul-16,3150735-DCC/4029/JUNE16,"1,890.50",COUNTY COACHES.
Children and Adult Services,Education,Transport,230008,Contract Hire,06-Jul-16,3150755-2859,"1,623.17",DAVES MINIBUSES.
Children and Adult Services,Education,Transport,230008,Contract Hire,06-Jul-16,3150755-2860,"1,451.41",DAVES MINIBUSES.
Children and Adult Services,Education,Transport,230008,Contract Hire,06-Jul-16,3150755-2861,"2,014.00",DAVES MINIBUSES.
Children and Adult Services,Education,Transport,230006,Contract Hire,06-Jul-16,3150755-2862,"1,900.00",DAVES MINIBUSES.
Children and Adult Services,Education,Transport,230008,Contract Hire,06-Jul-16,3150755-2863,880,DAVES MINIBUSES.
Children and Adult Services,Education,Transport,230008,Contract Hire,06-Jul-16,3150761-0616/001,"1,341.78",DCM TAXIS.
Children and Adult Services,Education,Transport,230009,Contract Hire,06-Jul-16,3150805-0363,570,FMR SILVA PITA.
Children and Adult Services,Education,Transport,230007,Contract Hire,06-Jul-16,3150805-0364,551,FMR SILVA PITA.
Children and Adult Services,Education,Transport,230008,Contract Hire,06-Jul-16,3150882-1699,665,J YOUNG T/A VIP TAXIS.
Children and Adult Services,Education,Transport,230008,Contract Hire,06-Jul-16,3150882-1702,836,J YOUNG T/A VIP TAXIS.
Children and Adult Services,Education,Transport,230008,Contract Hire,06-Jul-16,3150882-1704,904.68,J YOUNG T/A VIP TAXIS.
Children and Adult Services,Education,Transport,230008,Contract Hire,06-Jul-16,3150882-1706,912,J YOUNG T/A VIP TAXIS.
Children and Adult Services,Education,Transport,230008,Contract Hire,06-Jul-16,3150882-1707,936,J YOUNG T/A VIP TAXIS.
Children and Adult Services,Education,Transport,230007,Contract Hire,06-Jul-16,3150882-1709,"1,102.00",J YOUNG T/A VIP TAXIS.
Children and Adult Services,Education,Transport,230007,Contract Hire,06-Jul-16,3150882-1710,608,J YOUNG T/A VIP TAXIS.
Children and Adult Services,Education,Transport,230008,Contract Hire,06-Jul-16,3150882-1714,"1,404.00",J YOUNG T/A VIP TAXIS.
Children and Adult Services,Education,Transport,230006,Contract Hire,06-Jul-16,3150910-F536-JUNE2016,756.4,LANGLEY TAXIS.
Children and Adult Services,Education,Transport,230007,Contract Hire,06-Jul-16,3150915-2209,"7,561.62",LEE`S COACHES LTD.
Children and Adult Services,Education,Transport,230007,Contract Hire,06-Jul-16,3150915-2211,720,LEE`S COACHES LTD.
Children and Adult Services,Education,Transport,230008,Contract Hire,06-Jul-16,3150932-55,740,M BEHAN T/A M & M`S TAXIS.
Children and Adult Services,Education,Transport,230013,Contract Hire,06-Jul-16,3150932-56,"1,140.00",M BEHAN T/A M & M`S TAXIS.
Children and Adult Services,Education,Transport,230006,Contract Hire,06-Jul-16,3150932-57,"1,350.00",M BEHAN T/A M & M`S TAXIS.
Children and Adult Services,Education,Transport,230008,Contract Hire,06-Jul-16,3150936-061605,"1,052.82",MARK & JOHN CHISHOLM T/A (CHEVRON).
Children and Adult Services,Education,Transport,230008,Contract Hire,06-Jul-16,3150936-061606,855,MARK & JOHN CHISHOLM T/A (CHEVRON).
Children and Adult Services,Education,Transport,230006,Contract Hire,06-Jul-16,3150943-006,910,MARTIN NICHOLS T/A MARCIA TAXIS.
Children and Adult Services,Education,Transport,230007,Contract Hire,06-Jul-16,3150944-10-1194,570,MARTIN`S TAXIS.
Children and Adult Services,Education,Transport,230008,Contract Hire,06-Jul-16,3150956-KDC010616,"3,519.75",MJ TIMNEY T/A KDC & C&M TAXIS.
Children and Adult Services,Education,Transport,230007,Contract Hire,06-Jul-16,3150961-013,"1,520.00",MORGAN`S TRAVEL.
Children and Adult Services,Education,Transport,230008,Contract Hire,06-Jul-16,3150964-6/6/16-30/6/16,"2,028.00",MR A MILLWARD T/A SWISS CABS PRIVATE HIRE.
Children and Adult Services,Education,Transport,230008,Contract Hire,06-Jul-16,3150965-WAL1,"1,916.15",MR CT WALKER T/A COLIN`S TAXIS.
Children and Adult Services,Education,Transport,230008,Contract Hire,06-Jul-16,3150965-WAL2,"2,090.00",MR CT WALKER T/A COLIN`S TAXIS.
Children and Adult Services,Education,Transport,230007,Contract Hire,06-Jul-16,3150969-00204,624,MR P GARBUTT.
Children and Adult Services,Education,Transport,230006,Contract Hire,06-Jul-16,3150971-160629,"2,428.96",MR STEVEN PRATT T/A PRATTS TAXIS LTD.
Children and Adult Services,Education,Transport,230008,Contract Hire,06-Jul-16,3150971-160630,"1,069.51",MR STEVEN PRATT T/A PRATTS TAXIS LTD.
Children and Adult Services,Education,Transport,230008,Contract Hire,06-Jul-16,3150971-160631,"1,520.00",MR STEVEN PRATT T/A PRATTS TAXIS LTD.
Children and Adult Services,Education,Transport,230007,Contract Hire,06-Jul-16,3150971-160633,"1,710.00",MR STEVEN PRATT T/A PRATTS TAXIS LTD.
Children and Adult Services,Education,Supplies and Services,304259,Equipment and Materials,06-Jul-16,3150987-INV209857,560,NCFE-CACHE.
Children and Adult Services,Education,Supplies and Services,338091,Services,06-Jul-16,3150989-819,"1,800.00",NECC TRAINING & ASSESSMENT CENTRE LTD.
Children and Adult Services,Education,Supplies and Services,338091,Services,06-Jul-16,3150989-820,"1,400.00",NECC TRAINING & ASSESSMENT CENTRE LTD.
Children and Adult Services,Education,Transport,230008,Contract Hire,06-Jul-16,3151035-524,"1,216.00",PETERLEE EXECUTIVE CARS.
Children and Adult Services,Education,Transport,230008,Contract Hire,06-Jul-16,3151035-525,"1,404.00",PETERLEE EXECUTIVE CARS.
Children and Adult Services,Education,Transport,230006,Contract Hire,06-Jul-16,3151093-1673,"1,098.00",RON`S TAXIS (FISHBURN).
Children and Adult Services,Education,Transport,230008,Contract Hire,06-Jul-16,3151093-1674,"1,330.00",RON`S TAXIS (FISHBURN).
Children and Adult Services,Education,Transport,230008,Contract Hire,06-Jul-16,3151093-1675,"2,565.00",RON`S TAXIS (FISHBURN).
Children and Adult Services,Education,Transport,230008,Contract Hire,06-Jul-16,3151109-89,"1,776.72",SAZ CABS.
Children and Adult Services,Education,Transport,230008,Contract Hire,06-Jul-16,3151125-72114,"3,040.00",SHOTTON PRIVATE HIRE.
Children and Adult Services,Education,Transport,230006,Contract Hire,06-Jul-16,3151125-72116,"1,281.60",SHOTTON PRIVATE HIRE.
Children and Adult Services,Education,Transport,230008,Contract Hire,06-Jul-16,3151125-72117,"1,710.00",SHOTTON PRIVATE HIRE.
Children and Adult Services,Education,Transport,230008,Contract Hire,06-Jul-16,3151130-S027-06-16,"1,862.00",SIMON ELLIFF.
Children and Adult Services,Education,Transport,230008,Contract Hire,06-Jul-16,3151132-400,"1,985.50",SIMONS TAXIS.
Children and Adult Services,Education,Supplies and Services,338027,Services,06-Jul-16,3151158-43,"2,721.80",SUE SMITH..
Children and Adult Services,Education,Transport,230009,Contract Hire,06-Jul-16,3151167-7003-JUNE2016,738,SWAN TAXIS.
Children and Adult Services,Education,Transport,230007,Contract Hire,06-Jul-16,3151182-5030/M03-5033/E031,"3,627.48",TED WILFORD COACHES.
Children and Adult Services,Education,Transport,230007,Contract Hire,06-Jul-16,3151182-5038/T032,"2,195.26",TED WILFORD COACHES.
Children and Adult Services,Education,Transport,230007,Contract Hire,06-Jul-16,3151182-6032/H18,"1,620.00",TED WILFORD COACHES.
Children and Adult Services,Education,Transport,230008,Contract Hire,06-Jul-16,3151216-017,705.6,TRIDENT TAXIS.
Children and Adult Services,Education,Transport,230008,Contract Hire,06-Jul-16,3151216-06,"1,278.40",TRIDENT TAXIS.
Children and Adult Services,Education,Transport,230006,Contract Hire,06-Jul-16,3151239-1044,"1,328.00",WE CONNOR.
Children and Adult Services,Education,Transport,230007,Contract Hire,06-Jul-16,3151243-5481,613.7,WEARDALE PRIVATE HIRE.
Children and Adult Services,Education,Transport,230007,Contract Hire,06-Jul-16,3151243-5482,"4,185.51",WEARDALE PRIVATE HIRE.
Children and Adult Services,Education,Transport,230007,Contract Hire,06-Jul-16,3151243-5483,"3,455.91",WEARDALE PRIVATE HIRE.
Children and Adult Services,Education,Transport,230004,Contract Hire,06-Jul-16,3151243-5485,"1,501.00",WEARDALE PRIVATE HIRE.
Children and Adult Services,Education,Transport,230007,Contract Hire,06-Jul-16,3151243-5490,"3,692.80",WEARDALE PRIVATE HIRE.
Children and Adult Services,Head of Adults,Supplies and Services,308013,Furniture,06-Jul-16,3150608-11041,583,AH & D CUTHBERTSON LTD.
Children and Adult Services,Head of Adults,Supplies and Services,338367,Services,06-Jul-16,3150681-31807,765,CARE ABILITY.
Children and Adult Services,Head of Adults,Supplies and Services,338366,Services,06-Jul-16,3150681-32275,527.35,CARE ABILITY.
Children and Adult Services,Head of Adults,Third Party Payments,478151,Purchase of Care,06-Jul-16,3150721-421R115671,"3,356.64",COMMUNITY INTEGRATED CARE LTD.
Children and Adult Services,Head of Adults,Third Party Payments,478151,Purchase of Care,06-Jul-16,3150721-421R115690,"3,832.92",COMMUNITY INTEGRATED CARE LTD.
Children and Adult Services,Head of Adults,Supplies and Services,304252,Equipment and Materials,06-Jul-16,3150825-REDECORATION,"4,150.00",GILL & SON PAINTING & DECORATING.
Children and Adult Services,Head of Adults,Transport,230005,Contract Hire,06-Jul-16,3151037-0462,968,PETER`S PRIVATE HIRE/PETER BEST.
Children and Adult Services,Head of Adults,Supplies and Services,304259,Equipment and Materials,06-Jul-16,3151075-582677,"1,615.00",RENDLES HOUSE FURNISHER.
Children and Adult Services,Planning & Service Strategy,Supplies and Services,338089,Services,06-Jul-16,3150764-000-2DURHAMA,"4,995.00",DW T/A SUSSEX BABY MASSAGE.
Children and Adult Services,Planning & Service Strategy,Employees,40149,Recruitment Instruction and Training,06-Jul-16,3150881-882,"1,750.00",J & K TRAINING LTD.
Children and Adult Services,Public Health,Supplies and Services,364999,Grants to Voluntary Organisations,06-Jul-16,3151097-251,"2,500.00",RT COMMUNITY PROJECTS LTD.
Children and Adult Services,Public Health,Supplies and Services,364999,Grants to Voluntary Organisations,06-Jul-16,3151157-117,"2,500.00",SUCCESS NORTH EAST COMMUNITY INTEREST COMPANY (CIC).
Children and Adult Services,Public Health,Supplies and Services,384899,Miscellaneous Expenses,06-Jul-16,3151157-120,"2,500.00",SUCCESS NORTH EAST COMMUNITY INTEREST COMPANY (CIC).
Children and Adult Services,Public Health,Supplies and Services,364999,Grants to Voluntary Organisations,06-Jul-16,3151248-AEN368,"1,450.00",WINGATE & STATION TOWN FAMILY CENTRE.
Dedicated Schools Grant,Dedicated Schools Grant,Third Party Payments,410037,Rendered by Other Local Authorities,06-Jul-16,3150818-110005531,"6,537.69",GATESHEAD COUNCIL.
Dedicated Schools Grant,Dedicated Schools Grant,Transport,230010,Contract Hire,06-Jul-16,3150927-91-30/6/16,"1,020.00",LORRAINES TAXIS.
Dedicated Schools Grant,Dedicated Schools Grant,Transport,230010,Contract Hire,06-Jul-16,3150936-061604,"1,368.00",MARK & JOHN CHISHOLM T/A (CHEVRON).
Dedicated Schools Grant,Dedicated Schools Grant,Transport,230010,Contract Hire,06-Jul-16,3151152-001-JUNE2016,504,STEPHEN REED T/A STEVE`S TAXIS.
Dedicated Schools Grant,Dedicated Schools Grant,Third Party Payments,410037,Rendered by Other Local Authorities,06-Jul-16,3151154-27022-LN-SEND,"4,000.00",STOCKTON ON TEES BOROUGH COUNCIL.
Children and Adult Services,Childrens Services,Supplies and Services,364999,Grants to Voluntary Organisations,07-Jul-16,3151284-CAS-06-2016-031,"2,349.00",BOWBURN YOUTH PROJECT.
Children and Adult Services,Childrens Services,Supplies and Services,364999,Grants to Voluntary Organisations,07-Jul-16,3151286-CAS-06-2016-032,"1,354.00",BRANDON CARRSIDE YOUTH & COMMUNITY PROJECT.
Children and Adult Services,Childrens Services,Supplies and Services,384302,Miscellaneous Expenses,07-Jul-16,3151286,"1,321.80",BRANDON CARRSIDE YOUTH & COMMUNITY PROJECT.
Children and Adult Services,Childrens Services,Supplies and Services,384302,Miscellaneous Expenses,07-Jul-16,3151286-SUMMER,"1,108.52",BRANDON CARRSIDE YOUTH & COMMUNITY PROJECT.
Children and Adult Services,Childrens Services,Supplies and Services,364999,Grants to Voluntary Organisations,07-Jul-16,3151322-CAS-06-2016-046,"1,935.00",EVENWOOD & COCKFIELD YOUTH PROJECT.
Children and Adult Services,Childrens Services,Supplies and Services,364999,Grants to Voluntary Organisations,07-Jul-16,3151323-CAS-06-2016-047,"2,250.00",FERRYHILL LADDER CENTRE LTD.
Children and Adult Services,Childrens Services,Supplies and Services,364999,Grants to Voluntary Organisations,07-Jul-16,3151328-CAS-06-2016-039,967,FUTURE LEISURE IN COXHOE (FLIC).
Children and Adult Services,Childrens Services,Transport,235073,Public Transport,07-Jul-16,3151347-100093,854,HORNDALE TAXIS LTD.
Children and Adult Services,Childrens Services,Supplies and Services,364353,Grants to Voluntary Organisations,07-Jul-16,3151391-CAS-06-2016-254,556.08,REDACTED - PAYMENT TO INDIVIDUAL
Children and Adult Services,Commissioning inc Supporting People,Transfer Payments,515210,Social Services Clients,07-Jul-16,3151268-CAS-07-2016-026,870,REDACTED - PAYMENT TO INDIVIDUAL
Children and Adult Services,Commissioning inc Supporting People,Transfer Payments,515210,Social Services Clients,07-Jul-16,3151389-CAS-07-2016-022,"1,950.00",REDACTED - PAYMENT TO INDIVIDUAL
Children and Adult Services,Education,Transport,230008,Contract Hire,07-Jul-16,3151263-61610,"2,280.00",24/7 TAXI SERVICES LTD.
Children and Adult Services,Education,Transport,230007,Contract Hire,07-Jul-16,3151269-523,608,ADAMSONS TAXIS.
Children and Adult Services,Education,Transport,230006,Contract Hire,07-Jul-16,3151271-090,"1,161.60",ALANS TAXIS BARNARD CASTLE.
Children and Adult Services,Education,Transport,230008,Contract Hire,07-Jul-16,3151275-300616,"1,335.32",AVALON TAXIS.
Children and Adult Services,Education,Transport,230006,Contract Hire,07-Jul-16,3151277-JUNE16,"1,336.27",BEELINE PRIVATE HIRE.
Children and Adult Services,Education,Transport,230007,Contract Hire,07-Jul-16,3151281-10A,"1,045.00",BILL`S TAXIS.
Children and Adult Services,Education,Transport,230006,Contract Hire,07-Jul-16,3151283-1410,"3,166.54",BOBBY DOVE.
Children and Adult Services,Education,Transport,230008,Contract Hire,07-Jul-16,3151283-1411,"1,602.65",BOBBY DOVE.
Children and Adult Services,Education,Transport,230008,Contract Hire,07-Jul-16,3151287-BZ00193,"1,482.00",BREZ`S TAXIS.
Children and Adult Services,Education,Transport,230007,Contract Hire,07-Jul-16,3151289-3260010,570,C & R TAXIS.
Children and Adult Services,Education,Transport,230008,Contract Hire,07-Jul-16,3151289-A040010,"1,079.00",C & R TAXIS.
Children and Adult Services,Education,Transport,230008,Contract Hire,07-Jul-16,3151289-W017010,"1,127.00",C & R TAXIS.
Children and Adult Services,Education,Transport,230008,Contract Hire,07-Jul-16,3151290-BIL0081,"1,583.65",CA MUSGROVE.
Children and Adult Services,Education,Transport,230008,Contract Hire,07-Jul-16,3151298-20,"1,710.00",CHAPMAN TRAVEL.
Children and Adult Services,Education,Transport,230008,Contract Hire,07-Jul-16,3151299-KJ040,"1,187.31",CHIPPERS TAXIS.
Children and Adult Services,Education,Transport,230008,Contract Hire,07-Jul-16,3151300-34/2016,"2,200.00",CHRIS`S TAXI.
Children and Adult Services,Education,Transport,230008,Contract Hire,07-Jul-16,3151308-81,"1,150.83",D CROOK T/A CK TAXIS.
Children and Adult Services,Education,Transport,230008,Contract Hire,07-Jul-16,3151309-D1201606,"1,500.00",D&I TAXIS.
Children and Adult Services,Education,Transport,230008,Contract Hire,07-Jul-16,3151310-1473,"1,121.00",DA TAXIS.
Children and Adult Services,Education,Transport,230008,Contract Hire,07-Jul-16,3151310-1474,"1,054.88",DA TAXIS.
Children and Adult Services,Education,Transport,230008,Contract Hire,07-Jul-16,3151310-1475,"1,927.13",DA TAXIS.
Children and Adult Services,Education,Transport,230008,Contract Hire,07-Jul-16,3151314-0025,"2,850.00",DAVID WALKER TAXIS.
Children and Adult Services,Education,Transport,230008,Contract Hire,07-Jul-16,3151316-216,570,DEXTERS PRIVATE HIRE.
Children and Adult Services,Education,Transport,230007,Contract Hire,07-Jul-16,3151318-23108,"2,473.04",DURHAM CITY COACHES.
Children and Adult Services,Education,Transport,230007,Contract Hire,07-Jul-16,3151318-23109,"2,565.00",DURHAM CITY COACHES.
Children and Adult Services,Education,Transport,230007,Contract Hire,07-Jul-16,3151329-6132,"1,938.00",G & P JOHNSON LTD T/A NIGHTINGALE COACHES.
Children and Adult Services,Education,Transport,230007,Contract Hire,07-Jul-16,3151329-6133,"2,482.54",G & P JOHNSON LTD T/A NIGHTINGALE COACHES.
Children and Adult Services,Education,Transport,230007,Contract Hire,07-Jul-16,3151329-6134,"1,786.00",G & P JOHNSON LTD T/A NIGHTINGALE COACHES.
Children and Adult Services,Education,Transport,230006,Contract Hire,07-Jul-16,3151329-6144,"1,620.00",G & P JOHNSON LTD T/A NIGHTINGALE COACHES.
Children and Adult Services,Education,Transport,230008,Contract Hire,07-Jul-16,3151329-6150,702,G & P JOHNSON LTD T/A NIGHTINGALE COACHES.
Children and Adult Services,Education,Transport,230006,Contract Hire,07-Jul-16,3151329-6155,"1,292.00",G & P JOHNSON LTD T/A NIGHTINGALE COACHES.
Children and Adult Services,Education,Transport,230007,Contract Hire,07-Jul-16,3151330-18472,"2,666.08",GARNETTS LTD (COACHES).
Children and Adult Services,Education,Transport,230007,Contract Hire,07-Jul-16,3151330-18474,"2,223.00",GARNETTS LTD (COACHES).
Children and Adult Services,Education,Transport,230008,Contract Hire,07-Jul-16,3151343-5-01/07/2016,"1,378.84",HENRYS TAXIS.
Children and Adult Services,Education,Transport,230008,Contract Hire,07-Jul-16,3151346-06-30/06/2016,"1,311.00",HIPPY`S TAXI.
Children and Adult Services,Education,Transport,230008,Contract Hire,07-Jul-16,3151348-IR1606003,"2,368.63",I & R EXECUTIVE TRAVEL.
Children and Adult Services,Education,Transport,230008,Contract Hire,07-Jul-16,3151348-IR1606004,"2,059.79",I & R EXECUTIVE TRAVEL.
Children and Adult Services,Education,Transport,230008,Contract Hire,07-Jul-16,3151348-IR1606005,840,I & R EXECUTIVE TRAVEL.
Children and Adult Services,Education,Transport,230008,Contract Hire,07-Jul-16,3151352-1711,"1,140.00",J YOUNG T/A VIP TAXIS.
Children and Adult Services,Education,Transport,230007,Contract Hire,07-Jul-16,3151356-2537,"1,795.31",JEFF ANDERSON COACHES LTD.
Children and Adult Services,Education,Transport,230008,Contract Hire,07-Jul-16,3151357-N03021,"1,577.00",JOVIAL PRIVATE HIRE.
Children and Adult Services,Education,Transport,230008,Contract Hire,07-Jul-16,3151357-N2124,780,JOVIAL PRIVATE HIRE.
Children and Adult Services,Education,Transport,230008,Contract Hire,07-Jul-16,3151362-010616,"2,050.83",KEVIN EDMUNDSON.
Children and Adult Services,Education,Transport,230008,Contract Hire,07-Jul-16,3151376-061601,"3,226.50",MARK & JOHN CHISHOLM T/A (CHEVRON).
Children and Adult Services,Education,Transport,230008,Contract Hire,07-Jul-16,3151378-26,"1,567.50",MAURICE & SONS.
Children and Adult Services,Education,Transport,230007,Contract Hire,07-Jul-16,3151383-21,720,MR BW YOUNG T/A ESH TAXIS.
Children and Adult Services,Education,Transport,230008,Contract Hire,07-Jul-16,3151384-06-16,813.2,MR CT WALKER T/A COLIN`S TAXIS.
Children and Adult Services,Education,Transport,230008,Contract Hire,07-Jul-16,3151384-60,"3,200.58",MR CT WALKER T/A COLIN`S TAXIS.
Children and Adult Services,Education,Transport,230006,Contract Hire,07-Jul-16,3151386-0167,722,MR DEREK HENDERSON.
Children and Adult Services,Education,Transport,230008,Contract Hire,07-Jul-16,3151392-A057/06/16,"1,336.00",MR M ALLISON T/A MACBETH TAXIS/COACHES.
Children and Adult Services,Education,Transport,230008,Contract Hire,07-Jul-16,3151392-A069/06/16,"1,444.00",MR M ALLISON T/A MACBETH TAXIS/COACHES.
Children and Adult Services,Education,Transport,230008,Contract Hire,07-Jul-16,3151392-N053/06/16,"1,620.00",MR M ALLISON T/A MACBETH TAXIS/COACHES.
Children and Adult Services,Education,Transport,230008,Contract Hire,07-Jul-16,3151392-N059/06/16,"1,366.12",MR M ALLISON T/A MACBETH TAXIS/COACHES.
Children and Adult Services,Education,Transport,230008,Contract Hire,07-Jul-16,3151393-0005,"1,748.00",MR PM MULLEN T/A CATHEDRAL TAXIS.
Children and Adult Services,Education,Transport,230007,Contract Hire,07-Jul-16,3151394-1001,"1,080.00",MR REES WILKINSON T/A B & L MINIBUS HIRE.
Children and Adult Services,Education,Transport,230007,Contract Hire,07-Jul-16,3151394-1011,760,MR REES WILKINSON T/A B & L MINIBUS HIRE.
Children and Adult Services,Education,Supplies and Services,338066,Services,07-Jul-16,3151402-1596,"35,269.69",NEPRO LTD.
Children and Adult Services,Education,Transport,230008,Contract Hire,07-Jul-16,3151414-SC-048,"1,527.79",PAUL BURRELL T/A PAUL BURRELL TAXIS.
Children and Adult Services,Education,Supplies and Services,312009,Newspapers Books and Periodicals,07-Jul-16,3151416-1590895,763.53,PETERS LTD.
Children and Adult Services,Education,Supplies and Services,312009,Newspapers Books and Periodicals,07-Jul-16,3151416-1590896,666.75,PETERS LTD.
Children and Adult Services,Education,Transport,230007,Contract Hire,07-Jul-16,3151451-00316,877.23,TRANSPORT.ADVENTURE.XI.
Children and Adult Services,Education,Transport,230008,Contract Hire,07-Jul-16,3151453-43,"1,991.50",TT TAXIS.
Children and Adult Services,Head of Adults,Supplies and Services,304999,Equipment and Materials,07-Jul-16,3151443-271936,615.7,THE HELPING HAND CO (LEDBURY) LTD.
Children and Adult Services,Public Health,Third Party Payments,460802,Contract Payments,07-Jul-16,3151304-3980018129,"277,500.00",CO DURHAM & DARLINGTON NHS FOUNDATION TRUST.
Children and Adult Services,Public Health,Supplies and Services,384899,Miscellaneous Expenses,07-Jul-16,3151319-20015031,"24,000.00",DURHAM POLICE & CRIME COMMISSIONER.
Dedicated Schools Grant,Dedicated Schools Grant,Transport,230010,Contract Hire,07-Jul-16,3151376-061602,"1,648.00",MARK & JOHN CHISHOLM T/A (CHEVRON).
Dedicated Schools Grant,Dedicated Schools Grant,Transport,230010,Contract Hire,07-Jul-16,3151376-061607,"1,368.00",MARK & JOHN CHISHOLM T/A (CHEVRON).
Dedicated Schools Grant,Dedicated Schools Grant,Transport,230010,Contract Hire,07-Jul-16,3151376-061608,800,MARK & JOHN CHISHOLM T/A (CHEVRON).
Dedicated Schools Grant,Dedicated Schools Grant,Third Party Payments,410037,Rendered by Other Local Authorities,07-Jul-16,3151406-NVSI13,"5,167.50",NORTH VIEW ACADEMY.
Dedicated Schools Grant,Dedicated Schools Grant,Third Party Payments,410037,Rendered by Other Local Authorities,07-Jul-16,3151442-NBSI13,"17,933.00",THE ASCENT ACADEMIES TRUST T/A THE NEW BRIDGE ACADEMY.
Children and Adult Services,Childrens Services,Supplies and Services,364999,Grants to Voluntary Organisations,08-Jul-16,3151696-CAS-06-2016-048,"3,000.00",FISHBURN YOUTH & COMMUNITY CENTRE.
Children and Adult Services,Childrens Services,Third Party Payments,425040,Rendered by Voluntary Organisations,08-Jul-16,3151701-126578,730,FOSTER CARES LTD.
Children and Adult Services,Childrens Services,Third Party Payments,425040,Rendered by Voluntary Organisations,08-Jul-16,3151701-126583,"1,180.00",FOSTER CARES LTD.
Children and Adult Services,Childrens Services,Third Party Payments,425040,Rendered by Voluntary Organisations,08-Jul-16,3151701-126586,820,FOSTER CARES LTD.
Children and Adult Services,Childrens Services,Third Party Payments,425040,Rendered by Voluntary Organisations,08-Jul-16,3151701-126587,730,FOSTER CARES LTD.
Children and Adult Services,Childrens Services,Third Party Payments,425040,Rendered by Voluntary Organisations,08-Jul-16,3151701-126592,730,FOSTER CARES LTD.
Children and Adult Services,Childrens Services,Third Party Payments,425040,Rendered by Voluntary Organisations,08-Jul-16,3151701-126596,730,FOSTER CARES LTD.
Children and Adult Services,Childrens Services,Third Party Payments,425040,Rendered by Voluntary Organisations,08-Jul-16,3151701-126601,730,FOSTER CARES LTD.
Children and Adult Services,Childrens Services,Third Party Payments,425040,Rendered by Voluntary Organisations,08-Jul-16,3151701-126602,730,FOSTER CARES LTD.
Children and Adult Services,Childrens Services,Third Party Payments,425040,Rendered by Voluntary Organisations,08-Jul-16,3151701-126607,700,FOSTER CARES LTD.
Children and Adult Services,Childrens Services,Third Party Payments,425040,Rendered by Voluntary Organisations,08-Jul-16,3151701-126662,730,FOSTER CARES LTD.
Children and Adult Services,Childrens Services,Third Party Payments,425040,Rendered by Voluntary Organisations,08-Jul-16,3151701-126667,"1,180.00",FOSTER CARES LTD.
Children and Adult Services,Childrens Services,Third Party Payments,425040,Rendered by Voluntary Organisations,08-Jul-16,3151701-126670,820,FOSTER CARES LTD.
Children and Adult Services,Childrens Services,Third Party Payments,425040,Rendered by Voluntary Organisations,08-Jul-16,3151701-126671,730,FOSTER CARES LTD.
Children and Adult Services,Childrens Services,Third Party Payments,425040,Rendered by Voluntary Organisations,08-Jul-16,3151701-126676,730,FOSTER CARES LTD.
Children and Adult Services,Childrens Services,Third Party Payments,425040,Rendered by Voluntary Organisations,08-Jul-16,3151701-126680,730,FOSTER CARES LTD.
Children and Adult Services,Childrens Services,Third Party Payments,425040,Rendered by Voluntary Organisations,08-Jul-16,3151701-126685,730,FOSTER CARES LTD.
Children and Adult Services,Childrens Services,Third Party Payments,425040,Rendered by Voluntary Organisations,08-Jul-16,3151701-126686,730,FOSTER CARES LTD.
Children and Adult Services,Childrens Services,Third Party Payments,425040,Rendered by Voluntary Organisations,08-Jul-16,3151701-126689,700,FOSTER CARES LTD.
Children and Adult Services,Childrens Services,Supplies and Services,384638,Miscellaneous Expenses,08-Jul-16,3151713-2016-05-070,"10,531.50",GATEWAY NORTH EAST.
Children and Adult Services,Childrens Services,Supplies and Services,364999,Grants to Voluntary Organisations,08-Jul-16,3151767-CAS-06-2016-052,"2,509.00",JACK DRUM ARTS LTD.
Children and Adult Services,Childrens Services,Supplies and Services,384302,Miscellaneous Expenses,08-Jul-16,3151789-643,650,KEYFUND FEDERATION LTD.
Children and Adult Services,Childrens Services,Supplies and Services,352001,Conference Expenses,08-Jul-16,3151835-0002,"1,200.00",MCL PROFESSIONAL SERVICES LTD.
Children and Adult Services,Childrens Services,Supplies and Services,364999,Grants to Voluntary Organisations,08-Jul-16,3151840-CAS-06-2016-055,"3,225.00",MID DURHAM PROJECTS CLUB.
Children and Adult Services,Childrens Services,Supplies and Services,364999,Grants to Voluntary Organisations,08-Jul-16,3151850-CAS-06-2016-038,"2,625.00",MOORSIDE YOUTH PROJECT.
Children and Adult Services,Childrens Services,Supplies and Services,364999,Grants to Voluntary Organisations,08-Jul-16,3151929-CAS-06-2016-062,"1,935.00",PELTON COMMUNITY ASSOCIATION.
Children and Adult Services,Childrens Services,Third Party Payments,425040,Rendered by Voluntary Organisations,08-Jul-16,3151968-1496,"1,160.70",REACH OUT CARE LTD.
Children and Adult Services,Childrens Services,Supplies and Services,364999,Grants to Voluntary Organisations,08-Jul-16,3151992-CAS-06-2016-064,"1,290.00",SACRISTON YOUTH PROJECT.
Children and Adult Services,Childrens Services,Supplies and Services,364999,Grants to Voluntary Organisations,08-Jul-16,3152006-CAS-06-2016-066,"3,555.00",SEAHAM YOUTH CENTRE.
Children and Adult Services,Childrens Services,Supplies and Services,364999,Grants to Voluntary Organisations,08-Jul-16,3152008-CAS-06-2016-067,"2,160.00",USE (43778) SEDGEFIELD YOUTH DEVELOPMENT.
Children and Adult Services,Childrens Services,Supplies and Services,364999,Grants to Voluntary Organisations,08-Jul-16,3152037-CAS-06-2016-072,"2,544.00",STANHOPE COMMUNITY CENTRE.
Children and Adult Services,Childrens Services,Supplies and Services,364999,Grants to Voluntary Organisations,08-Jul-16,3152038-CAS-06-2016-074,"4,402.00",STANLEY EVENTS LTD.
Children and Adult Services,Childrens Services,Supplies and Services,364999,Grants to Voluntary Organisations,08-Jul-16,3152040-CAS-06-2016-073,"1,218.00",STANLEY YOUNG PEOPLES CLUB.
Children and Adult Services,Childrens Services,Supplies and Services,364355,Grants to Voluntary Organisations,08-Jul-16,3152047-D1IN/00023055,"4,327.58",STONHAM HOUSING ASSOCIATION LTD.
Children and Adult Services,Childrens Services,Supplies and Services,364355,Grants to Voluntary Organisations,08-Jul-16,3152047-D1IN/00023056,"4,327.58",STONHAM HOUSING ASSOCIATION LTD.
Children and Adult Services,Childrens Services,Supplies and Services,364355,Grants to Voluntary Organisations,08-Jul-16,3152047-D1IN/00023057,"4,327.58",STONHAM HOUSING ASSOCIATION LTD.
Children and Adult Services,Childrens Services,Supplies and Services,364355,Grants to Voluntary Organisations,08-Jul-16,3152047-D1IN/00023058,"4,327.58",STONHAM HOUSING ASSOCIATION LTD.
Children and Adult Services,Childrens Services,Supplies and Services,364355,Grants to Voluntary Organisations,08-Jul-16,3152047-D1IN/00023059,"4,327.58",STONHAM HOUSING ASSOCIATION LTD.
Children and Adult Services,Childrens Services,Supplies and Services,364355,Grants to Voluntary Organisations,08-Jul-16,3152047-D1IN/00023060,"4,327.58",STONHAM HOUSING ASSOCIATION LTD.
Children and Adult Services,Childrens Services,Supplies and Services,364352,Grants to Voluntary Organisations,08-Jul-16,3152047-D1IN/00023061,"4,302.08",STONHAM HOUSING ASSOCIATION LTD.
Children and Adult Services,Childrens Services,Supplies and Services,364355,Grants to Voluntary Organisations,08-Jul-16,3152047-D1IN/00023183,"4,964.23",STONHAM HOUSING ASSOCIATION LTD.
Children and Adult Services,Childrens Services,Supplies and Services,364355,Grants to Voluntary Organisations,08-Jul-16,3152047-D1IN/00023319,"3,593.08",STONHAM HOUSING ASSOCIATION LTD.
Children and Adult Services,Childrens Services,Supplies and Services,364355,Grants to Voluntary Organisations,08-Jul-16,3152047-D1IN/00023320,"4,276.58",STONHAM HOUSING ASSOCIATION LTD.
Children and Adult Services,Childrens Services,Transport,230007,Contract Hire,08-Jul-16,3152052-5076,833.09,SUPPORTIVE SRC LTD.
Children and Adult Services,Childrens Services,Transport,230007,Contract Hire,08-Jul-16,3152052-5080,903.16,SUPPORTIVE SRC LTD.
Children and Adult Services,Childrens Services,Transport,230007,Contract Hire,08-Jul-16,3152052-5081,585.49,SUPPORTIVE SRC LTD.
Children and Adult Services,Childrens Services,Supplies and Services,364999,Grants to Voluntary Organisations,08-Jul-16,3152058-CAS-06-2016-076,"1,290.00",TANFIELD YOUTH PROJECT.
Children and Adult Services,Childrens Services,Employees,80025,Agency Staff,08-Jul-16,3152064-1130719,"1,779.00",TEACHING PERSONNEL LTD.
Children and Adult Services,Childrens Services,Supplies and Services,364999,Grants to Voluntary Organisations,08-Jul-16,3152066-CAS-06-2016-077,"6,772.00",TEESDALE COMMUNITY RESOURCES (TCR) LTD.
Children and Adult Services,Childrens Services,Supplies and Services,364999,Grants to Voluntary Organisations,08-Jul-16,3152094-CAS-06-2016-078,645,REDACTED - PAYMENT TO INDIVIDUAL
Children and Adult Services,Childrens Services,Supplies and Services,364999,Grants to Voluntary Organisations,08-Jul-16,3152112-CAS-06-2016-056,645,UPPER TEESDALE AGRICULTURAL SUPPORT SERVICES LTD (UTASS).
Children and Adult Services,Childrens Services,Supplies and Services,364999,Grants to Voluntary Organisations,08-Jul-16,3152133-CAS-06-2016-080,"2,167.00",WEST DURHAM YOUTH & COMMUNITY RESOURCE.
Children and Adult Services,Childrens Services,Supplies and Services,384491,Miscellaneous Expenses,08-Jul-16,3152135-201647,"1,075.00",WHEATLEY HILL COMMUNITY NURSERY LTD.
Children and Adult Services,Commissioning inc Supporting People,Third Party Payments,479111,Purchase of Care,08-Jul-16,3151584-CACD262,"15,000.00",CITIZENS ADVICE COUNTY DURHAM.
Children and Adult Services,Education,Transport,230007,Contract Hire,08-Jul-16,3151589-45453,"1,342.73",CJ GRIERSON T/A GRIERSONS COACHES.
Children and Adult Services,Education,Transport,230007,Contract Hire,08-Jul-16,3151589-45454,"4,603.32",CJ GRIERSON T/A GRIERSONS COACHES.
Children and Adult Services,Education,Transport,230007,Contract Hire,08-Jul-16,3151589-45455,"2,014.00",CJ GRIERSON T/A GRIERSONS COACHES.
Children and Adult Services,Education,Transport,230007,Contract Hire,08-Jul-16,3151589-45456,"2,660.00",CJ GRIERSON T/A GRIERSONS COACHES.
Children and Adult Services,Education,Transport,230007,Contract Hire,08-Jul-16,3151589-45458,"2,470.00",CJ GRIERSON T/A GRIERSONS COACHES.
Children and Adult Services,Education,Transport,230007,Contract Hire,08-Jul-16,3151589-45459,"4,756.84",CJ GRIERSON T/A GRIERSONS COACHES.
Children and Adult Services,Education,Transport,230007,Contract Hire,08-Jul-16,3151593-896,850,CLIVE HUBERY.
Children and Adult Services,Education,Transport,230008,Contract Hire,08-Jul-16,3151631-1476,"1,115.05",DA TAXIS.
Children and Adult Services,Education,Transport,230008,Contract Hire,08-Jul-16,3151640-109,931,DEXTERS PRIVATE HIRE.
Children and Adult Services,Education,Transport,230007,Contract Hire,08-Jul-16,3151640-820,"1,064.00",DEXTERS PRIVATE HIRE.
Children and Adult Services,Education,Transport,230008,Contract Hire,08-Jul-16,3151644-16/10,"1,330.00",DMG PRIVATE HIRE.
Children and Adult Services,Education,Transport,230008,Contract Hire,08-Jul-16,3151650-DCT-14-22,"1,204.00",DUNCAN G CUMMINGS T/A DURHAM EXECUTIVE HIRE.
Children and Adult Services,Education,Transport,230007,Contract Hire,08-Jul-16,3151651-7418,"20,499.30",DURHAM CITY COACHES.
Children and Adult Services,Education,Transport,230008,Contract Hire,08-Jul-16,3151708-6142,"1,440.00",G & P JOHNSON LTD T/A NIGHTINGALE COACHES.
Children and Adult Services,Education,Transport,230008,Contract Hire,08-Jul-16,3151708-6143,"1,260.00",G & P JOHNSON LTD T/A NIGHTINGALE COACHES.
Children and Adult Services,Education,Transport,230008,Contract Hire,08-Jul-16,3151708-6145,"1,260.00",G & P JOHNSON LTD T/A NIGHTINGALE COACHES.
Children and Adult Services,Education,Transport,230006,Contract Hire,08-Jul-16,3151708-6147,810,G & P JOHNSON LTD T/A NIGHTINGALE COACHES.
Children and Adult Services,Education,Transport,230008,Contract Hire,08-Jul-16,3151708-6148,756,G & P JOHNSON LTD T/A NIGHTINGALE COACHES.
Children and Adult Services,Education,Transport,230008,Contract Hire,08-Jul-16,3151708-6149,918,G & P JOHNSON LTD T/A NIGHTINGALE COACHES.
Children and Adult Services,Education,Transport,230007,Contract Hire,08-Jul-16,3151711-18469,"21,479.50",GARNETTS LTD (COACHES).
Children and Adult Services,Education,Transport,230007,Contract Hire,08-Jul-16,3151711-18475,"11,742.57",GARNETTS LTD (COACHES).
Children and Adult Services,Education,Transport,230007,Contract Hire,08-Jul-16,3151711-18476,"8,334.92",GARNETTS LTD (COACHES).
Children and Adult Services,Education,Transport,230007,Contract Hire,08-Jul-16,3151711-18478,"2,474.37",GARNETTS LTD (COACHES).
Children and Adult Services,Education,Third Party Payments,440999,Other Third Party Payments,08-Jul-16,3151733-0000011225,"4,084.83",GROUNDWORK NORTH EAST.
Children and Adult Services,Education,Third Party Payments,440999,Other Third Party Payments,08-Jul-16,3151733-0000011226,"4,250.00",GROUNDWORK NORTH EAST.
Children and Adult Services,Education,Third Party Payments,440999,Other Third Party Payments,08-Jul-16,3151733-0000011227,"3,883.14",GROUNDWORK NORTH EAST.
Children and Adult Services,Education,Transport,230007,Contract Hire,08-Jul-16,3151736-HT232,"2,475.00",HARRY`S TAXI`S.
Children and Adult Services,Education,Transport,230008,Contract Hire,08-Jul-16,3151736-HT233,"1,140.00",HARRY`S TAXI`S.
Children and Adult Services,Education,Transport,230006,Contract Hire,08-Jul-16,3151736-HT234,940,HARRY`S TAXI`S.
Children and Adult Services,Education,Transport,230008,Contract Hire,08-Jul-16,3151736-HT235,"2,388.06",HARRY`S TAXI`S.
Children and Adult Services,Education,Transport,230008,Contract Hire,08-Jul-16,3151768-E136-G,760,JAFFAS TAXIS.
Children and Adult Services,Education,Transport,230008,Contract Hire,08-Jul-16,3151771-2534,"1,963.46",JEFF ANDERSON COACHES LTD.
Children and Adult Services,Education,Transport,230008,Contract Hire,08-Jul-16,3151771-2535,"2,230.03",JEFF ANDERSON COACHES LTD.
Children and Adult Services,Education,Transport,230008,Contract Hire,08-Jul-16,3151771-2536,"2,515.22",JEFF ANDERSON COACHES LTD.
Children and Adult Services,Education,Transport,230008,Contract Hire,08-Jul-16,3151785-10-N079,912,KD TAXIS.
Children and Adult Services,Education,Transport,230008,Contract Hire,08-Jul-16,3151785-10-N191-JUN,"2,394.00",KD TAXIS.
Children and Adult Services,Education,Transport,230007,Contract Hire,08-Jul-16,3151786-2023,836,KEN HINDS.
Children and Adult Services,Education,Transport,230006,Contract Hire,08-Jul-16,3151798-1070,"2,140.00",LD TAXIS.
Children and Adult Services,Education,Transport,230008,Contract Hire,08-Jul-16,3151798-1071,"1,330.00",LD TAXIS.
Children and Adult Services,Education,Transport,230008,Contract Hire,08-Jul-16,3151802-149,"1,866.87",LEE`S TAXIS.
Children and Adult Services,Education,Transport,230008,Contract Hire,08-Jul-16,3151802-151,"2,074.75",LEE`S TAXIS.
Children and Adult Services,Education,Transport,230007,Contract Hire,08-Jul-16,3151810-3411,"1,054.50",LINCAB TAXIS.
Children and Adult Services,Education,Transport,230008,Contract Hire,08-Jul-16,3151814-2738,"1,220.00",LOCAL TRANSPORT LTD.
Children and Adult Services,Education,Transport,230006,Contract Hire,08-Jul-16,3151814-2739,600,LOCAL TRANSPORT LTD.
Children and Adult Services,Education,Transport,230008,Contract Hire,08-Jul-16,3151814-2740,"2,014.00",LOCAL TRANSPORT LTD.
Children and Adult Services,Education,Transport,230008,Contract Hire,08-Jul-16,3151814-2742,"1,406.00",LOCAL TRANSPORT LTD.
Children and Adult Services,Education,Transport,230006,Contract Hire,08-Jul-16,3151837-H2,"1,520.00",MICHAEL A BODDY T/A MBS TAXIS.
Children and Adult Services,Education,Transport,230006,Contract Hire,08-Jul-16,3151837-H3,"1,682.45",MICHAEL A BODDY T/A MBS TAXIS.
Children and Adult Services,Education,Transport,230008,Contract Hire,08-Jul-16,3151837-H4,"1,900.00",MICHAEL A BODDY T/A MBS TAXIS.
Children and Adult Services,Education,Transport,230007,Contract Hire,08-Jul-16,3151837-H5,"1,260.00",MICHAEL A BODDY T/A MBS TAXIS.
Children and Adult Services,Education,Transport,230008,Contract Hire,08-Jul-16,3151838-INV-107,944,MICHAEL COBB (T/A HAIL TAXIS).
Children and Adult Services,Education,Transport,230008,Contract Hire,08-Jul-16,3151849-CEW216,"1,615.00",MOOR PRIVATE HIRE.
Children and Adult Services,Education,Transport,230008,Contract Hire,08-Jul-16,3151853-0304811,"1,460.15",MR GN ROBBINS T/A GNR MINIBUS HIRE.
Children and Adult Services,Education,Transport,230008,Contract Hire,08-Jul-16,3151853-0304812,"1,637.80",MR GN ROBBINS T/A GNR MINIBUS HIRE.
Children and Adult Services,Education,Transport,230007,Contract Hire,08-Jul-16,3151856-JP/06/16,810,MR J AGAR T/A PARK TAXIS.
Children and Adult Services,Education,Transport,230007,Contract Hire,08-Jul-16,3151857-11,"1,121.00",MR KJB BOWERY T/A KJB TAXIS.
Children and Adult Services,Education,Transport,230008,Contract Hire,08-Jul-16,3151862-2916,"2,098.74",MR S BOWERS.
Children and Adult Services,Education,Transport,230008,Contract Hire,08-Jul-16,3151862-2917,"1,451.41",MR S BOWERS.
Children and Adult Services,Education,Transport,230008,Contract Hire,08-Jul-16,3151862-2918,997.12,MR S BOWERS.
Children and Adult Services,Education,Transport,230008,Contract Hire,08-Jul-16,3151876-021,"1,140.00",NEIL PASSMOOR T/A NEIL`S TAXI.
Children and Adult Services,Education,Third Party Payments,440999,Other Third Party Payments,08-Jul-16,3151895-111,"1,264.32",NORTHERN RIGHTS COMMUNITY INTEREST COMPANY (CIC)..
Children and Adult Services,Education,Third Party Payments,440999,Other Third Party Payments,08-Jul-16,3151895-112,"5,688.00",NORTHERN RIGHTS COMMUNITY INTEREST COMPANY (CIC)..
Children and Adult Services,Education,Third Party Payments,440999,Other Third Party Payments,08-Jul-16,3151895-113,"1,264.32",NORTHERN RIGHTS COMMUNITY INTEREST COMPANY (CIC)..
Children and Adult Services,Education,Third Party Payments,440999,Other Third Party Payments,08-Jul-16,3151895-114,"5,688.00",NORTHERN RIGHTS COMMUNITY INTEREST COMPANY (CIC)..
Children and Adult Services,Education,Transport,230008,Contract Hire,08-Jul-16,3151924-DCC100,"1,920.00",PAUL`S TAXIS..
Children and Adult Services,Education,Transport,230008,Contract Hire,08-Jul-16,3151924-DCC101,"1,425.00",PAUL`S TAXIS..
Children and Adult Services,Education,Transport,230006,Contract Hire,08-Jul-16,3151924-DCC98,901,PAUL`S TAXIS..
Children and Adult Services,Education,Transport,230006,Contract Hire,08-Jul-16,3151925-DCC0072016,792,PB PRIVATE HIRE.
Children and Adult Services,Education,Transport,230006,Contract Hire,08-Jul-16,3151925-DCC0092016,855,PB PRIVATE HIRE.
Children and Adult Services,Education,Transport,230008,Contract Hire,08-Jul-16,3151925-DCC0102016,855,PB PRIVATE HIRE.
Children and Adult Services,Education,Transport,230008,Contract Hire,08-Jul-16,3151925-DCC0112016,741,PB PRIVATE HIRE.
Children and Adult Services,Education,Transport,230009,Contract Hire,08-Jul-16,3151925-DCC0122016,855,PB PRIVATE HIRE.
Children and Adult Services,Education,Transport,230008,Contract Hire,08-Jul-16,3151932-744,"3,388.65",PG TRIPS.
Children and Adult Services,Education,Transport,230008,Contract Hire,08-Jul-16,3151953-b21,"1,482.00",PRESTYS HACKNEY & PRIVATE HIRE TAXIS.
Children and Adult Services,Education,Transport,230008,Contract Hire,08-Jul-16,3151953-G74,"1,159.00",PRESTYS HACKNEY & PRIVATE HIRE TAXIS.
Children and Adult Services,Education,Transport,230007,Contract Hire,08-Jul-16,3152055-46506X,"3,540.42",T MOORE & SON.
Children and Adult Services,Education,Transport,230008,Contract Hire,08-Jul-16,3152101-83JUNE2016,"1,171.00",TRIDENT TAXIS.
Children and Adult Services,Head of Adults,Supplies and Services,338365,Services,08-Jul-16,3151516-45378,833,BACK CARE SOLUTIONS LTD.
Children and Adult Services,Head of Adults,Supplies and Services,304516,Equipment and Materials,08-Jul-16,3151536-4,701,BILL SCOTT TAXIS LTD.
Children and Adult Services,Head of Adults,Transport,230005,Contract Hire,08-Jul-16,3151644-16/09,915,DMG PRIVATE HIRE.
Children and Adult Services,Head of Adults,Supplies and Services,338045,Services,08-Jul-16,3151649-16/17-032B,851.38,DSH
Children and Adult Services,Head of Adults,Supplies and Services,308011,Furniture,08-Jul-16,3151652-582682,"1,154.00",DURHAM FINE FURNITURE.
Children and Adult Services,Planning & Service Strategy,Supplies and Services,338099,Services,08-Jul-16,3151718-HO0032,820,GLEBE CENTRE ENTERPRISES LTD.
Children and Adult Services,Public Health,Third Party Payments,460803,Contract Payments,08-Jul-16,3151596-3980018300,"175,000.00",CO DURHAM & DARLINGTON NHS FOUNDATION TRUST.
Children and Adult Services,Public Health,Third Party Payments,460803,Contract Payments,08-Jul-16,3151622-TVDA00189,"10,000.00",CRUSE BEREAVEMENT CARE.
Children and Adult Services,Public Health,Supplies and Services,364999,Grants to Voluntary Organisations,08-Jul-16,3151784-CREEPROJECT,"2,500.00",JUST FOR WOMEN CENTRE.
Dedicated Schools Grant,Dedicated Schools Grant,Transport,230201,Contract Hire,08-Jul-16,3151505-RI0002510705,808.16,ARVAL UK LTD.
Dedicated Schools Grant,Dedicated Schools Grant,Third Party Payments,425005,Rendered by Voluntary Organisations,08-Jul-16,3151519-BPSI74,"24,605.00",BARBARA PRIESTMAN ACADEMY.
Dedicated Schools Grant,Dedicated Schools Grant,Transfer Payments,510034,School Children,08-Jul-16,3151592-LACPP1617,600,CLEVES CROSS LEARNING TRUST T/A ROSA STREET PRIMARY SCHOOL.
Dedicated Schools Grant,Dedicated Schools Grant,Transfer Payments,510034,School Children,08-Jul-16,3151638-LACPPP1617,600,DENE HOUSE PRIMARY SCHOOL (ACADEMY).
Dedicated Schools Grant,Dedicated Schools Grant,Transfer Payments,510034,School Children,08-Jul-16,3151661-LACPP1617,600,EASINGTON LANE PRIMARY SCHOOL.
Dedicated Schools Grant,Dedicated Schools Grant,Transfer Payments,510034,School Children,08-Jul-16,3151688-LACPP1617,"1,200.00",EXCEL ACADEMY PARTNERSHIP T/A FRAMWELLGATE SCHOOL DURHAM.
Dedicated Schools Grant,Dedicated Schools Grant,Transfer Payments,510034,School Children,08-Jul-16,3151712-LACPP1617,900,GATESHEAD COUNCIL.
Dedicated Schools Grant,Dedicated Schools Grant,Transfer Payments,510034,School Children,08-Jul-16,3151730-LACPP1617,600,GRINDON HALL CHRISTIAN SCHOOL.
Dedicated Schools Grant,Dedicated Schools Grant,Transfer Payments,510034,School Children,08-Jul-16,3151742-LACPP1617,600,HERMITAGE ACADEMY.
Dedicated Schools Grant,Dedicated Schools Grant,Transfer Payments,510034,School Children,08-Jul-16,3151746-LACPP1617,"2,700.00",HOPE WOOD ACADEMY.
Dedicated Schools Grant,Dedicated Schools Grant,Transfer Payments,510034,School Children,08-Jul-16,3151790-LACPP1617,"1,200.00",KING JAMES I ACADEMY.
Dedicated Schools Grant,Dedicated Schools Grant,Transport,230010,Contract Hire,08-Jul-16,3151802-150,981.5,LEE`S TAXIS.
Dedicated Schools Grant,Dedicated Schools Grant,Transfer Payments,510034,School Children,08-Jul-16,3151832-LACPP1617,600,MATTHEW ARNOLD SCHOOL.
Dedicated Schools Grant,Dedicated Schools Grant,Transfer Payments,510034,School Children,08-Jul-16,3151878-LACPPP1617,"2,100.00",NEW COLLEGE ACADEMIES TRUST - CONSETT ACADEMY.
Dedicated Schools Grant,Dedicated Schools Grant,Third Party Payments,410037,Rendered by Other Local Authorities,08-Jul-16,3151880-1800007918694,"14,000.00",NEWCASTLE UPON TYNE CITY COUNCIL.
Dedicated Schools Grant,Dedicated Schools Grant,Transfer Payments,510034,School Children,08-Jul-16,3151887-LACPP1617,900,NORTH DURHAM ACADEMY.
Dedicated Schools Grant,Dedicated Schools Grant,Transfer Payments,510034,School Children,08-Jul-16,3151918-LACPP1617,"3,600.00",PARK VIEW ACADEMY.
Dedicated Schools Grant,Dedicated Schools Grant,Transfer Payments,510034,School Children,08-Jul-16,3151920-LACPP1617,"1,800.00",PARKSIDE SPORTS COLLEGE ACADEMY.
Dedicated Schools Grant,Dedicated Schools Grant,Transfer Payments,510034,School Children,08-Jul-16,3151976-LACPP1617,"1,800.00",RIBBON ACADEMY TRUST.
Dedicated Schools Grant,Dedicated Schools Grant,Transfer Payments,510034,School Children,08-Jul-16,3152025-LACPP1617,600,ST AIDAN`S CATHOLIC ACADEMY.
Dedicated Schools Grant,Dedicated Schools Grant,Transfer Payments,510034,School Children,08-Jul-16,3152029-LACPP1617,"2,100.00",ST BEDES CATHOLIC ACADEMY (LANCHESTER).
Dedicated Schools Grant,Dedicated Schools Grant,Transfer Payments,510034,School Children,08-Jul-16,3152043-LACPP1617,900,STEPHENSON WAY COMMUNITY PRIMARY SCHOOL.
Dedicated Schools Grant,Dedicated Schools Grant,Transfer Payments,510034,School Children,08-Jul-16,3152044-LACPP,900,STOCKTON ON TEES BOROUGH COUNCIL.
Dedicated Schools Grant,Dedicated Schools Grant,Transfer Payments,510034,School Children,08-Jul-16,3152067-LACPP1617,600,TEESDALE EDUCATION TRUST.
Dedicated Schools Grant,Dedicated Schools Grant,Transfer Payments,510034,School Children,08-Jul-16,3152069-LACPP1617,"2,100.00",THE ACADEMY AT SHOTTON HALL.
Dedicated Schools Grant,Dedicated Schools Grant,Transfer Payments,510034,School Children,08-Jul-16,3152074-LACPP1617,600,THE FEDERATION OF ABBEY SCHOOLS ACADEMY TRUST.
Dedicated Schools Grant,Dedicated Schools Grant,Transfer Payments,510034,School Children,08-Jul-16,3152104-LACPP1617,600,TRINITY ACADEMY NEWCASTLE.
Dedicated Schools Grant,Dedicated Schools Grant,Transfer Payments,510034,School Children,08-Jul-16,3152134-LACPP1617,600,WEST PARK ACADEMY.
Dedicated Schools Grant,Dedicated Schools Grant,Transfer Payments,510034,School Children,08-Jul-16,3152137-LACPP1617,600,WHITBURN CHURCH OF ENGLAND ACADEMY.
Dedicated Schools Grant,Dedicated Schools Grant,Transfer Payments,510034,School Children,08-Jul-16,3152139-LACPP1617,900,WITHERSLACK CARE & EDUCATION INITIATIVES.
Dedicated Schools Grant,Dedicated Schools Grant,Transfer Payments,510034,School Children,08-Jul-16,3152143-LACPP1617,900,WOODHAM ACADEMY.
Children and Adult Services,Central Charges (CYPS),Employees,5001,Pay,11-Jul-16,3152172-RES-07-2016-042,"6,000.00",REDACTED - PAYMENT TO INDIVIDUAL
Children and Adult Services,Central Charges (CYPS),Creditors,952258,Creditor-West Durham Cluster,11-Jul-16,3152417-269,"1,235.00",MATT CASE.
Children and Adult Services,Childrens Services,Supplies and Services,384302,Miscellaneous Expenses,11-Jul-16,3152192-SIN030094,"2,406.67",AWARD SCHEME LTD.
Children and Adult Services,Childrens Services,Third Party Payments,425017,Rendered by Voluntary Organisations,11-Jul-16,3152219-071/17,"2,160.00",BUTTERWICK HOSPICE RETAIL LTD.
Children and Adult Services,Childrens Services,Supplies and Services,364352,Grants to Voluntary Organisations,11-Jul-16,3152355-D1IN/00023538,"1,246.18",HOME GROUP LTD.
Children and Adult Services,Childrens Services,Supplies and Services,364352,Grants to Voluntary Organisations,11-Jul-16,3152355-D1IN/00023564,"1,051.58",HOME GROUP LTD.
Children and Adult Services,Childrens Services,Supplies and Services,364352,Grants to Voluntary Organisations,11-Jul-16,3152355-IN/00023563,"1,051.58",HOME GROUP LTD.
Children and Adult Services,Childrens Services,Third Party Payments,440036,Other Third Party Payments,11-Jul-16,3152435-CAS-07-2016-038,659.7,REDACTED - PAYMENT TO INDIVIDUAL
Children and Adult Services,Childrens Services,Third Party Payments,486046,Service Level Agreements,11-Jul-16,3152442-38075,"1,342.80",NATIONAL YOUTH ADVOCACY SERVICE.
Children and Adult Services,Childrens Services,Supplies and Services,338035,Services,11-Jul-16,3152466-22647,600,ONE AWARDS.
Children and Adult Services,Childrens Services,Supplies and Services,364999,Grants to Voluntary Organisations,11-Jul-16,3152474-CAS-06-2016-059,"1,693.00",OXHILL YOUTH CLUB.
Children and Adult Services,Childrens Services,Third Party Payments,425017,Rendered by Voluntary Organisations,11-Jul-16,3152484-27916,"2,208.00",PERCY HEDLEY FOUNDATION.
Children and Adult Services,Childrens Services,Third Party Payments,425017,Rendered by Voluntary Organisations,11-Jul-16,3152484-28316,"2,760.00",PERCY HEDLEY FOUNDATION.
Children and Adult Services,Childrens Services,Premises,120009,Energy Costs,11-Jul-16,3152485-C1476,868.42,PETERLEE TOWN COUNCIL.
Children and Adult Services,Childrens Services,Third Party Payments,425018,Rendered by Voluntary Organisations,11-Jul-16,3152537-IN000531,"16,899.03",S/C 202741 CAMBIAN INTERACT CARE SERVICES LTD.
Children and Adult Services,Childrens Services,Third Party Payments,425018,Rendered by Voluntary Organisations,11-Jul-16,3152537-IN000532,"19,660.51",S/C 202741 CAMBIAN INTERACT CARE SERVICES LTD.
Children and Adult Services,Childrens Services,Third Party Payments,425017,Rendered by Voluntary Organisations,11-Jul-16,3152567-5298,"6,264.00",ST OSWALD`S HOSPICE.
Children and Adult Services,Childrens Services,Supplies and Services,364355,Grants to Voluntary Organisations,11-Jul-16,3152573-D1IN/00023565,"4,707.48",STONHAM HOUSING ASSOCIATION LTD.
Children and Adult Services,Education,Transport,230007,Contract Hire,11-Jul-16,3152238-45457,"2,375.00",CJ GRIERSON T/A GRIERSONS COACHES.
Children and Adult Services,Education,Transport,230008,Contract Hire,11-Jul-16,3152242-4E0420616,"3,360.00",COLIN FRANKS T/A FRANKS COACHES.
Children and Adult Services,Education,Transport,230007,Contract Hire,11-Jul-16,3152297-5182/0616,684,ELLIOTTS OF TRIMDON.
Children and Adult Services,Education,Transport,230008,Contract Hire,11-Jul-16,3152297-E014/0616,"1,518.10",ELLIOTTS OF TRIMDON.
Children and Adult Services,Education,Transport,230008,Contract Hire,11-Jul-16,3152297-E112/0616,"1,292.00",ELLIOTTS OF TRIMDON.
Children and Adult Services,Education,Transport,230006,Contract Hire,11-Jul-16,3152297-F643/0616,732,ELLIOTTS OF TRIMDON.
Children and Adult Services,Education,Transport,230007,Contract Hire,11-Jul-16,3152300-0693,859.37,EN ROUTE TRAVEL.
Children and Adult Services,Education,Transport,230008,Contract Hire,11-Jul-16,3152300-0694,"1,527.22",EN ROUTE TRAVEL.
Children and Adult Services,Education,Supplies and Services,338094,Services,11-Jul-16,3152305-5101175,556,EXCEL ACADEMY PARTNERSHIP T/A FRAMWELLGATE SCHOOL DURHAM.
Children and Adult Services,Education,Transport,230008,Contract Hire,11-Jul-16,3152311-A060(021),585,FERRYHILL VILLAGE TRAVEL.
Children and Adult Services,Education,Transport,230008,Contract Hire,11-Jul-16,3152311-E046(021),"2,501.00",FERRYHILL VILLAGE TRAVEL.
Children and Adult Services,Education,Transport,230008,Contract Hire,11-Jul-16,3152311-N071(031),"3,466.75",FERRYHILL VILLAGE TRAVEL.
Children and Adult Services,Education,Transport,230008,Contract Hire,11-Jul-16,3152311-W131(021),978.5,FERRYHILL VILLAGE TRAVEL.
Children and Adult Services,Education,Transport,230006,Contract Hire,11-Jul-16,3152318-007,"1,480.00",FONACAB DURHAM.
Children and Adult Services,Education,Transport,230007,Contract Hire,11-Jul-16,3152330-18501,"16,381.39",GARNETTS LTD (COACHES).
Children and Adult Services,Education,Transport,230008,Contract Hire,11-Jul-16,3152339-000022,"1,344.00",GP TAXIS.
Children and Adult Services,Education,Transport,230007,Contract Hire,11-Jul-16,3152341-281V,"7,138.00",GRAHAMS MOTOR SERVICES.
Children and Adult Services,Education,Transport,230007,Contract Hire,11-Jul-16,3152392-2225,"12,174.00",LEE`S COACHES LTD.
Children and Adult Services,Education,Transport,230008,Contract Hire,11-Jul-16,3152420-MCD44769,"2,331.00",MCDONALD TRAVEL.
Children and Adult Services,Education,Transport,230008,Contract Hire,11-Jul-16,3152420-MCD44770,"1,216.00",MCDONALD TRAVEL.
Children and Adult Services,Education,Transport,230008,Contract Hire,11-Jul-16,3152432-18B,"1,273.00",MR RAYMOND RENWICK.
Children and Adult Services,Education,Transport,230008,Contract Hire,11-Jul-16,3152432-19A,"1,972.00",MR RAYMOND RENWICK.
Children and Adult Services,Education,Transport,230008,Contract Hire,11-Jul-16,3152433-13,"1,440.00",REDACTED - PAYMENT TO INDIVIDUAL
Children and Adult Services,Education,Transport,230008,Contract Hire,11-Jul-16,3152445-21,"1,530.00",NEIL PASSMOOR T/A NEIL`S TAXI.
Children and Adult Services,Education,Transport,230006,Contract Hire,11-Jul-16,3152486-0457,"2,223.00",PETER`S PRIVATE HIRE/PETER BEST.
Children and Adult Services,Education,Supplies and Services,377015,County Durham Development,11-Jul-16,3152515-INV38377,"3,105.42",RAMSIDE ESTATES LTD T/A RAMSIDE HALL HOTEL.
Children and Adult Services,Education,Transport,230007,Contract Hire,11-Jul-16,3152517-42A,"1,222.27",RAYNERS COACHES.
Children and Adult Services,Education,Transport,230007,Contract Hire,11-Jul-16,3152517-42B,"2,071.57",RAYNERS COACHES.
Children and Adult Services,Education,Transport,230007,Contract Hire,11-Jul-16,3152517-42C,"5,729.07",RAYNERS COACHES.
Children and Adult Services,Education,Transport,230008,Contract Hire,11-Jul-16,3152527-565,"2,128.00",ROAD RUNNERS (NE) LTD.
Children and Adult Services,Education,Transport,230006,Contract Hire,11-Jul-16,3152527-570,"1,026.00",ROAD RUNNERS (NE) LTD.
Children and Adult Services,Education,Transport,230008,Contract Hire,11-Jul-16,3152527-572,"2,090.00",ROAD RUNNERS (NE) LTD.
Children and Adult Services,Education,Transport,230007,Contract Hire,11-Jul-16,3152527-573,722,ROAD RUNNERS (NE) LTD.
Children and Adult Services,Education,Transport,230008,Contract Hire,11-Jul-16,3152527-574,"1,292.00",ROAD RUNNERS (NE) LTD.
Children and Adult Services,Education,Transport,230008,Contract Hire,11-Jul-16,3152527-578,900,ROAD RUNNERS (NE) LTD.
Children and Adult Services,Education,Transport,230008,Contract Hire,11-Jul-16,3152527-580,532,ROAD RUNNERS (NE) LTD.
Children and Adult Services,Education,Transport,230008,Contract Hire,11-Jul-16,3152529-171,"2,043.55",ROBBIE`S PRIVATE HIRE.
Children and Adult Services,Education,Transport,230007,Contract Hire,11-Jul-16,3152530-150596,"5,899.12",ROBERTS TOURS.
Children and Adult Services,Education,Transport,230008,Contract Hire,11-Jul-16,3152548-10,"1,140.00",SHARON`S TAXI.
Children and Adult Services,Education,Supplies and Services,384199,Miscellaneous Expenses,11-Jul-16,3152554-22266,620,SIMPLY STRIPES (THE SIGNMAKERS) LTD.
Children and Adult Services,Education,Transport,230007,Contract Hire,11-Jul-16,3152558-2948,"3,529.25",SNOWDON COACHES.
Children and Adult Services,Education,Transport,230008,Contract Hire,11-Jul-16,3152559-004JUNE2016,"1,500.00",SODA TAXIS.
Children and Adult Services,Education,Transport,230006,Contract Hire,11-Jul-16,3152559-142,874,SODA TAXIS.
Children and Adult Services,Education,Transport,230008,Contract Hire,11-Jul-16,3152559-428,"1,052.80",SODA TAXIS.
Children and Adult Services,Education,Transport,230008,Contract Hire,11-Jul-16,3152564-NUBAAK19632,"1,581.94",SPENNYMOOR TAXIS.
Children and Adult Services,Education,Transport,230008,Contract Hire,11-Jul-16,3152564-NUBJJJC54545,"1,725.39",SPENNYMOOR TAXIS.
Children and Adult Services,Education,Transport,230007,Contract Hire,11-Jul-16,3152568-19981,"1,786.00",STANLEY TRAVEL (NORTH EAST) LTD.
Children and Adult Services,Education,Transport,230007,Contract Hire,11-Jul-16,3152568-19982,"2,100.64",STANLEY TRAVEL (NORTH EAST) LTD.
Children and Adult Services,Education,Transport,230008,Contract Hire,11-Jul-16,3152568-19983,836,STANLEY TRAVEL (NORTH EAST) LTD.
Children and Adult Services,Education,Transport,230006,Contract Hire,11-Jul-16,3152569-5,"1,160.00",STEELYS TAXIS.
Children and Adult Services,Education,Transport,230008,Contract Hire,11-Jul-16,3152569-53,661.57,STEELYS TAXIS.
Children and Adult Services,Education,Transport,230007,Contract Hire,11-Jul-16,3152570-374,"1,914.25",STEPHEN MAUDE LTD T/A MAUDES COACHES.
Children and Adult Services,Education,Transport,230007,Contract Hire,11-Jul-16,3152570-375,"2,105.96",STEPHEN MAUDE LTD T/A MAUDES COACHES.
Children and Adult Services,Education,Transport,230007,Contract Hire,11-Jul-16,3152570-376,"1,906.38",STEPHEN MAUDE LTD T/A MAUDES COACHES.
Children and Adult Services,Education,Transport,230007,Contract Hire,11-Jul-16,3152570-377,"1,407.95",STEPHEN MAUDE LTD T/A MAUDES COACHES.
Children and Adult Services,Education,Income,740298,Other Income,11-Jul-16,3152596-CAS-07-2016-021,"14,712.17",TEESDALE EDUCATION TRUST.
Children and Adult Services,Head of Adults,Third Party Payments,478151,Purchase of Care,11-Jul-16,3152302-9493,"2,567.96",ESSENTIAL CARE & SUPPORT LTD.
Children and Adult Services,Head of Adults,Supplies and Services,384616,Miscellaneous Expenses,11-Jul-16,3152322-SHO03/1617,"3,886.92",FOUR HOUSING GROUP & CARE & REPAIR HANDYPERSON SERVICE.
Children and Adult Services,Head of Adults,Third Party Payments,425020,Rendered by Voluntary Organisations,11-Jul-16,3152456-0000024538,"1,073.88",NORTH EAST AUTISM SOCIETY.
Children and Adult Services,Head of Adults,Third Party Payments,470101,Purchase of Care,11-Jul-16,3152484-27921,"16,841.72",PERCY HEDLEY FOUNDATION.
Children and Adult Services,Head of Adults,Third Party Payments,470101,Purchase of Care,11-Jul-16,3152484-28317,"16,841.72",PERCY HEDLEY FOUNDATION.
Children and Adult Services,Head of Adults,Third Party Payments,470101,Purchase of Care,11-Jul-16,3152484-28319,"16,841.72",PERCY HEDLEY FOUNDATION.
Children and Adult Services,Planning & Service Strategy,Supplies and Services,384999,Miscellaneous Expenses,11-Jul-16,3152336-GO0220,862.5,GLEBE CENTRE ENTERPRISES LTD.
Children and Adult Services,Public Health,Construction Work,908105,Construction work,11-Jul-16,3152364-160601,"2,080.20",INITIAL DEVELOPMENTS (PROPERTIES LTD).
Children and Adult Services,Public Health,Third Party Payments,460803,Contract Payments,11-Jul-16,3152397-0000007741,"466,357.75",LIFELINE PROJECT LTD.
Children and Adult Services,Public Health,Supplies and Services,384155,Miscellaneous Expenses,11-Jul-16,3152453-1000048600,"73,231.04",NHS BUSINESS SERVICES AUTHORITY.
Children and Adult Services,Public Health,Supplies and Services,352001,Conference Expenses,11-Jul-16,3152468-743166-0,"2,985.00",OPP LTD.
Dedicated Schools Grant,Dedicated Schools Grant,Third Party Payments,440080,Other Third Party Payments,11-Jul-16,3152226-54140,"27,280.00",CATCH 22 CHARITY LTD T/A INCLUDE.
Dedicated Schools Grant,Dedicated Schools Grant,Third Party Payments,440080,Other Third Party Payments,11-Jul-16,3152270-60000136,"33,781.00",DERWENTSIDE COLLEGE.
Dedicated Schools Grant,Dedicated Schools Grant,Supplies and Services,304259,Equipment and Materials,11-Jul-16,3152327-139661,"1,032.00",G & S SMIRTHWAITE LTD.
Dedicated Schools Grant,Dedicated Schools Grant,Third Party Payments,440080,Other Third Party Payments,11-Jul-16,3152456-0000024338,"2,817.07",NORTH EAST AUTISM SOCIETY.
Dedicated Schools Grant,Dedicated Schools Grant,Third Party Payments,425005,Rendered by Voluntary Organisations,11-Jul-16,3152457-0000024655,"14,377.60",NORTH EAST AUTISM SOCIETY.
Dedicated Schools Grant,Dedicated Schools Grant,Supplies and Services,304639,Equipment and Materials,11-Jul-16,3152490-2591517454,991,PHONAK UK LTD.
Dedicated Schools Grant,Dedicated Schools Grant,Employees,80025,Agency Staff,11-Jul-16,3152593-1111712,880,TEACHING PERSONNEL LTD.
Dedicated Schools Grant,Dedicated Schools Grant,Supplies and Services,338035,Services,11-Jul-16,3152593-1119940,704,TEACHING PERSONNEL LTD.
Dedicated Schools Grant,Dedicated Schools Grant,Supplies and Services,338035,Services,11-Jul-16,3152593-1122724,880,TEACHING PERSONNEL LTD.
Dedicated Schools Grant,Dedicated Schools Grant,Employees,80025,Agency Staff,11-Jul-16,3152593-1127154,"1,760.00",TEACHING PERSONNEL LTD.
Children and Adult Services,Childrens Services,Third Party Payments,440001,Other Third Party Payments,12-Jul-16,3152663-1115981,893.7,REDACTED - PAYMENT TO INDIVIDUAL
Children and Adult Services,Childrens Services,Third Party Payments,440036,Other Third Party Payments,12-Jul-16,3152698-1116587,659.7,REDACTED - PAYMENT TO INDIVIDUAL
Children and Adult Services,Childrens Services,Third Party Payments,440001,Other Third Party Payments,12-Jul-16,3152910-1116641,702,REDACTED - PAYMENT TO INDIVIDUAL
Children and Adult Services,Childrens Services,Third Party Payments,440029,Other Third Party Payments,12-Jul-16,3152933-1115177,608.89,REDACTED - PAYMENT TO INDIVIDUAL
Children and Adult Services,Childrens Services,Supplies and Services,304999,Equipment and Materials,12-Jul-16,3153380-38715,"1,855.83",CARPETTIME LTD.
Children and Adult Services,Childrens Services,Supplies and Services,364310,Grants to Voluntary Organisations,12-Jul-16,3153511-CAS-07-2016-056,"2,268.00",REDACTED - PAYMENT TO INDIVIDUAL
Children and Adult Services,Childrens Services,Transport,230007,Contract Hire,12-Jul-16,3153530-399A,"1,344.00",MACS TAXIS DURHAM LTD.
Children and Adult Services,Childrens Services,Supplies and Services,384199,Miscellaneous Expenses,12-Jul-16,3153532-0020A,780,MARGOT SKELTON T/A JITTABUGS DURHAM.
Children and Adult Services,Childrens Services,Supplies and Services,384507,Miscellaneous Expenses,12-Jul-16,3153540-CAS-07-2016-045,"1,008.00",REDACTED - PAYMENT TO INDIVIDUAL
Children and Adult Services,Childrens Services,Supplies and Services,384199,Miscellaneous Expenses,12-Jul-16,3153542-5032025,"21,626.20",MIDDLESBROUGH BOROUGH COUNCIL.
Children and Adult Services,Childrens Services,Supplies and Services,384409,Miscellaneous Expenses,12-Jul-16,3153568-4100540702,"1,000.00",NORTH DURHAM YOUTH & COMMUNITY AREA EDUCATION COMMITTEE.
Children and Adult Services,Childrens Services,Supplies and Services,384199,Miscellaneous Expenses,12-Jul-16,3153583-250716,720,PARTY PERFECT NORTH EAST LTD.
Children and Adult Services,Childrens Services,Supplies and Services,364310,Grants to Voluntary Organisations,12-Jul-16,3153644-CAS-07-2016-052,541.32,REDACTED - PAYMENT TO INDIVIDUAL
Children and Adult Services,Childrens Services,Transport,240045,Car Allowances,12-Jul-16,3153651-6017,"62,497.30",SUPPORTIVE SRC LTD.
Children and Adult Services,Childrens Services,Supplies and Services,384199,Miscellaneous Expenses,12-Jul-16,3153667-1254,616.96,TMT BUILDING SERVICES.
Children and Adult Services,Education,Transport,230008,Contract Hire,12-Jul-16,3153326-A220777,"1,697.65",A MURRAY TRAVEL.
Children and Adult Services,Education,Transport,230008,Contract Hire,12-Jul-16,3153329-AA1235,"1,632.10",AA MINIBUS HIRE.
Children and Adult Services,Education,Transport,230008,Contract Hire,12-Jul-16,3153330-6/1/16,"1,283.40",ABA TAXIS.
Children and Adult Services,Education,Transport,230008,Contract Hire,12-Jul-16,3153331-O312,"1,230.00",ABC & OUSTON CABS.
Children and Adult Services,Education,Transport,230008,Contract Hire,12-Jul-16,3153331-O313,"2,223.00",ABC & OUSTON CABS.
Children and Adult Services,Education,Transport,230008,Contract Hire,12-Jul-16,3153331-O314,"1,083.00",ABC & OUSTON CABS.
Children and Adult Services,Education,Transport,230007,Contract Hire,12-Jul-16,3153331-O315,789.6,ABC & OUSTON CABS.
Children and Adult Services,Education,Transport,230008,Contract Hire,12-Jul-16,3153331-O316,"1,026.00",ABC & OUSTON CABS.
Children and Adult Services,Education,Transport,230007,Contract Hire,12-Jul-16,3153335-595,900,AC TAXIS.
Children and Adult Services,Education,Transport,230007,Contract Hire,12-Jul-16,3153346-93,532,ANDY CABS.
Children and Adult Services,Education,Transport,230008,Contract Hire,12-Jul-16,3153346-94,"1,290.00",ANDY CABS.
Children and Adult Services,Education,Transport,230008,Contract Hire,12-Jul-16,3153353-540,"1,319.93",AT TAXIS LTD.
Children and Adult Services,Education,Transport,230007,Contract Hire,12-Jul-16,3153353-541,665,AT TAXIS LTD.
Children and Adult Services,Education,Transport,230013,Contract Hire,12-Jul-16,3153353-542,569.35,AT TAXIS LTD.
Children and Adult Services,Education,Transport,230006,Contract Hire,12-Jul-16,3153353-543,"1,680.00",AT TAXIS LTD.
Children and Adult Services,Education,Transport,230007,Contract Hire,12-Jul-16,3153354-03447,971,ATLAS TAXIS CONSETT.
Children and Adult Services,Education,Transport,230008,Contract Hire,12-Jul-16,3153354-03448,961.2,ATLAS TAXIS CONSETT.
Children and Adult Services,Education,Transport,230008,Contract Hire,12-Jul-16,3153354-03451,"1,071.60",ATLAS TAXIS CONSETT.
Children and Adult Services,Education,Transport,230008,Contract Hire,12-Jul-16,3153356-00010,840,AVENUE TAXIS.
Children and Adult Services,Education,Transport,230008,Contract Hire,12-Jul-16,3153361-543,"1,396.80",BEELINE MINI BUSES.
Children and Adult Services,Education,Transport,230008,Contract Hire,12-Jul-16,3153361-544,"1,432.22",BEELINE MINI BUSES.
Children and Adult Services,Education,Transport,230008,Contract Hire,12-Jul-16,3153362-57,"1,627.38",BEELINE TAXIS.
Children and Adult Services,Education,Transport,230007,Contract Hire,12-Jul-16,3153365-30/JUNE,760,BL TAXIS.
Children and Adult Services,Education,Transport,230007,Contract Hire,12-Jul-16,3153366-50A,"1,036.00",BOBS TAXIS.
Children and Adult Services,Education,Transport,230008,Contract Hire,12-Jul-16,3153408,"1,425.00",D IRVING T/A BJ TAXIS.
Children and Adult Services,Education,Transport,230008,Contract Hire,12-Jul-16,3153498-942,"1,401.44",JDS PRIVATE HIRE DURHAM.
Children and Adult Services,Education,Transport,230008,Contract Hire,12-Jul-16,3153498-943,"1,679.41",JDS PRIVATE HIRE DURHAM.
Children and Adult Services,Education,Transport,230008,Contract Hire,12-Jul-16,3153498-944,"1,317.27",JDS PRIVATE HIRE DURHAM.
Children and Adult Services,Education,Transport,230008,Contract Hire,12-Jul-16,3153498-945,"1,641.79",JDS PRIVATE HIRE DURHAM.
Children and Adult Services,Education,Transport,230009,Contract Hire,12-Jul-16,3153498-946,"1,266.00",JDS PRIVATE HIRE DURHAM.
Children and Adult Services,Education,Transport,230007,Contract Hire,12-Jul-16,3153498-948,900,JDS PRIVATE HIRE DURHAM.
Children and Adult Services,Education,Transport,230007,Contract Hire,12-Jul-16,3153498-950,874,JDS PRIVATE HIRE DURHAM.
Children and Adult Services,Education,Transport,230008,Contract Hire,12-Jul-16,3153498-952,"2,280.00",JDS PRIVATE HIRE DURHAM.
Children and Adult Services,Education,Transport,230006,Contract Hire,12-Jul-16,3153498-953,"2,080.00",JDS PRIVATE HIRE DURHAM.
Children and Adult Services,Education,Transport,230008,Contract Hire,12-Jul-16,3153498-954,"2,470.00",JDS PRIVATE HIRE DURHAM.
Children and Adult Services,Education,Transport,230008,Contract Hire,12-Jul-16,3153498-955,"2,610.00",JDS PRIVATE HIRE DURHAM.
Children and Adult Services,Education,Transport,230007,Contract Hire,12-Jul-16,3153498-956,666,JDS PRIVATE HIRE DURHAM.
Children and Adult Services,Education,Transport,230008,Contract Hire,12-Jul-16,3153498-957,"1,444.00",JDS PRIVATE HIRE DURHAM.
Children and Adult Services,Education,Transport,230009,Contract Hire,12-Jul-16,3153498-958,"1,330.00",JDS PRIVATE HIRE DURHAM.
Children and Adult Services,Education,Transport,230007,Contract Hire,12-Jul-16,3153499-2538,"1,966.50",JEFF ANDERSON COACHES LTD.
Children and Adult Services,Education,Transport,230008,Contract Hire,12-Jul-16,3153501-2016/11,851.2,JM HUMBLE COACH HIRE.
Children and Adult Services,Education,Transport,230008,Contract Hire,12-Jul-16,3153508-90,"2,312.52",JOHNS TAXIS (CHESTER LE STREET).
Children and Adult Services,Education,Transport,230008,Contract Hire,12-Jul-16,3153514-103,"1,448.00",KEN CHAMBERS T/A SHILDON TRANSPORT LTD.
Children and Adult Services,Education,Transport,230008,Contract Hire,12-Jul-16,3153526-40,"1,040.00",LUMLEY TAXIS.
Children and Adult Services,Education,Transport,230006,Contract Hire,12-Jul-16,3153549-107,"1,008.00",MR DAVID CULLEN.
Children and Adult Services,Education,Transport,235073,Public Transport,12-Jul-16,3153555-3583662-001A,510.96,REDACTED - PAYMENT TO INDIVIDUAL
Children and Adult Services,Education,Transport,230008,Contract Hire,12-Jul-16,3153584-DCC0082016,"1,520.00",PB PRIVATE HIRE.
Children and Adult Services,Education,Transport,230006,Contract Hire,12-Jul-16,3153590-0458,"2,137.50",PETER`S PRIVATE HIRE/PETER BEST.
Children and Adult Services,Education,Transport,230008,Contract Hire,12-Jul-16,3153590-0459,"1,292.00",PETER`S PRIVATE HIRE/PETER BEST.
Children and Adult Services,Education,Transport,230008,Contract Hire,12-Jul-16,3153590-0460,"1,805.00",PETER`S PRIVATE HIRE/PETER BEST.
Children and Adult Services,Education,Transport,230006,Contract Hire,12-Jul-16,3153590-0461,570,PETER`S PRIVATE HIRE/PETER BEST.
Children and Adult Services,Education,Transport,230007,Contract Hire,12-Jul-16,3153598-317,"1,531.59",PREMIER PRIVATE HIRE.
Children and Adult Services,Education,Transport,230007,Contract Hire,12-Jul-16,3153608-1133,"3,040.00",PYGALL COACH HIRE.
Children and Adult Services,Education,Transport,230007,Contract Hire,12-Jul-16,3153608-1134,"2,375.00",PYGALL COACH HIRE.
Children and Adult Services,Education,Transport,230007,Contract Hire,12-Jul-16,3153608-1135,"5,440.00",PYGALL COACH HIRE.
Children and Adult Services,Education,Transport,230007,Contract Hire,12-Jul-16,3153608-1136,"3,325.00",PYGALL COACH HIRE.
Children and Adult Services,Education,Transport,230007,Contract Hire,12-Jul-16,3153608-1137,"2,536.50",PYGALL COACH HIRE.
Children and Adult Services,Education,Transport,230007,Contract Hire,12-Jul-16,3153608-1138,"2,375.00",PYGALL COACH HIRE.
Children and Adult Services,Education,Transport,230008,Contract Hire,12-Jul-16,3153622-SA064,608,S & A TAXIS.
Children and Adult Services,Education,Transport,230007,Contract Hire,12-Jul-16,3153623-3080/24,"1,534.44",S & S TRAVEL LTD.
Children and Adult Services,Education,Transport,230008,Contract Hire,12-Jul-16,3153623-SO11/43,"1,726.34",S & S TRAVEL LTD.
Children and Adult Services,Education,Transport,230008,Contract Hire,12-Jul-16,3153623-W075/43,"1,706.20",S & S TRAVEL LTD.
Children and Adult Services,Education,Transport,230008,Contract Hire,12-Jul-16,3153623-WO52/32,"2,578.11",S & S TRAVEL LTD.
Children and Adult Services,Education,Transport,230008,Contract Hire,12-Jul-16,3153623-WO67/10,"2,033.50",S & S TRAVEL LTD.
Children and Adult Services,Education,Transport,230008,Contract Hire,12-Jul-16,3153623-WO85/10,"1,710.00",S & S TRAVEL LTD.
Children and Adult Services,Education,Transport,230008,Contract Hire,12-Jul-16,3153641-19985,"1,164.70",STANLEY TRAVEL (NORTH EAST) LTD.
Children and Adult Services,Education,Transport,230008,Contract Hire,12-Jul-16,3153641-19988,"1,271.10",STANLEY TRAVEL (NORTH EAST) LTD.
Children and Adult Services,Education,Transport,230007,Contract Hire,12-Jul-16,3153641-19991,570,STANLEY TRAVEL (NORTH EAST) LTD.
Children and Adult Services,Education,Transport,230008,Contract Hire,12-Jul-16,3153641-19994,684,STANLEY TRAVEL (NORTH EAST) LTD.
Children and Adult Services,Education,Transport,230007,Contract Hire,12-Jul-16,3153641-19997,520.6,STANLEY TRAVEL (NORTH EAST) LTD.
Children and Adult Services,Education,Transport,230007,Contract Hire,12-Jul-16,3153641-19999,666,STANLEY TRAVEL (NORTH EAST) LTD.
Children and Adult Services,Education,Transport,230008,Contract Hire,12-Jul-16,3153641-20000,"1,116.00",STANLEY TRAVEL (NORTH EAST) LTD.
Children and Adult Services,Education,Transport,230008,Contract Hire,12-Jul-16,3153642-DCC010/A045,"1,824.00",STEPHEN COXON.
Children and Adult Services,Education,Supplies and Services,384906,Miscellaneous Expenses,12-Jul-16,3153647-501,630,SUBARASHII LTD.
Children and Adult Services,Education,Transport,230006,Contract Hire,12-Jul-16,3153652-1342,665,TALBOTS TAXIS.
Children and Adult Services,Education,Transport,230008,Contract Hire,12-Jul-16,3153652-1343,962,TALBOTS TAXIS.
Children and Adult Services,Education,Transport,230008,Contract Hire,12-Jul-16,3153652-1346,"2,165.00",TALBOTS TAXIS.
Children and Adult Services,Education,Transport,230008,Contract Hire,12-Jul-16,3153653-B809,"1,730.88",TALBOTS TRAVEL LTD.
Children and Adult Services,Education,Transport,230008,Contract Hire,12-Jul-16,3153653-B813,"1,147.70",TALBOTS TRAVEL LTD.
Children and Adult Services,Education,Transport,230008,Contract Hire,12-Jul-16,3153654-06/2016/001,"1,398.78",TARNS TAXIS LTD.
Children and Adult Services,Education,Transport,230009,Contract Hire,12-Jul-16,3153654-06/2016/004,950,TARNS TAXIS LTD.
Children and Adult Services,Head of Adults,Supplies and Services,384999,Miscellaneous Expenses,12-Jul-16,3153481-CAS-06-2016-239,"4,575.91",HAMMONS SOLICITORS.
Children and Adult Services,Planning & Service Strategy,Supplies and Services,342051,Computers and Communications,12-Jul-16,3153580-11678,"10,000.00",OXFORD COMPUTER CONSULTANTS LTD.
Children and Adult Services,Planning & Service Strategy,Intangible Assets,917003,Software capitalised implementation fees,12-Jul-16,3153580-11826,"4,510.00",OXFORD COMPUTER CONSULTANTS LTD.
Children and Adult Services,Planning & Service Strategy,Intangible Assets,917003,Software capitalised implementation fees,12-Jul-16,3153580-11827,"2,665.00",OXFORD COMPUTER CONSULTANTS LTD.
Dedicated Schools Grant,Dedicated Schools Grant,Third Party Payments,410037,Rendered by Other Local Authorities,12-Jul-16,3153392-SP/DCC170516,"1,767.04",CITY OF SUNDERLAND.
Dedicated Schools Grant,Dedicated Schools Grant,Third Party Payments,410037,Rendered by Other Local Authorities,12-Jul-16,3153392-SP/DCC171215,"2,467.19",CITY OF SUNDERLAND.
Dedicated Schools Grant,Dedicated Schools Grant,Transport,230010,Contract Hire,12-Jul-16,3153553-160632,"1,585.00",MR STEVEN PRATT T/A PRATTS TAXIS LTD.
Dedicated Schools Grant,Dedicated Schools Grant,Third Party Payments,440080,Other Third Party Payments,12-Jul-16,3153569-0000024389,"2,817.07",NORTH EAST AUTISM SOCIETY.
Dedicated Schools Grant,Dedicated Schools Grant,Third Party Payments,440080,Other Third Party Payments,12-Jul-16,3153569-0000024429,"6,532.86",NORTH EAST AUTISM SOCIETY.
Dedicated Schools Grant,Dedicated Schools Grant,Third Party Payments,440080,Other Third Party Payments,12-Jul-16,3153569-0000024430,"6,532.85",NORTH EAST AUTISM SOCIETY.
Dedicated Schools Grant,Dedicated Schools Grant,Transport,230010,Contract Hire,12-Jul-16,3153641-19987,"1,204.60",STANLEY TRAVEL (NORTH EAST) LTD.
Children and Adult Services,Central Charges (CYPS),Creditors,952123,Creditor-Governorth,13-Jul-16,304121-1/56037,625,HALL GARTH HOTEL.
Children and Adult Services,Central Charges (CYPS),Creditors,952258,Creditor-West Durham Cluster,13-Jul-16,3154044-COPELANDROAD,780,BETH LOUGHRAN.
Children and Adult Services,Central Charges (CYPS),Creditors,952258,Creditor-West Durham Cluster,13-Jul-16,3154204-241739,"3,158.60",KEITH N TAYLOR.
Children and Adult Services,Central/Other,Debtors,930024,Debtor-free nursing care,13-Jul-16,3153696-2320667,864,ALLIANCE CARE.
Children and Adult Services,Central/Other,Debtors,930024,Debtor-free nursing care,13-Jul-16,3153729-2318984,"1,002.45",BISHOPSGATE LODGE.
Children and Adult Services,Central/Other,Debtors,930024,Debtor-free nursing care,13-Jul-16,3153757-2321065,608,DEFOE COURT.
Children and Adult Services,Central/Other,Debtors,930024,Debtor-free nursing care,13-Jul-16,3153771-2323356,"1,280.00",ELIZABETH FLEMMING CARE HOME.
Children and Adult Services,Central/Other,Debtors,930024,Debtor-free nursing care,13-Jul-16,3153792-2323527,"2,240.00",GAINFORD CARE HOMES LTD.
Children and Adult Services,Central/Other,Debtors,930024,Debtor-free nursing care,13-Jul-16,3153816-2323514,"1,968.00",HOWLISH HALL NURSING HOME.
Children and Adult Services,Central/Other,Debtors,930024,Debtor-free nursing care,13-Jul-16,3153823-2320290,616.56,KIMBLESWORTH NURSING HOME.
Children and Adult Services,Central/Other,Debtors,930024,Debtor-free nursing care,13-Jul-16,3153947-2319325,736,ST ANDREWS MPS LTD.
Children and Adult Services,Central/Other,Debtors,930024,Debtor-free nursing care,13-Jul-16,3153950-2318928,720,ST HELENS NURSING HOME.
Children and Adult Services,Central/Other,Debtors,930024,Debtor-free nursing care,13-Jul-16,3153950-2323500,544,ST HELENS NURSING HOME.
Children and Adult Services,Central/Other,Debtors,930024,Debtor-free nursing care,13-Jul-16,3153952-2323555,992,ST MARGARETS NURSING HOME.
Children and Adult Services,Central/Other,Debtors,930024,Debtor-free nursing care,13-Jul-16,3153958-2323140,"1,200.00",STANLEY PARK CARE CENTRE.
Children and Adult Services,Central/Other,Debtors,930024,Debtor-free nursing care,13-Jul-16,3153975-2319118,992,THE COUNTY DURHAM CHESHIRE HOME.
Children and Adult Services,Central/Other,Debtors,930024,Debtor-free nursing care,13-Jul-16,3153996-2319059,512,WEST LODGE HOMES.
Children and Adult Services,Childrens Services,Supplies and Services,364999,Grants to Voluntary Organisations,13-Jul-16,304104-CAS-06-2016-040,"1,875.00",CIRCLE CREW FOR CHANGE LTD.
Children and Adult Services,Childrens Services,Supplies and Services,364352,Grants to Voluntary Organisations,13-Jul-16,304105-922,700,CITY OF SUNDERLAND YMCA LTD.
Children and Adult Services,Childrens Services,Supplies and Services,364999,Grants to Voluntary Organisations,13-Jul-16,304114-CAS-06-2016-045,"1,935.00",EASINGTON YOUTH & COMMUNITY COMMITTEE.
Children and Adult Services,Childrens Services,Third Party Payments,486044,Service Level Agreements,13-Jul-16,3154088-3980018263,"3,003.00",CO DURHAM & DARLINGTON NHS FOUNDATION TRUST.
Children and Adult Services,Childrens Services,Supplies and Services,338043,Services,13-Jul-16,3154173-006549BALANCE,915,HATHAWAYS THE LAW FIRM.
Children and Adult Services,Childrens Services,Supplies and Services,364355,Grants to Voluntary Organisations,13-Jul-16,3154180-D1IN/00023054,"3,521.58",HOME GROUP LTD.
Children and Adult Services,Childrens Services,Supplies and Services,384302,Miscellaneous Expenses,13-Jul-16,3154210-KW39636/5,"2,100.00",KINGSWOOD LEARNING & LEISURE GROUP LTD.
Children and Adult Services,Childrens Services,Premises,125009,Rents,13-Jul-16,3154213-6111,"15,884.00",LANGLEY MOOR B3 LTD.
Children and Adult Services,Childrens Services,Supplies and Services,384302,Miscellaneous Expenses,13-Jul-16,3154258-CAS-07-2016-065,906.15,REDACTED - PAYMENT TO INDIVIDUAL
Children and Adult Services,Childrens Services,Employees,80025,Agency Staff,13-Jul-16,3154299-26763,"1,200.00",PK EDUCATION.
Children and Adult Services,Childrens Services,Employees,80025,Agency Staff,13-Jul-16,3154299-26764,910,PK EDUCATION.
Children and Adult Services,Childrens Services,Supplies and Services,384302,Miscellaneous Expenses,13-Jul-16,3154304-CAS-07-2016-064,"1,047.85",RAB OUTDOOR EDUCATION LTD.
Children and Adult Services,Childrens Services,Transport,235073,Public Transport,13-Jul-16,3154393-001320,800,WAYSIDE TAXIS.
Children and Adult Services,Education,Transport,235073,Public Transport,13-Jul-16,304117-343447-006,502.18,REDACTED - PAYMENT TO INDIVIDUAL
Children and Adult Services,Education,Supplies and Services,338027,Services,13-Jul-16,3154023-AM/EDS/02,"3,900.00",ANDREW MCQUIGGAN.
Children and Adult Services,Education,Income,740298,Other Income,13-Jul-16,3154127-CAS-07-2016-073,"23,582.03",EASINGTON ACADEMY.
Children and Adult Services,Education,Income,740298,Other Income,13-Jul-16,3154136-CAS-07-2016-072,"11,529.47",EXCEL ACADEMY PARTNERSHIP T/A FRAMWELLGATE SCHOOL DURHAM.
Children and Adult Services,Education,Third Party Payments,440999,Other Third Party Payments,13-Jul-16,3154143-7,"3,680.00",FIRST POINT TRAINING T/A POSITIVE DIRECTIONS.
Children and Adult Services,Education,Income,740298,Other Income,13-Jul-16,3154287-CAS-07-2016-071,"52,687.75",PARK VIEW ACADEMY.
Children and Adult Services,Head of Adults,Supplies and Services,328041,Clothing Uniforms and Laundry,13-Jul-16,304096-1042/001/0003-3,"4,709.25",ACCENT GROUP.
Children and Adult Services,Head of Adults,Third Party Payments,478101,Purchase of Care,13-Jul-16,304190-2320426,"1,255.40",REDACTED - PAYMENT TO INDIVIDUAL
Children and Adult Services,Head of Adults,Third Party Payments,470101,Purchase of Care,13-Jul-16,3153689-2321742,"6,031.16",3 RED ADMIRAL COURT.
Children and Adult Services,Head of Adults,Third Party Payments,470101,Purchase of Care,13-Jul-16,3153690-2322140,"6,397.60",368 THE RIDGE.
Children and Adult Services,Head of Adults,Third Party Payments,470101,Purchase of Care,13-Jul-16,3153691-2319475,"2,059.56",A CHARLES THOMAS (CARE) LTD.
Children and Adult Services,Head of Adults,Third Party Payments,470101,Purchase of Care,13-Jul-16,3153691-2319476,"2,059.56",A CHARLES THOMAS (CARE) LTD.
Children and Adult Services,Head of Adults,Third Party Payments,470101,Purchase of Care,13-Jul-16,3153691-2319477,"2,059.56",A CHARLES THOMAS (CARE) LTD.
Children and Adult Services,Head of Adults,Third Party Payments,470101,Purchase of Care,13-Jul-16,3153691-2319478,"1,250.44",A CHARLES THOMAS (CARE) LTD.
Children and Adult Services,Head of Adults,Third Party Payments,470101,Purchase of Care,13-Jul-16,3153691-2319479,"2,059.56",A CHARLES THOMAS (CARE) LTD.
Children and Adult Services,Head of Adults,Third Party Payments,470101,Purchase of Care,13-Jul-16,3153691-2319480,"2,059.56",A CHARLES THOMAS (CARE) LTD.
Children and Adult Services,Head of Adults,Third Party Payments,470101,Purchase of Care,13-Jul-16,3153691-2319482,"2,059.56",A CHARLES THOMAS (CARE) LTD.
Children and Adult Services,Head of Adults,Third Party Payments,470101,Purchase of Care,13-Jul-16,3153691-2319483,"2,059.56",A CHARLES THOMAS (CARE) LTD.
Children and Adult Services,Head of Adults,Third Party Payments,470101,Purchase of Care,13-Jul-16,3153691-2319484,"2,059.56",A CHARLES THOMAS (CARE) LTD.
Children and Adult Services,Head of Adults,Third Party Payments,470101,Purchase of Care,13-Jul-16,3153691-2319485,"2,059.56",A CHARLES THOMAS (CARE) LTD.
Children and Adult Services,Head of Adults,Third Party Payments,470101,Purchase of Care,13-Jul-16,3153691-2319486,"2,059.56",A CHARLES THOMAS (CARE) LTD.
Children and Adult Services,Head of Adults,Third Party Payments,470101,Purchase of Care,13-Jul-16,3153691-2319487,"2,059.56",A CHARLES THOMAS (CARE) LTD.
Children and Adult Services,Head of Adults,Third Party Payments,470101,Purchase of Care,13-Jul-16,3153691-2319488,"2,059.56",A CHARLES THOMAS (CARE) LTD.
Children and Adult Services,Head of Adults,Third Party Payments,470101,Purchase of Care,13-Jul-16,3153691-2319489,"2,059.56",A CHARLES THOMAS (CARE) LTD.
Children and Adult Services,Head of Adults,Third Party Payments,470101,Purchase of Care,13-Jul-16,3153691-2319490,"2,059.56",A CHARLES THOMAS (CARE) LTD.
Children and Adult Services,Head of Adults,Third Party Payments,470101,Purchase of Care,13-Jul-16,3153691-2319491,"2,059.56",A CHARLES THOMAS (CARE) LTD.
Children and Adult Services,Head of Adults,Third Party Payments,470101,Purchase of Care,13-Jul-16,3153691-2319492,"2,059.56",A CHARLES THOMAS (CARE) LTD.
Children and Adult Services,Head of Adults,Third Party Payments,470101,Purchase of Care,13-Jul-16,3153691-2319493,"2,059.56",A CHARLES THOMAS (CARE) LTD.
Children and Adult Services,Head of Adults,Third Party Payments,470101,Purchase of Care,13-Jul-16,3153691-2319494,"2,059.56",A CHARLES THOMAS (CARE) LTD.
Children and Adult Services,Head of Adults,Third Party Payments,470101,Purchase of Care,13-Jul-16,3153691-2323274,"8,171.73",A CHARLES THOMAS (CARE) LTD.
Children and Adult Services,Head of Adults,Third Party Payments,474101,Purchase of Care,13-Jul-16,3153692-2321038,"2,447.40",ABBEYMOOR CLINIC.
Children and Adult Services,Head of Adults,Third Party Payments,470101,Purchase of Care,13-Jul-16,3153692-2321039,"2,000.00",ABBEYMOOR CLINIC.
Children and Adult Services,Head of Adults,Third Party Payments,470101,Purchase of Care,13-Jul-16,3153692-2321040,"2,100.00",ABBEYMOOR CLINIC.
Children and Adult Services,Head of Adults,Third Party Payments,474101,Purchase of Care,13-Jul-16,3153692-2321041,"2,447.40",ABBEYMOOR CLINIC.
Children and Adult Services,Head of Adults,Third Party Payments,474101,Purchase of Care,13-Jul-16,3153692-2321042,"2,848.00",ABBEYMOOR CLINIC.
Children and Adult Services,Head of Adults,Third Party Payments,474101,Purchase of Care,13-Jul-16,3153692-2321043,"2,848.00",ABBEYMOOR CLINIC.
Children and Adult Services,Head of Adults,Third Party Payments,474101,Purchase of Care,13-Jul-16,3153692-2321044,"2,303.28",ABBEYMOOR CLINIC.
Children and Adult Services,Head of Adults,Third Party Payments,470101,Purchase of Care,13-Jul-16,3153693-2322194,"1,949.24",ABBEYVALE.
Children and Adult Services,Head of Adults,Third Party Payments,471101,Purchase of Care,13-Jul-16,3153693-2322196,"2,026.40",ABBEYVALE.
Children and Adult Services,Head of Adults,Third Party Payments,470101,Purchase of Care,13-Jul-16,3153693-2322197,556.92,ABBEYVALE.
Children and Adult Services,Head of Adults,Third Party Payments,471101,Purchase of Care,13-Jul-16,3153693-2322198,"2,026.40",ABBEYVALE.
Children and Adult Services,Head of Adults,Third Party Payments,470101,Purchase of Care,13-Jul-16,3153693-2322199,"1,949.24",ABBEYVALE.
Children and Adult Services,Head of Adults,Third Party Payments,470101,Purchase of Care,13-Jul-16,3153693-2322200,"1,949.24",ABBEYVALE.
Children and Adult Services,Head of Adults,Third Party Payments,471101,Purchase of Care,13-Jul-16,3153693-2322201,"2,026.40",ABBEYVALE.
Children and Adult Services,Head of Adults,Third Party Payments,470101,Purchase of Care,13-Jul-16,3153693-2322202,"1,949.24",ABBEYVALE.
Children and Adult Services,Head of Adults,Third Party Payments,470101,Purchase of Care,13-Jul-16,3153693-2322203,"1,949.24",ABBEYVALE.
Children and Adult Services,Head of Adults,Third Party Payments,471101,Purchase of Care,13-Jul-16,3153693-2322204,"2,026.40",ABBEYVALE.
Children and Adult Services,Head of Adults,Third Party Payments,470101,Purchase of Care,13-Jul-16,3153693-2322205,"1,949.24",ABBEYVALE.
Children and Adult Services,Head of Adults,Third Party Payments,471101,Purchase of Care,13-Jul-16,3153693-2322206,"2,026.40",ABBEYVALE.
Children and Adult Services,Head of Adults,Third Party Payments,470101,Purchase of Care,13-Jul-16,3153693-2322207,"1,949.24",ABBEYVALE.
Children and Adult Services,Head of Adults,Third Party Payments,470101,Purchase of Care,13-Jul-16,3153693-2322208,"1,390.00",ABBEYVALE.
Children and Adult Services,Head of Adults,Third Party Payments,470101,Purchase of Care,13-Jul-16,3153693-2322209,"1,949.24",ABBEYVALE.
Children and Adult Services,Head of Adults,Third Party Payments,471101,Purchase of Care,13-Jul-16,3153693-2322210,"2,026.40",ABBEYVALE.
Children and Adult Services,Head of Adults,Third Party Payments,471101,Purchase of Care,13-Jul-16,3153693-2322211,"1,013.20",ABBEYVALE.
Children and Adult Services,Head of Adults,Third Party Payments,470101,Purchase of Care,13-Jul-16,3153693-2322212,"2,500.00",ABBEYVALE.
Children and Adult Services,Head of Adults,Third Party Payments,470101,Purchase of Care,13-Jul-16,3153693-2322213,"1,949.24",ABBEYVALE.
Children and Adult Services,Head of Adults,Third Party Payments,470101,Purchase of Care,13-Jul-16,3153693-2322214,"1,949.24",ABBEYVALE.
Children and Adult Services,Head of Adults,Third Party Payments,471101,Purchase of Care,13-Jul-16,3153693-2322215,"2,026.40",ABBEYVALE.
Children and Adult Services,Head of Adults,Third Party Payments,471101,Purchase of Care,13-Jul-16,3153693-2322217,"2,026.40",ABBEYVALE.
Children and Adult Services,Head of Adults,Third Party Payments,471101,Purchase of Care,13-Jul-16,3153693-2322218,"2,539.28",ABBEYVALE.
Children and Adult Services,Head of Adults,Third Party Payments,470101,Purchase of Care,13-Jul-16,3153693-2322219,"1,949.24",ABBEYVALE.
Children and Adult Services,Head of Adults,Third Party Payments,471101,Purchase of Care,13-Jul-16,3153693-2322220,"2,026.40",ABBEYVALE.
Children and Adult Services,Head of Adults,Third Party Payments,470101,Purchase of Care,13-Jul-16,3153693-2322221,"1,949.24",ABBEYVALE.
Children and Adult Services,Head of Adults,Third Party Payments,470101,Purchase of Care,13-Jul-16,3153693-2322222,"2,500.00",ABBEYVALE.
Children and Adult Services,Head of Adults,Third Party Payments,470101,Purchase of Care,13-Jul-16,3153693-2322223,"1,949.24",ABBEYVALE.
Children and Adult Services,Head of Adults,Third Party Payments,471101,Purchase of Care,13-Jul-16,3153693-2323324,"27,971.03",ABBEYVALE.
Children and Adult Services,Head of Adults,Third Party Payments,471101,Purchase of Care,13-Jul-16,3153694-2320045,"2,026.40",ACORN GRANGE NURSING HOME.
Children and Adult Services,Head of Adults,Third Party Payments,471101,Purchase of Care,13-Jul-16,3153694-2320047,"2,026.40",ACORN GRANGE NURSING HOME.
Children and Adult Services,Head of Adults,Third Party Payments,470101,Purchase of Care,13-Jul-16,3153694-2320048,"1,949.24",ACORN GRANGE NURSING HOME.
Children and Adult Services,Head of Adults,Third Party Payments,471101,Purchase of Care,13-Jul-16,3153694-2320049,"1,013.20",ACORN GRANGE NURSING HOME.
Children and Adult Services,Head of Adults,Third Party Payments,470101,Purchase of Care,13-Jul-16,3153694-2320050,765.77,ACORN GRANGE NURSING HOME.
Children and Adult Services,Head of Adults,Third Party Payments,471101,Purchase of Care,13-Jul-16,3153694-2320051,"2,026.40",ACORN GRANGE NURSING HOME.
Children and Adult Services,Head of Adults,Third Party Payments,471101,Purchase of Care,13-Jul-16,3153694-2320053,"2,026.40",ACORN GRANGE NURSING HOME.
Children and Adult Services,Head of Adults,Third Party Payments,470101,Purchase of Care,13-Jul-16,3153694-2320054,"1,949.24",ACORN GRANGE NURSING HOME.
Children and Adult Services,Head of Adults,Third Party Payments,471101,Purchase of Care,13-Jul-16,3153694-2320055,"2,026.40",ACORN GRANGE NURSING HOME.
Children and Adult Services,Head of Adults,Third Party Payments,471101,Purchase of Care,13-Jul-16,3153694-2320056,"2,026.40",ACORN GRANGE NURSING HOME.
Children and Adult Services,Head of Adults,Third Party Payments,471101,Purchase of Care,13-Jul-16,3153694-2320057,"2,026.40",ACORN GRANGE NURSING HOME.
Children and Adult Services,Head of Adults,Third Party Payments,471101,Purchase of Care,13-Jul-16,3153694-2320059,"2,026.40",ACORN GRANGE NURSING HOME.
Children and Adult Services,Head of Adults,Third Party Payments,470101,Purchase of Care,13-Jul-16,3153694-2320060,"1,949.24",ACORN GRANGE NURSING HOME.
Children and Adult Services,Head of Adults,Third Party Payments,471101,Purchase of Care,13-Jul-16,3153694-2320061,"1,013.20",ACORN GRANGE NURSING HOME.
Children and Adult Services,Head of Adults,Third Party Payments,471101,Purchase of Care,13-Jul-16,3153694-2320062,"2,026.40",ACORN GRANGE NURSING HOME.
Children and Adult Services,Head of Adults,Third Party Payments,470101,Purchase of Care,13-Jul-16,3153694-2320063,"1,949.24",ACORN GRANGE NURSING HOME.
Children and Adult Services,Head of Adults,Third Party Payments,471101,Purchase of Care,13-Jul-16,3153694-2320064,"2,026.40",ACORN GRANGE NURSING HOME.
Children and Adult Services,Head of Adults,Third Party Payments,471101,Purchase of Care,13-Jul-16,3153694-2320065,"2,026.40",ACORN GRANGE NURSING HOME.
Children and Adult Services,Head of Adults,Third Party Payments,471101,Purchase of Care,13-Jul-16,3153694-2320066,"2,026.40",ACORN GRANGE NURSING HOME.
Children and Adult Services,Head of Adults,Third Party Payments,470101,Purchase of Care,13-Jul-16,3153694-2320068,"1,949.24",ACORN GRANGE NURSING HOME.
Children and Adult Services,Head of Adults,Third Party Payments,471101,Purchase of Care,13-Jul-16,3153694-2320069,"2,026.40",ACORN GRANGE NURSING HOME.
Children and Adult Services,Head of Adults,Third Party Payments,471101,Purchase of Care,13-Jul-16,3153694-2320070,"2,026.40",ACORN GRANGE NURSING HOME.
Children and Adult Services,Head of Adults,Third Party Payments,471101,Purchase of Care,13-Jul-16,3153694-2320071,"2,026.40",ACORN GRANGE NURSING HOME.
Children and Adult Services,Head of Adults,Third Party Payments,470101,Purchase of Care,13-Jul-16,3153694-2320072,"1,949.24",ACORN GRANGE NURSING HOME.
Children and Adult Services,Head of Adults,Third Party Payments,470101,Purchase of Care,13-Jul-16,3153694-2320073,"1,949.24",ACORN GRANGE NURSING HOME.
Children and Adult Services,Head of Adults,Third Party Payments,470101,Purchase of Care,13-Jul-16,3153694-2320074,"1,949.24",ACORN GRANGE NURSING HOME.
Children and Adult Services,Head of Adults,Third Party Payments,471101,Purchase of Care,13-Jul-16,3153694-2320075,"2,026.40",ACORN GRANGE NURSING HOME.
Children and Adult Services,Head of Adults,Third Party Payments,471101,Purchase of Care,13-Jul-16,3153694-2320076,"2,026.40",ACORN GRANGE NURSING HOME.
Children and Adult Services,Head of Adults,Third Party Payments,471101,Purchase of Care,13-Jul-16,3153694-2320077,"2,026.40",ACORN GRANGE NURSING HOME.
Children and Adult Services,Head of Adults,Third Party Payments,470101,Purchase of Care,13-Jul-16,3153694-2320078,"1,949.24",ACORN GRANGE NURSING HOME.
Children and Adult Services,Head of Adults,Third Party Payments,470101,Purchase of Care,13-Jul-16,3153694-2323167,556.93,ACORN GRANGE NURSING HOME.
Children and Adult Services,Head of Adults,Third Party Payments,470101,Purchase of Care,13-Jul-16,3153694-2323295,"1,949.24",ACORN GRANGE NURSING HOME.
Children and Adult Services,Head of Adults,Third Party Payments,471101,Purchase of Care,13-Jul-16,3153695-2322969,"1,815.60",AILWYN HALL RESIDENTIAL CARE HOME.
Children and Adult Services,Head of Adults,Third Party Payments,470101,Purchase of Care,13-Jul-16,3153696-2320639,500.35,ALLIANCE CARE.
Children and Adult Services,Head of Adults,Third Party Payments,470101,Purchase of Care,13-Jul-16,3153696-2320640,"2,071.88",ALLIANCE CARE.
Children and Adult Services,Head of Adults,Third Party Payments,470101,Purchase of Care,13-Jul-16,3153696-2320641,"1,536.76",ALLIANCE CARE.
Children and Adult Services,Head of Adults,Third Party Payments,470101,Purchase of Care,13-Jul-16,3153696-2320642,"2,071.88",ALLIANCE CARE.
Children and Adult Services,Head of Adults,Third Party Payments,470101,Purchase of Care,13-Jul-16,3153696-2320643,"1,912.44",ALLIANCE CARE.
Children and Adult Services,Head of Adults,Debtors,930135,Debtor Residential Care - IC+ Rehabilitation,13-Jul-16,3153696-2320644,"2,010.95",ALLIANCE CARE.
Children and Adult Services,Head of Adults,Third Party Payments,470101,Purchase of Care,13-Jul-16,3153696-2320645,"1,471.11",ALLIANCE CARE.
Children and Adult Services,Head of Adults,Third Party Payments,470101,Purchase of Care,13-Jul-16,3153696-2320646,"1,366.32",ALLIANCE CARE.
Children and Adult Services,Head of Adults,Third Party Payments,470101,Purchase of Care,13-Jul-16,3153696-2320648,"1,397.55",ALLIANCE CARE.
Children and Adult Services,Head of Adults,Debtors,930135,Debtor Residential Care - IC+ Rehabilitation,13-Jul-16,3153696-2320649,"1,970.92",ALLIANCE CARE.
Children and Adult Services,Head of Adults,Third Party Payments,474101,Purchase of Care,13-Jul-16,3153696-2320650,"2,156.96",ALLIANCE CARE.
Children and Adult Services,Head of Adults,Third Party Payments,470101,Purchase of Care,13-Jul-16,3153696-2320652,"2,071.88",ALLIANCE CARE.
Children and Adult Services,Head of Adults,Third Party Payments,471101,Purchase of Care,13-Jul-16,3153696-2320653,"1,067.80",ALLIANCE CARE.
Children and Adult Services,Head of Adults,Third Party Payments,470101,Purchase of Care,13-Jul-16,3153696-2320654,"2,071.88",ALLIANCE CARE.
Children and Adult Services,Head of Adults,Third Party Payments,470101,Purchase of Care,13-Jul-16,3153696-2320655,662,ALLIANCE CARE.
Children and Adult Services,Head of Adults,Debtors,930135,Debtor Residential Care - IC+ Rehabilitation,13-Jul-16,3153696-2320657,774.29,ALLIANCE CARE.
Children and Adult Services,Head of Adults,Third Party Payments,474101,Purchase of Care,13-Jul-16,3153696-2320658,"2,156.96",ALLIANCE CARE.
Children and Adult Services,Head of Adults,Third Party Payments,471101,Purchase of Care,13-Jul-16,3153696-2320660,"2,135.60",ALLIANCE CARE.
Children and Adult Services,Head of Adults,Third Party Payments,470101,Purchase of Care,13-Jul-16,3153696-2320661,"2,059.56",ALLIANCE CARE.
Children and Adult Services,Head of Adults,Third Party Payments,470101,Purchase of Care,13-Jul-16,3153696-2320662,"2,071.88",ALLIANCE CARE.
Children and Adult Services,Head of Adults,Third Party Payments,470101,Purchase of Care,13-Jul-16,3153696-2320663,"1,549.08",ALLIANCE CARE.
Children and Adult Services,Head of Adults,Third Party Payments,470102,Purchase of Care,13-Jul-16,3153696-2320664,563.12,ALLIANCE CARE.
Children and Adult Services,Head of Adults,Third Party Payments,474101,Purchase of Care,13-Jul-16,3153696-2320665,"1,107.31",ALLIANCE CARE.
Children and Adult Services,Head of Adults,Third Party Payments,470101,Purchase of Care,13-Jul-16,3153696-2320668,"2,071.88",ALLIANCE CARE.
Children and Adult Services,Head of Adults,Third Party Payments,474101,Purchase of Care,13-Jul-16,3153696-2320671,"2,169.86",ALLIANCE CARE.
Children and Adult Services,Head of Adults,Third Party Payments,470101,Purchase of Care,13-Jul-16,3153696-2320673,"1,092.92",ALLIANCE CARE.
Children and Adult Services,Head of Adults,Third Party Payments,470101,Purchase of Care,13-Jul-16,3153696-2320674,"2,071.88",ALLIANCE CARE.
Children and Adult Services,Head of Adults,Third Party Payments,471101,Purchase of Care,13-Jul-16,3153696-2320675,"2,148.37",ALLIANCE CARE.
Children and Adult Services,Head of Adults,Third Party Payments,471101,Purchase of Care,13-Jul-16,3153696-2320676,"2,148.37",ALLIANCE CARE.
Children and Adult Services,Head of Adults,Third Party Payments,470101,Purchase of Care,13-Jul-16,3153696-2320677,"1,314.24",ALLIANCE CARE.
Children and Adult Services,Head of Adults,Third Party Payments,471101,Purchase of Care,13-Jul-16,3153696-2320679,"1,625.57",ALLIANCE CARE.
Children and Adult Services,Head of Adults,Third Party Payments,470101,Purchase of Care,13-Jul-16,3153696-2320680,"1,535.28",ALLIANCE CARE.
Children and Adult Services,Head of Adults,Third Party Payments,471101,Purchase of Care,13-Jul-16,3153696-2320681,"2,148.37",ALLIANCE CARE.
Children and Adult Services,Head of Adults,Third Party Payments,474101,Purchase of Care,13-Jul-16,3153696-2320682,"1,475.78",ALLIANCE CARE.
Children and Adult Services,Head of Adults,Third Party Payments,471101,Purchase of Care,13-Jul-16,3153696-2320684,"1,625.57",ALLIANCE CARE.
Children and Adult Services,Head of Adults,Third Party Payments,470101,Purchase of Care,13-Jul-16,3153696-2320689,"1,228.16",ALLIANCE CARE.
Children and Adult Services,Head of Adults,Third Party Payments,471101,Purchase of Care,13-Jul-16,3153696-2320690,"1,548.69",ALLIANCE CARE.
Children and Adult Services,Head of Adults,Third Party Payments,471101,Purchase of Care,13-Jul-16,3153696-2320691,"2,148.37",ALLIANCE CARE.
Children and Adult Services,Head of Adults,Third Party Payments,474101,Purchase of Care,13-Jul-16,3153696-2320692,"1,647.06",ALLIANCE CARE.
Children and Adult Services,Head of Adults,Third Party Payments,471101,Purchase of Care,13-Jul-16,3153696-2320694,"2,148.37",ALLIANCE CARE.
Children and Adult Services,Head of Adults,Third Party Payments,470101,Purchase of Care,13-Jul-16,3153696-2320695,"2,071.88",ALLIANCE CARE.
Children and Adult Services,Head of Adults,Third Party Payments,470101,Purchase of Care,13-Jul-16,3153696-2320696,"1,549.08",ALLIANCE CARE.
Children and Adult Services,Head of Adults,Third Party Payments,470101,Purchase of Care,13-Jul-16,3153696-2320697,"2,071.88",ALLIANCE CARE.
Children and Adult Services,Head of Adults,Third Party Payments,474101,Purchase of Care,13-Jul-16,3153696-2320698,"1,491.66",ALLIANCE CARE.
Children and Adult Services,Head of Adults,Third Party Payments,470101,Purchase of Care,13-Jul-16,3153696-2320700,"2,071.88",ALLIANCE CARE.
Children and Adult Services,Head of Adults,Third Party Payments,470101,Purchase of Care,13-Jul-16,3153696-2320701,"2,071.88",ALLIANCE CARE.
Children and Adult Services,Head of Adults,Third Party Payments,470101,Purchase of Care,13-Jul-16,3153696-2320702,"1,797.53",ALLIANCE CARE.
Children and Adult Services,Head of Adults,Third Party Payments,470101,Purchase of Care,13-Jul-16,3153696-2320703,"1,549.08",ALLIANCE CARE.
Children and Adult Services,Head of Adults,Third Party Payments,470101,Purchase of Care,13-Jul-16,3153696-2323463,"1,544.67",ALLIANCE CARE.
Children and Adult Services,Head of Adults,Debtors,930135,Debtor Residential Care - IC+ Rehabilitation,13-Jul-16,3153696-2323464,"1,267.02",ALLIANCE CARE.
Children and Adult Services,Head of Adults,Third Party Payments,470101,Purchase of Care,13-Jul-16,3153696-2323465,735.55,ALLIANCE CARE.
Children and Adult Services,Head of Adults,Third Party Payments,471101,Purchase of Care,13-Jul-16,3153696-2323554,"1,125.22",ALLIANCE CARE.
Children and Adult Services,Head of Adults,Third Party Payments,474101,Purchase of Care,13-Jul-16,3153696-2323563,"1,136.53",ALLIANCE CARE.
Children and Adult Services,Head of Adults,Third Party Payments,470101,Purchase of Care,13-Jul-16,3153697-2321871,"1,594.28",ALLINGTON HOUSE.
Children and Adult Services,Head of Adults,Third Party Payments,471101,Purchase of Care,13-Jul-16,3153698-2322914,"2,132.08",AMERIND GROVE NURSING HOME.
Children and Adult Services,Head of Adults,Third Party Payments,470101,Purchase of Care,13-Jul-16,3153699-2322065,"1,860.00",ANCHOR CAREHOMES NE LTD T/A WYNYARD WOODS GRANGE RESIDENTIAL CARE HOME.
Children and Adult Services,Head of Adults,Third Party Payments,470101,Purchase of Care,13-Jul-16,3153699-2322066,"1,860.00",ANCHOR CAREHOMES NE LTD T/A WYNYARD WOODS GRANGE RESIDENTIAL CARE HOME.
Children and Adult Services,Head of Adults,Third Party Payments,470101,Purchase of Care,13-Jul-16,3153700-2320132,"1,972.00",ANCHOR HOUSING ASSOCIATION.
Children and Adult Services,Head of Adults,Third Party Payments,470101,Purchase of Care,13-Jul-16,3153700-2320133,"1,972.00",ANCHOR HOUSING ASSOCIATION.
Children and Adult Services,Head of Adults,Third Party Payments,470101,Purchase of Care,13-Jul-16,3153700-2320134,"1,972.00",ANCHOR HOUSING ASSOCIATION.
Children and Adult Services,Head of Adults,Third Party Payments,474101,Purchase of Care,13-Jul-16,3153701-2320778,"1,620.48",ANN CHARLTON LODGE.
Children and Adult Services,Head of Adults,Third Party Payments,470101,Purchase of Care,13-Jul-16,3153702-2321289,"1,611.00",ARK HOUSE REHAB LTD.
Children and Adult Services,Head of Adults,Third Party Payments,470101,Purchase of Care,13-Jul-16,3153702-2321291,"1,980.00",ARK HOUSE REHAB LTD.
Children and Adult Services,Head of Adults,Third Party Payments,470101,Purchase of Care,13-Jul-16,3153702-2323061,909.15,ARK HOUSE REHAB LTD.
Children and Adult Services,Head of Adults,Third Party Payments,470101,Purchase of Care,13-Jul-16,3153703-2319653,"1,949.24",ASCOT CARE NORTHEAST LTD.
Children and Adult Services,Head of Adults,Third Party Payments,470101,Purchase of Care,13-Jul-16,3153703-2319654,765.77,ASCOT CARE NORTHEAST LTD.
Children and Adult Services,Head of Adults,Debtors,930135,Debtor Residential Care - IC+ Rehabilitation,13-Jul-16,3153703-2319655,"1,970.92",ASCOT CARE NORTHEAST LTD.
Children and Adult Services,Head of Adults,Third Party Payments,470101,Purchase of Care,13-Jul-16,3153703-2319656,"1,266.04",ASCOT CARE NORTHEAST LTD.
Children and Adult Services,Head of Adults,Third Party Payments,470101,Purchase of Care,13-Jul-16,3153703-2319657,"1,949.24",ASCOT CARE NORTHEAST LTD.
Children and Adult Services,Head of Adults,Debtors,930135,Debtor Residential Care - IC+ Rehabilitation,13-Jul-16,3153703-2319659,"1,970.92",ASCOT CARE NORTHEAST LTD.
Children and Adult Services,Head of Adults,Third Party Payments,470101,Purchase of Care,13-Jul-16,3153703-2319660,946.76,ASCOT CARE NORTHEAST LTD.
Children and Adult Services,Head of Adults,Third Party Payments,470102,Purchase of Care,13-Jul-16,3153703-2319661,"1,196.63",ASCOT CARE NORTHEAST LTD.
Children and Adult Services,Head of Adults,Third Party Payments,474101,Purchase of Care,13-Jul-16,3153703-2319662,"1,233.48",ASCOT CARE NORTHEAST LTD.
Children and Adult Services,Head of Adults,Third Party Payments,470101,Purchase of Care,13-Jul-16,3153703-2319664,"1,949.24",ASCOT CARE NORTHEAST LTD.
Children and Adult Services,Head of Adults,Third Party Payments,470101,Purchase of Care,13-Jul-16,3153703-2319665,"1,391.76",ASCOT CARE NORTHEAST LTD.
Children and Adult Services,Head of Adults,Third Party Payments,470101,Purchase of Care,13-Jul-16,3153703-2319666,"1,426.44",ASCOT CARE NORTHEAST LTD.
Children and Adult Services,Head of Adults,Third Party Payments,474101,Purchase of Care,13-Jul-16,3153703-2319667,"1,405.08",ASCOT CARE NORTHEAST LTD.
Children and Adult Services,Head of Adults,Third Party Payments,470101,Purchase of Care,13-Jul-16,3153703-2319669,"1,471.08",ASCOT CARE NORTHEAST LTD.
Children and Adult Services,Head of Adults,Third Party Payments,470101,Purchase of Care,13-Jul-16,3153703-2319670,"1,426.44",ASCOT CARE NORTHEAST LTD.
Children and Adult Services,Head of Adults,Third Party Payments,470101,Purchase of Care,13-Jul-16,3153703-2319671,"1,408.92",ASCOT CARE NORTHEAST LTD.
Children and Adult Services,Head of Adults,Third Party Payments,471101,Purchase of Care,13-Jul-16,3153703-2319672,778.28,ASCOT CARE NORTHEAST LTD.
Children and Adult Services,Head of Adults,Third Party Payments,470101,Purchase of Care,13-Jul-16,3153703-2319673,"1,366.36",ASCOT CARE NORTHEAST LTD.
Children and Adult Services,Head of Adults,Third Party Payments,471101,Purchase of Care,13-Jul-16,3153703-2319674,"1,013.04",ASCOT CARE NORTHEAST LTD.
Children and Adult Services,Head of Adults,Third Party Payments,470101,Purchase of Care,13-Jul-16,3153703-2319675,"1,426.44",ASCOT CARE NORTHEAST LTD.
Children and Adult Services,Head of Adults,Third Party Payments,470101,Purchase of Care,13-Jul-16,3153703-2319676,"1,426.44",ASCOT CARE NORTHEAST LTD.
Children and Adult Services,Head of Adults,Third Party Payments,470101,Purchase of Care,13-Jul-16,3153703-2319677,"1,949.24",ASCOT CARE NORTHEAST LTD.
Children and Adult Services,Head of Adults,Third Party Payments,471101,Purchase of Care,13-Jul-16,3153703-2319678,"1,630.84",ASCOT CARE NORTHEAST LTD.
Children and Adult Services,Head of Adults,Third Party Payments,470101,Purchase of Care,13-Jul-16,3153703-2319680,"1,144.12",ASCOT CARE NORTHEAST LTD.
Children and Adult Services,Head of Adults,Third Party Payments,470101,Purchase of Care,13-Jul-16,3153703-2319681,"1,949.24",ASCOT CARE NORTHEAST LTD.
Children and Adult Services,Head of Adults,Third Party Payments,471101,Purchase of Care,13-Jul-16,3153703-2319682,"1,479.52",ASCOT CARE NORTHEAST LTD.
Children and Adult Services,Head of Adults,Third Party Payments,470101,Purchase of Care,13-Jul-16,3153704-2320377,"1,972.00",ASCOT CARE T/A THE GARDENS CARE HOME.
Children and Adult Services,Head of Adults,Third Party Payments,470101,Purchase of Care,13-Jul-16,3153705-2322652,"2,700.00",ASHFIELD NURSING HOME LTD.
Children and Adult Services,Head of Adults,Third Party Payments,470101,Purchase of Care,13-Jul-16,3153706-2320373,969,ASHLEIGH HOUSE CARE HOME.
Children and Adult Services,Head of Adults,Third Party Payments,470101,Purchase of Care,13-Jul-16,3153706-2320374,969,ASHLEIGH HOUSE CARE HOME.
Children and Adult Services,Head of Adults,Third Party Payments,470101,Purchase of Care,13-Jul-16,3153706-2320375,969,ASHLEIGH HOUSE CARE HOME.
Children and Adult Services,Head of Adults,Third Party Payments,470101,Purchase of Care,13-Jul-16,3153706-2320376,"1,102.00",ASHLEIGH HOUSE CARE HOME.
Children and Adult Services,Head of Adults,Third Party Payments,474101,Purchase of Care,13-Jul-16,3153707-2322896,"1,715.08",ASTONBROOK CARE HOMES LTD T/A MOORLANDS CARE HOME.
Children and Adult Services,Head of Adults,Third Party Payments,470101,Purchase of Care,13-Jul-16,3153708-2322101,"3,900.00",ATLAS HEALTHCARE LTD.
Children and Adult Services,Head of Adults,Third Party Payments,470101,Purchase of Care,13-Jul-16,3153708-2322102,"7,440.00",ATLAS HEALTHCARE LTD.
Children and Adult Services,Head of Adults,Third Party Payments,470101,Purchase of Care,13-Jul-16,3153709-2322059,"4,244.80",AUTISM CARE UK (4) LTD.
Children and Adult Services,Head of Adults,Third Party Payments,470101,Purchase of Care,13-Jul-16,3153709-2322060,"1,742.44",AUTISM CARE UK (4) LTD.
Children and Adult Services,Head of Adults,Third Party Payments,470101,Purchase of Care,13-Jul-16,3153709-2322061,568.96,AUTISM CARE UK (4) LTD.
Children and Adult Services,Head of Adults,Third Party Payments,470101,Purchase of Care,13-Jul-16,3153709-2322062,"3,564.00",AUTISM CARE UK (4) LTD.
Children and Adult Services,Head of Adults,Third Party Payments,470101,Purchase of Care,13-Jul-16,3153710-2322063,"6,478.68",AUTISM NORTH.
Children and Adult Services,Head of Adults,Third Party Payments,470101,Purchase of Care,13-Jul-16,3153711-2322655,"2,714.91",AUTISM NORTH.
Children and Adult Services,Head of Adults,Third Party Payments,470101,Purchase of Care,13-Jul-16,3153711-2322658,"9,318.00",AUTISM NORTH.
Children and Adult Services,Head of Adults,Third Party Payments,470101,Purchase of Care,13-Jul-16,3153711-2323077,"8,820.28",AUTISM NORTH.
Children and Adult Services,Head of Adults,Third Party Payments,474101,Purchase of Care,13-Jul-16,3153712-2322297,"2,850.62",AYCLIFFE CARE HOME.
Children and Adult Services,Head of Adults,Third Party Payments,470101,Purchase of Care,13-Jul-16,3153712-2322299,"1,949.24",AYCLIFFE CARE HOME.
Children and Adult Services,Head of Adults,Third Party Payments,474101,Purchase of Care,13-Jul-16,3153712-2322300,"1,023.28",AYCLIFFE CARE HOME.
Children and Adult Services,Head of Adults,Third Party Payments,470101,Purchase of Care,13-Jul-16,3153712-2322303,"1,949.24",AYCLIFFE CARE HOME.
Children and Adult Services,Head of Adults,Third Party Payments,470101,Purchase of Care,13-Jul-16,3153712-2322304,"1,949.24",AYCLIFFE CARE HOME.
Children and Adult Services,Head of Adults,Third Party Payments,470101,Purchase of Care,13-Jul-16,3153712-2322306,"1,392.31",AYCLIFFE CARE HOME.
Children and Adult Services,Head of Adults,Third Party Payments,470101,Purchase of Care,13-Jul-16,3153712-2322308,556.92,AYCLIFFE CARE HOME.
Children and Adult Services,Head of Adults,Third Party Payments,471101,Purchase of Care,13-Jul-16,3153712-2322310,"2,026.40",AYCLIFFE CARE HOME.
Children and Adult Services,Head of Adults,Third Party Payments,474101,Purchase of Care,13-Jul-16,3153712-2322311,"1,023.32",AYCLIFFE CARE HOME.
Children and Adult Services,Head of Adults,Third Party Payments,470101,Purchase of Care,13-Jul-16,3153712-2322313,"1,949.24",AYCLIFFE CARE HOME.
Children and Adult Services,Head of Adults,Third Party Payments,471101,Purchase of Care,13-Jul-16,3153712-2322314,"2,026.40",AYCLIFFE CARE HOME.
Children and Adult Services,Head of Adults,Third Party Payments,474101,Purchase of Care,13-Jul-16,3153712-2322315,"2,046.60",AYCLIFFE CARE HOME.
Children and Adult Services,Head of Adults,Third Party Payments,471101,Purchase of Care,13-Jul-16,3153712-2322317,"2,026.40",AYCLIFFE CARE HOME.
Children and Adult Services,Head of Adults,Third Party Payments,474101,Purchase of Care,13-Jul-16,3153712-2322318,"2,046.60",AYCLIFFE CARE HOME.
Children and Adult Services,Head of Adults,Third Party Payments,470101,Purchase of Care,13-Jul-16,3153712-2322320,974.64,AYCLIFFE CARE HOME.
Children and Adult Services,Head of Adults,Third Party Payments,471101,Purchase of Care,13-Jul-16,3153712-2322321,"2,026.40",AYCLIFFE CARE HOME.
Children and Adult Services,Head of Adults,Third Party Payments,471101,Purchase of Care,13-Jul-16,3153712-2322322,"2,026.40",AYCLIFFE CARE HOME.
Children and Adult Services,Head of Adults,Third Party Payments,474101,Purchase of Care,13-Jul-16,3153712-2322323,"2,046.60",AYCLIFFE CARE HOME.
Children and Adult Services,Head of Adults,Third Party Payments,471101,Purchase of Care,13-Jul-16,3153712-2322325,"2,026.40",AYCLIFFE CARE HOME.
Children and Adult Services,Head of Adults,Third Party Payments,474101,Purchase of Care,13-Jul-16,3153712-2322326,"2,046.60",AYCLIFFE CARE HOME.
Children and Adult Services,Head of Adults,Third Party Payments,470101,Purchase of Care,13-Jul-16,3153712-2322328,"1,949.24",AYCLIFFE CARE HOME.
Children and Adult Services,Head of Adults,Third Party Payments,471101,Purchase of Care,13-Jul-16,3153712-2322329,"2,026.40",AYCLIFFE CARE HOME.
Children and Adult Services,Head of Adults,Third Party Payments,474101,Purchase of Care,13-Jul-16,3153712-2322331,"2,046.60",AYCLIFFE CARE HOME.
Children and Adult Services,Head of Adults,Third Party Payments,471101,Purchase of Care,13-Jul-16,3153712-2322333,"2,026.40",AYCLIFFE CARE HOME.
Children and Adult Services,Head of Adults,Third Party Payments,471101,Purchase of Care,13-Jul-16,3153712-2322334,"2,026.40",AYCLIFFE CARE HOME.
Children and Adult Services,Head of Adults,Third Party Payments,471101,Purchase of Care,13-Jul-16,3153712-2322335,"2,026.40",AYCLIFFE CARE HOME.
Children and Adult Services,Head of Adults,Third Party Payments,470101,Purchase of Care,13-Jul-16,3153712-2322336,"1,949.24",AYCLIFFE CARE HOME.
Children and Adult Services,Head of Adults,Third Party Payments,470101,Purchase of Care,13-Jul-16,3153712-2322337,"1,949.24",AYCLIFFE CARE HOME.
Children and Adult Services,Head of Adults,Third Party Payments,474101,Purchase of Care,13-Jul-16,3153712-2322338,"2,046.60",AYCLIFFE CARE HOME.
Children and Adult Services,Head of Adults,Third Party Payments,470101,Purchase of Care,13-Jul-16,3153712-2322340,"1,949.24",AYCLIFFE CARE HOME.
Children and Adult Services,Head of Adults,Third Party Payments,471101,Purchase of Care,13-Jul-16,3153712-2322341,"2,026.40",AYCLIFFE CARE HOME.
Children and Adult Services,Head of Adults,Third Party Payments,474101,Purchase of Care,13-Jul-16,3153712-2322342,"1,023.32",AYCLIFFE CARE HOME.
Children and Adult Services,Head of Adults,Third Party Payments,471101,Purchase of Care,13-Jul-16,3153712-2322344,"2,026.40",AYCLIFFE CARE HOME.
Children and Adult Services,Head of Adults,Third Party Payments,470101,Purchase of Care,13-Jul-16,3153712-2322345,"1,949.24",AYCLIFFE CARE HOME.
Children and Adult Services,Head of Adults,Third Party Payments,474101,Purchase of Care,13-Jul-16,3153712-2322346,"2,046.60",AYCLIFFE CARE HOME.
Children and Adult Services,Head of Adults,Third Party Payments,470101,Purchase of Care,13-Jul-16,3153712-2322348,"1,949.24",AYCLIFFE CARE HOME.
Children and Adult Services,Head of Adults,Third Party Payments,474101,Purchase of Care,13-Jul-16,3153712-2322349,"1,023.32",AYCLIFFE CARE HOME.
Children and Adult Services,Head of Adults,Third Party Payments,470101,Purchase of Care,13-Jul-16,3153712-2322351,"1,949.24",AYCLIFFE CARE HOME.
Children and Adult Services,Head of Adults,Third Party Payments,471101,Purchase of Care,13-Jul-16,3153712-2322352,"2,026.40",AYCLIFFE CARE HOME.
Children and Adult Services,Head of Adults,Third Party Payments,470101,Purchase of Care,13-Jul-16,3153712-2322353,"1,949.24",AYCLIFFE CARE HOME.
Children and Adult Services,Head of Adults,Third Party Payments,471101,Purchase of Care,13-Jul-16,3153712-2322354,"2,026.40",AYCLIFFE CARE HOME.
Children and Adult Services,Head of Adults,Third Party Payments,471101,Purchase of Care,13-Jul-16,3153712-2322355,"2,026.40",AYCLIFFE CARE HOME.
Children and Adult Services,Head of Adults,Third Party Payments,470101,Purchase of Care,13-Jul-16,3153712-2323540,"2,784.63",AYCLIFFE CARE HOME.
Children and Adult Services,Head of Adults,Third Party Payments,470101,Purchase of Care,13-Jul-16,3153713-2321221,"1,860.00",AYRESOME COURT NURSING HOME.
Children and Adult Services,Head of Adults,Third Party Payments,471101,Purchase of Care,13-Jul-16,3153714-2321111,"1,804.00",BARCHESTER HEALTHCARE HOMES LTD.
Children and Adult Services,Head of Adults,Third Party Payments,471101,Purchase of Care,13-Jul-16,3153716-2317808,"1,894.20",BARCHESTER HEALTHCARE HOMES LTD.
Children and Adult Services,Head of Adults,Third Party Payments,471101,Purchase of Care,13-Jul-16,3153716-2323330,"2,114.28",BARCHESTER HEALTHCARE HOMES LTD.
Children and Adult Services,Head of Adults,Third Party Payments,470101,Purchase of Care,13-Jul-16,3153717-2321222,"1,920.00",BARCHESTER HEALTHCARE HOMES LTD.
Children and Adult Services,Head of Adults,Third Party Payments,471101,Purchase of Care,13-Jul-16,3153717-2321223,"1,984.00",BARCHESTER HEALTHCARE HOMES LTD.
Children and Adult Services,Head of Adults,Third Party Payments,470101,Purchase of Care,13-Jul-16,3153717-2321224,"1,920.00",BARCHESTER HEALTHCARE HOMES LTD.
Children and Adult Services,Head of Adults,Third Party Payments,470101,Purchase of Care,13-Jul-16,3153717-2321225,"1,920.00",BARCHESTER HEALTHCARE HOMES LTD.
Children and Adult Services,Head of Adults,Third Party Payments,470101,Purchase of Care,13-Jul-16,3153717-2321226,"1,920.00",BARCHESTER HEALTHCARE HOMES LTD.
Children and Adult Services,Head of Adults,Third Party Payments,471101,Purchase of Care,13-Jul-16,3153717-2321227,"1,984.00",BARCHESTER HEALTHCARE HOMES LTD.
Children and Adult Services,Head of Adults,Third Party Payments,471101,Purchase of Care,13-Jul-16,3153717-2321228,"1,984.00",BARCHESTER HEALTHCARE HOMES LTD.
Children and Adult Services,Head of Adults,Third Party Payments,471101,Purchase of Care,13-Jul-16,3153717-2321229,"1,984.00",BARCHESTER HEALTHCARE HOMES LTD.
Children and Adult Services,Head of Adults,Third Party Payments,474101,Purchase of Care,13-Jul-16,3153718-2320213,"2,046.60",BARCHESTER HEALTHCARE HOMES LTD.
Children and Adult Services,Head of Adults,Third Party Payments,474101,Purchase of Care,13-Jul-16,3153718-2320215,"7,132.00",BARCHESTER HEALTHCARE HOMES LTD.
Children and Adult Services,Head of Adults,Third Party Payments,474101,Purchase of Care,13-Jul-16,3153718-2320219,"2,046.60",BARCHESTER HEALTHCARE HOMES LTD.
Children and Adult Services,Head of Adults,Third Party Payments,474101,Purchase of Care,13-Jul-16,3153718-2320221,"2,046.60",BARCHESTER HEALTHCARE HOMES LTD.
Children and Adult Services,Head of Adults,Third Party Payments,474101,Purchase of Care,13-Jul-16,3153718-2320224,"2,046.60",BARCHESTER HEALTHCARE HOMES LTD.
Children and Adult Services,Head of Adults,Third Party Payments,474101,Purchase of Care,13-Jul-16,3153718-2320227,"2,046.60",BARCHESTER HEALTHCARE HOMES LTD.
Children and Adult Services,Head of Adults,Third Party Payments,474101,Purchase of Care,13-Jul-16,3153718-2320230,"2,046.60",BARCHESTER HEALTHCARE HOMES LTD.
Children and Adult Services,Head of Adults,Third Party Payments,474101,Purchase of Care,13-Jul-16,3153718-2320233,"2,046.60",BARCHESTER HEALTHCARE HOMES LTD.
Children and Adult Services,Head of Adults,Third Party Payments,474101,Purchase of Care,13-Jul-16,3153718-2320236,"1,023.28",BARCHESTER HEALTHCARE HOMES LTD.
Children and Adult Services,Head of Adults,Third Party Payments,474101,Purchase of Care,13-Jul-16,3153718-2320239,"2,046.60",BARCHESTER HEALTHCARE HOMES LTD.
Children and Adult Services,Head of Adults,Third Party Payments,474101,Purchase of Care,13-Jul-16,3153718-2320242,"1,023.28",BARCHESTER HEALTHCARE HOMES LTD.
Children and Adult Services,Head of Adults,Third Party Payments,474101,Purchase of Care,13-Jul-16,3153718-2320244,"2,046.60",BARCHESTER HEALTHCARE HOMES LTD.
Children and Adult Services,Head of Adults,Third Party Payments,474101,Purchase of Care,13-Jul-16,3153718-2320247,"1,023.28",BARCHESTER HEALTHCARE HOMES LTD.
Children and Adult Services,Head of Adults,Third Party Payments,474101,Purchase of Care,13-Jul-16,3153718-2320249,"1,023.28",BARCHESTER HEALTHCARE HOMES LTD.
Children and Adult Services,Head of Adults,Third Party Payments,474101,Purchase of Care,13-Jul-16,3153718-2320251,"2,232.12",BARCHESTER HEALTHCARE HOMES LTD.
Children and Adult Services,Head of Adults,Third Party Payments,474101,Purchase of Care,13-Jul-16,3153718-2320254,"2,046.60",BARCHESTER HEALTHCARE HOMES LTD.
Children and Adult Services,Head of Adults,Third Party Payments,474101,Purchase of Care,13-Jul-16,3153718-2320257,"2,232.12",BARCHESTER HEALTHCARE HOMES LTD.
Children and Adult Services,Head of Adults,Third Party Payments,474101,Purchase of Care,13-Jul-16,3153718-2320260,"2,046.60",BARCHESTER HEALTHCARE HOMES LTD.
Children and Adult Services,Head of Adults,Third Party Payments,474101,Purchase of Care,13-Jul-16,3153718-2320263,"2,046.60",BARCHESTER HEALTHCARE HOMES LTD.
Children and Adult Services,Head of Adults,Third Party Payments,474101,Purchase of Care,13-Jul-16,3153718-2320266,"2,046.60",BARCHESTER HEALTHCARE HOMES LTD.
Children and Adult Services,Head of Adults,Third Party Payments,474101,Purchase of Care,13-Jul-16,3153718-2320269,"2,046.60",BARCHESTER HEALTHCARE HOMES LTD.
Children and Adult Services,Head of Adults,Third Party Payments,474101,Purchase of Care,13-Jul-16,3153718-2320271,"2,046.60",BARCHESTER HEALTHCARE HOMES LTD.
Children and Adult Services,Head of Adults,Third Party Payments,474101,Purchase of Care,13-Jul-16,3153718-2320274,"2,046.60",BARCHESTER HEALTHCARE HOMES LTD.
Children and Adult Services,Head of Adults,Third Party Payments,474101,Purchase of Care,13-Jul-16,3153718-2320278,"2,046.60",BARCHESTER HEALTHCARE HOMES LTD.
Children and Adult Services,Head of Adults,Third Party Payments,474101,Purchase of Care,13-Jul-16,3153718-2320281,"2,232.12",BARCHESTER HEALTHCARE HOMES LTD.
Children and Adult Services,Head of Adults,Third Party Payments,474101,Purchase of Care,13-Jul-16,3153718-2323328,"1,827.32",BARCHESTER HEALTHCARE HOMES LTD.
Children and Adult Services,Head of Adults,Third Party Payments,474101,Purchase of Care,13-Jul-16,3153719-2322911,"1,984.00",BARCHESTER HEALTHCARE HOMES LTD.
Children and Adult Services,Head of Adults,Third Party Payments,470101,Purchase of Care,13-Jul-16,3153720-2320430,"1,949.24",BEACONSFIELD COURT.
Children and Adult Services,Head of Adults,Third Party Payments,470101,Purchase of Care,13-Jul-16,3153720-2320431,"1,949.24",BEACONSFIELD COURT.
Children and Adult Services,Head of Adults,Third Party Payments,470101,Purchase of Care,13-Jul-16,3153720-2320432,"1,949.24",BEACONSFIELD COURT.
Children and Adult Services,Head of Adults,Third Party Payments,470101,Purchase of Care,13-Jul-16,3153720-2320433,"1,949.24",BEACONSFIELD COURT.
Children and Adult Services,Head of Adults,Third Party Payments,470101,Purchase of Care,13-Jul-16,3153720-2320434,"1,949.24",BEACONSFIELD COURT.
Children and Adult Services,Head of Adults,Third Party Payments,470101,Purchase of Care,13-Jul-16,3153720-2320435,"1,949.24",BEACONSFIELD COURT.
Children and Adult Services,Head of Adults,Third Party Payments,470101,Purchase of Care,13-Jul-16,3153720-2320436,"1,949.24",BEACONSFIELD COURT.
Children and Adult Services,Head of Adults,Third Party Payments,470101,Purchase of Care,13-Jul-16,3153720-2320437,"1,949.24",BEACONSFIELD COURT.
Children and Adult Services,Head of Adults,Third Party Payments,470101,Purchase of Care,13-Jul-16,3153720-2320438,"1,949.24",BEACONSFIELD COURT.
Children and Adult Services,Head of Adults,Third Party Payments,470101,Purchase of Care,13-Jul-16,3153720-2320439,"1,949.24",BEACONSFIELD COURT.
Children and Adult Services,Head of Adults,Third Party Payments,470101,Purchase of Care,13-Jul-16,3153720-2320440,"1,949.24",BEACONSFIELD COURT.
Children and Adult Services,Head of Adults,Third Party Payments,470101,Purchase of Care,13-Jul-16,3153720-2320441,"1,949.24",BEACONSFIELD COURT.
Children and Adult Services,Head of Adults,Third Party Payments,470101,Purchase of Care,13-Jul-16,3153720-2320442,"1,949.24",BEACONSFIELD COURT.
Children and Adult Services,Head of Adults,Third Party Payments,470101,Purchase of Care,13-Jul-16,3153720-2320443,"1,949.24",BEACONSFIELD COURT.
Children and Adult Services,Head of Adults,Third Party Payments,470101,Purchase of Care,13-Jul-16,3153720-2320444,"1,949.24",BEACONSFIELD COURT.
Children and Adult Services,Head of Adults,Third Party Payments,470101,Purchase of Care,13-Jul-16,3153720-2320445,"1,949.24",BEACONSFIELD COURT.
Children and Adult Services,Head of Adults,Third Party Payments,470101,Purchase of Care,13-Jul-16,3153720-2320446,"1,949.24",BEACONSFIELD COURT.
Children and Adult Services,Head of Adults,Third Party Payments,470101,Purchase of Care,13-Jul-16,3153721-2322143,"1,949.24",BEAMISH RESIDENTIAL HOME.
Children and Adult Services,Head of Adults,Third Party Payments,470101,Purchase of Care,13-Jul-16,3153721-2322144,"1,949.24",BEAMISH RESIDENTIAL HOME.
Children and Adult Services,Head of Adults,Third Party Payments,470101,Purchase of Care,13-Jul-16,3153721-2322145,"1,403.36",BEAMISH RESIDENTIAL HOME.
Children and Adult Services,Head of Adults,Third Party Payments,471101,Purchase of Care,13-Jul-16,3153721-2322146,"1,561.00",BEAMISH RESIDENTIAL HOME.
Children and Adult Services,Head of Adults,Third Party Payments,471101,Purchase of Care,13-Jul-16,3153721-2322147,"1,592.17",BEAMISH RESIDENTIAL HOME.
Children and Adult Services,Head of Adults,Third Party Payments,471101,Purchase of Care,13-Jul-16,3153721-2322148,"1,503.60",BEAMISH RESIDENTIAL HOME.
Children and Adult Services,Head of Adults,Third Party Payments,470101,Purchase of Care,13-Jul-16,3153721-2322149,"1,407.36",BEAMISH RESIDENTIAL HOME.
Children and Adult Services,Head of Adults,Third Party Payments,470101,Purchase of Care,13-Jul-16,3153721-2322150,974.64,BEAMISH RESIDENTIAL HOME.
Children and Adult Services,Head of Adults,Third Party Payments,470101,Purchase of Care,13-Jul-16,3153721-2322151,"1,949.24",BEAMISH RESIDENTIAL HOME.
Children and Adult Services,Head of Adults,Third Party Payments,470101,Purchase of Care,13-Jul-16,3153721-2322152,"1,949.24",BEAMISH RESIDENTIAL HOME.
Children and Adult Services,Head of Adults,Third Party Payments,470101,Purchase of Care,13-Jul-16,3153721-2322153,"1,176.80",BEAMISH RESIDENTIAL HOME.
Children and Adult Services,Head of Adults,Third Party Payments,470101,Purchase of Care,13-Jul-16,3153721-2322154,974.64,BEAMISH RESIDENTIAL HOME.
Children and Adult Services,Head of Adults,Third Party Payments,470101,Purchase of Care,13-Jul-16,3153721-2322155,"1,949.24",BEAMISH RESIDENTIAL HOME.
Children and Adult Services,Head of Adults,Third Party Payments,470101,Purchase of Care,13-Jul-16,3153721-2322156,931.4,BEAMISH RESIDENTIAL HOME.
Children and Adult Services,Head of Adults,Third Party Payments,470101,Purchase of Care,13-Jul-16,3153721-2322157,"1,387.96",BEAMISH RESIDENTIAL HOME.
Children and Adult Services,Head of Adults,Third Party Payments,470101,Purchase of Care,13-Jul-16,3153721-2322158,"1,428.12",BEAMISH RESIDENTIAL HOME.
Children and Adult Services,Head of Adults,Third Party Payments,470101,Purchase of Care,13-Jul-16,3153721-2322159,"1,375.00",BEAMISH RESIDENTIAL HOME.
Children and Adult Services,Head of Adults,Third Party Payments,470101,Purchase of Care,13-Jul-16,3153721-2322160,"1,949.24",BEAMISH RESIDENTIAL HOME.
Children and Adult Services,Head of Adults,Third Party Payments,471101,Purchase of Care,13-Jul-16,3153721-2323276,"2,026.40",BEAMISH RESIDENTIAL HOME.
Children and Adult Services,Head of Adults,Third Party Payments,471101,Purchase of Care,13-Jul-16,3153722-2319431,"1,811.24",BEAULEY LODGE CARE HOME.
Children and Adult Services,Head of Adults,Third Party Payments,470101,Purchase of Care,13-Jul-16,3153722-2319432,805.2,BEAULEY LODGE CARE HOME.
Children and Adult Services,Head of Adults,Third Party Payments,471101,Purchase of Care,13-Jul-16,3153722-2319433,"1,311.36",BEAULEY LODGE CARE HOME.
Children and Adult Services,Head of Adults,Third Party Payments,470101,Purchase of Care,13-Jul-16,3153722-2319434,"1,137.96",BEAULEY LODGE CARE HOME.
Children and Adult Services,Head of Adults,Third Party Payments,470101,Purchase of Care,13-Jul-16,3153723-2320308,"1,103.33",BEDDELL HOUSE.
Children and Adult Services,Head of Adults,Third Party Payments,470101,Purchase of Care,13-Jul-16,3153723-2320309,956.22,BEDDELL HOUSE.
Children and Adult Services,Head of Adults,Third Party Payments,470101,Purchase of Care,13-Jul-16,3153723-2320310,"2,059.56",BEDDELL HOUSE.
Children and Adult Services,Head of Adults,Third Party Payments,470101,Purchase of Care,13-Jul-16,3153723-2320311,514.89,BEDDELL HOUSE.
Children and Adult Services,Head of Adults,Third Party Payments,470101,Purchase of Care,13-Jul-16,3153723-2320312,"2,059.56",BEDDELL HOUSE.
Children and Adult Services,Head of Adults,Third Party Payments,470101,Purchase of Care,13-Jul-16,3153723-2320313,"1,324.00",BEDDELL HOUSE.
Children and Adult Services,Head of Adults,Third Party Payments,470101,Purchase of Care,13-Jul-16,3153723-2320314,"2,059.56",BEDDELL HOUSE.
Children and Adult Services,Head of Adults,Third Party Payments,470101,Purchase of Care,13-Jul-16,3153723-2320315,"2,059.56",BEDDELL HOUSE.
Children and Adult Services,Head of Adults,Third Party Payments,470101,Purchase of Care,13-Jul-16,3153723-2320316,"2,059.56",BEDDELL HOUSE.
Children and Adult Services,Head of Adults,Third Party Payments,470101,Purchase of Care,13-Jul-16,3153723-2320317,"2,059.56",BEDDELL HOUSE.
Children and Adult Services,Head of Adults,Third Party Payments,470101,Purchase of Care,13-Jul-16,3153723-2320318,"2,059.56",BEDDELL HOUSE.
Children and Adult Services,Head of Adults,Third Party Payments,470101,Purchase of Care,13-Jul-16,3153723-2320319,"2,059.56",BEDDELL HOUSE.
Children and Adult Services,Head of Adults,Third Party Payments,470101,Purchase of Care,13-Jul-16,3153723-2320320,"2,059.56",BEDDELL HOUSE.
Children and Adult Services,Head of Adults,Third Party Payments,470101,Purchase of Care,13-Jul-16,3153723-2320321,"1,838.89",BEDDELL HOUSE.
Children and Adult Services,Head of Adults,Third Party Payments,470101,Purchase of Care,13-Jul-16,3153723-2320322,"2,059.56",BEDDELL HOUSE.
Children and Adult Services,Head of Adults,Third Party Payments,470101,Purchase of Care,13-Jul-16,3153723-2320323,"2,059.56",BEDDELL HOUSE.
Children and Adult Services,Head of Adults,Third Party Payments,470101,Purchase of Care,13-Jul-16,3153723-2320324,"2,059.56",BEDDELL HOUSE.
Children and Adult Services,Head of Adults,Third Party Payments,470101,Purchase of Care,13-Jul-16,3153723-2320325,"2,059.56",BEDDELL HOUSE.
Children and Adult Services,Head of Adults,Third Party Payments,470101,Purchase of Care,13-Jul-16,3153723-2320326,"2,059.56",BEDDELL HOUSE.
Children and Adult Services,Head of Adults,Third Party Payments,470101,Purchase of Care,13-Jul-16,3153723-2320327,"2,059.56",BEDDELL HOUSE.
Children and Adult Services,Head of Adults,Third Party Payments,470101,Purchase of Care,13-Jul-16,3153723-2323048,"1,250.44",BEDDELL HOUSE.
Children and Adult Services,Head of Adults,Third Party Payments,470101,Purchase of Care,13-Jul-16,3153723-2323331,514.89,BEDDELL HOUSE.
Children and Adult Services,Head of Adults,Third Party Payments,470101,Purchase of Care,13-Jul-16,3153723-2323556,514.89,BEDDELL HOUSE.
Children and Adult Services,Head of Adults,Third Party Payments,470101,Purchase of Care,13-Jul-16,3153724-2321232,"1,824.00",BELLE VUE HEALTHCARE LTD.
Children and Adult Services,Head of Adults,Third Party Payments,470101,Purchase of Care,13-Jul-16,3153725-2321128,"1,907.72",BENAMY HOUSE.
Children and Adult Services,Head of Adults,Third Party Payments,470101,Purchase of Care,13-Jul-16,3153725-2321129,"1,907.72",BENAMY HOUSE.
Children and Adult Services,Head of Adults,Third Party Payments,470101,Purchase of Care,13-Jul-16,3153725-2321130,"1,907.72",BENAMY HOUSE.
Children and Adult Services,Head of Adults,Third Party Payments,470101,Purchase of Care,13-Jul-16,3153725-2321131,"1,907.72",BENAMY HOUSE.
Children and Adult Services,Head of Adults,Third Party Payments,470101,Purchase of Care,13-Jul-16,3153725-2321132,"1,907.72",BENAMY HOUSE.
Children and Adult Services,Head of Adults,Third Party Payments,470101,Purchase of Care,13-Jul-16,3153726-2320003,922.2,BENFIELD HALL RESIDENTIAL CARE.
Children and Adult Services,Head of Adults,Third Party Payments,474101,Purchase of Care,13-Jul-16,3153726-2320004,"1,536.56",BENFIELD HALL RESIDENTIAL CARE.
Children and Adult Services,Head of Adults,Third Party Payments,474101,Purchase of Care,13-Jul-16,3153726-2320005,"1,937.16",BENFIELD HALL RESIDENTIAL CARE.
Children and Adult Services,Head of Adults,Third Party Payments,470101,Purchase of Care,13-Jul-16,3153726-2320007,"1,844.36",BENFIELD HALL RESIDENTIAL CARE.
Children and Adult Services,Head of Adults,Third Party Payments,474101,Purchase of Care,13-Jul-16,3153726-2320008,968.6,BENFIELD HALL RESIDENTIAL CARE.
Children and Adult Services,Head of Adults,Third Party Payments,474101,Purchase of Care,13-Jul-16,3153726-2320010,"1,414.36",BENFIELD HALL RESIDENTIAL CARE.
Children and Adult Services,Head of Adults,Third Party Payments,474101,Purchase of Care,13-Jul-16,3153726-2320012,968.6,BENFIELD HALL RESIDENTIAL CARE.
Children and Adult Services,Head of Adults,Third Party Payments,474101,Purchase of Care,13-Jul-16,3153726-2320014,"1,937.16",BENFIELD HALL RESIDENTIAL CARE.
Children and Adult Services,Head of Adults,Third Party Payments,474101,Purchase of Care,13-Jul-16,3153726-2320016,968.6,BENFIELD HALL RESIDENTIAL CARE.
Children and Adult Services,Head of Adults,Third Party Payments,474101,Purchase of Care,13-Jul-16,3153726-2320018,968.6,BENFIELD HALL RESIDENTIAL CARE.
Children and Adult Services,Head of Adults,Third Party Payments,474101,Purchase of Care,13-Jul-16,3153726-2320020,968.6,BENFIELD HALL RESIDENTIAL CARE.
Children and Adult Services,Head of Adults,Third Party Payments,470101,Purchase of Care,13-Jul-16,3153727-2319981,"3,021.64",BENTON CARE SERVICES LTD.
Children and Adult Services,Head of Adults,Third Party Payments,470101,Purchase of Care,13-Jul-16,3153727-2319982,"3,021.64",BENTON CARE SERVICES LTD.
Children and Adult Services,Head of Adults,Third Party Payments,470101,Purchase of Care,13-Jul-16,3153727-2319983,"3,021.64",BENTON CARE SERVICES LTD.
Children and Adult Services,Head of Adults,Third Party Payments,470101,Purchase of Care,13-Jul-16,3153727-2319984,"3,021.64",BENTON CARE SERVICES LTD.
Children and Adult Services,Head of Adults,Third Party Payments,470101,Purchase of Care,13-Jul-16,3153727-2319985,"3,021.64",BENTON CARE SERVICES LTD.
Children and Adult Services,Head of Adults,Third Party Payments,470101,Purchase of Care,13-Jul-16,3153727-2319986,"3,021.64",BENTON CARE SERVICES LTD.
Children and Adult Services,Head of Adults,Third Party Payments,470101,Purchase of Care,13-Jul-16,3153727-2322860,953.84,BENTON CARE SERVICES LTD.
Children and Adult Services,Head of Adults,Third Party Payments,470101,Purchase of Care,13-Jul-16,3153727-2322861,"1,907.72",BENTON CARE SERVICES LTD.
Children and Adult Services,Head of Adults,Third Party Payments,478101,Purchase of Care,13-Jul-16,3153728-2321431,"1,396.24",REDACTED - PAYMENT TO INDIVIDUAL
Children and Adult Services,Head of Adults,Third Party Payments,478101,Purchase of Care,13-Jul-16,3153728-2321432,"1,396.24",REDACTED - PAYMENT TO INDIVIDUAL
Children and Adult Services,Head of Adults,Third Party Payments,470101,Purchase of Care,13-Jul-16,3153729-2318959,"1,949.24",BISHOPSGATE LODGE.
Children and Adult Services,Head of Adults,Third Party Payments,470101,Purchase of Care,13-Jul-16,3153729-2318960,"1,949.24",BISHOPSGATE LODGE.
Children and Adult Services,Head of Adults,Third Party Payments,470101,Purchase of Care,13-Jul-16,3153729-2318961,"1,949.24",BISHOPSGATE LODGE.
Children and Adult Services,Head of Adults,Third Party Payments,474101,Purchase of Care,13-Jul-16,3153729-2318962,"2,046.60",BISHOPSGATE LODGE.
Children and Adult Services,Head of Adults,Third Party Payments,474101,Purchase of Care,13-Jul-16,3153729-2318964,"2,046.60",BISHOPSGATE LODGE.
Children and Adult Services,Head of Adults,Third Party Payments,470101,Purchase of Care,13-Jul-16,3153729-2318967,"1,949.24",BISHOPSGATE LODGE.
Children and Adult Services,Head of Adults,Third Party Payments,470101,Purchase of Care,13-Jul-16,3153729-2318968,"1,949.24",BISHOPSGATE LODGE.
Children and Adult Services,Head of Adults,Third Party Payments,471101,Purchase of Care,13-Jul-16,3153729-2318969,"2,026.40",BISHOPSGATE LODGE.
Children and Adult Services,Head of Adults,Third Party Payments,471101,Purchase of Care,13-Jul-16,3153729-2318970,"2,026.40",BISHOPSGATE LODGE.
Children and Adult Services,Head of Adults,Third Party Payments,471101,Purchase of Care,13-Jul-16,3153729-2318971,"1,013.20",BISHOPSGATE LODGE.
Children and Adult Services,Head of Adults,Third Party Payments,474101,Purchase of Care,13-Jul-16,3153729-2318972,"2,046.60",BISHOPSGATE LODGE.
Children and Adult Services,Head of Adults,Third Party Payments,470101,Purchase of Care,13-Jul-16,3153729-2318974,"1,949.24",BISHOPSGATE LODGE.
Children and Adult Services,Head of Adults,Third Party Payments,470101,Purchase of Care,13-Jul-16,3153729-2318975,"1,949.24",BISHOPSGATE LODGE.
Children and Adult Services,Head of Adults,Third Party Payments,470101,Purchase of Care,13-Jul-16,3153729-2318976,"1,949.24",BISHOPSGATE LODGE.
Children and Adult Services,Head of Adults,Third Party Payments,471101,Purchase of Care,13-Jul-16,3153729-2318977,"2,026.40",BISHOPSGATE LODGE.
Children and Adult Services,Head of Adults,Third Party Payments,470101,Purchase of Care,13-Jul-16,3153729-2318978,"1,949.24",BISHOPSGATE LODGE.
Children and Adult Services,Head of Adults,Third Party Payments,470101,Purchase of Care,13-Jul-16,3153729-2318979,"1,949.24",BISHOPSGATE LODGE.
Children and Adult Services,Head of Adults,Third Party Payments,474101,Purchase of Care,13-Jul-16,3153729-2318980,"2,046.60",BISHOPSGATE LODGE.
Children and Adult Services,Head of Adults,Third Party Payments,474101,Purchase of Care,13-Jul-16,3153729-2318983,"2,046.60",BISHOPSGATE LODGE.
Children and Adult Services,Head of Adults,Third Party Payments,470101,Purchase of Care,13-Jul-16,3153729-2318985,"1,949.24",BISHOPSGATE LODGE.
Children and Adult Services,Head of Adults,Third Party Payments,470101,Purchase of Care,13-Jul-16,3153729-2318986,"1,949.24",BISHOPSGATE LODGE.
Children and Adult Services,Head of Adults,Third Party Payments,471101,Purchase of Care,13-Jul-16,3153729-2318987,"2,026.40",BISHOPSGATE LODGE.
Children and Adult Services,Head of Adults,Third Party Payments,474101,Purchase of Care,13-Jul-16,3153729-2318988,"2,046.60",BISHOPSGATE LODGE.
Children and Adult Services,Head of Adults,Third Party Payments,471101,Purchase of Care,13-Jul-16,3153729-2318990,"2,026.40",BISHOPSGATE LODGE.
Children and Adult Services,Head of Adults,Third Party Payments,470101,Purchase of Care,13-Jul-16,3153729-2318991,"1,949.24",BISHOPSGATE LODGE.
Children and Adult Services,Head of Adults,Third Party Payments,470101,Purchase of Care,13-Jul-16,3153729-2318992,"1,949.24",BISHOPSGATE LODGE.
Children and Adult Services,Head of Adults,Third Party Payments,471101,Purchase of Care,13-Jul-16,3153729-2318993,"2,026.40",BISHOPSGATE LODGE.
Children and Adult Services,Head of Adults,Third Party Payments,471101,Purchase of Care,13-Jul-16,3153729-2318994,"2,026.40",BISHOPSGATE LODGE.
Children and Adult Services,Head of Adults,Third Party Payments,470101,Purchase of Care,13-Jul-16,3153729-2318995,"1,949.24",BISHOPSGATE LODGE.
Children and Adult Services,Head of Adults,Third Party Payments,470101,Purchase of Care,13-Jul-16,3153729-2318996,"1,949.24",BISHOPSGATE LODGE.
Children and Adult Services,Head of Adults,Third Party Payments,474101,Purchase of Care,13-Jul-16,3153729-2318997,"2,046.60",BISHOPSGATE LODGE.
Children and Adult Services,Head of Adults,Third Party Payments,470101,Purchase of Care,13-Jul-16,3153729-2318999,"1,949.24",BISHOPSGATE LODGE.
Children and Adult Services,Head of Adults,Third Party Payments,470101,Purchase of Care,13-Jul-16,3153729-2319000,"1,949.24",BISHOPSGATE LODGE.
Children and Adult Services,Head of Adults,Third Party Payments,470101,Purchase of Care,13-Jul-16,3153729-2319001,"1,949.24",BISHOPSGATE LODGE.
Children and Adult Services,Head of Adults,Third Party Payments,474101,Purchase of Care,13-Jul-16,3153729-2319002,"2,046.60",BISHOPSGATE LODGE.
Children and Adult Services,Head of Adults,Third Party Payments,470101,Purchase of Care,13-Jul-16,3153729-2319004,"1,949.24",BISHOPSGATE LODGE.
Children and Adult Services,Head of Adults,Third Party Payments,470102,Purchase of Care,13-Jul-16,3153729-2323553,621.09,BISHOPSGATE LODGE.
Children and Adult Services,Head of Adults,Third Party Payments,474101,Purchase of Care,13-Jul-16,3153730-2321872,"2,500.00",BOWES COURT CARE HOME.
Children and Adult Services,Head of Adults,Third Party Payments,474101,Purchase of Care,13-Jul-16,3153730-2321875,"2,525.00",BOWES COURT CARE HOME.
Children and Adult Services,Head of Adults,Third Party Payments,470101,Purchase of Care,13-Jul-16,3153730-2321877,"2,222.00",BOWES COURT CARE HOME.
Children and Adult Services,Head of Adults,Third Party Payments,470101,Purchase of Care,13-Jul-16,3153730-2321878,"1,008.00",BOWES COURT CARE HOME.
Children and Adult Services,Head of Adults,Third Party Payments,470101,Purchase of Care,13-Jul-16,3153730-2321879,"2,300.00",BOWES COURT CARE HOME.
Children and Adult Services,Head of Adults,Third Party Payments,470101,Purchase of Care,13-Jul-16,3153730-2321880,"5,082.00",BOWES COURT CARE HOME.
Children and Adult Services,Head of Adults,Third Party Payments,474101,Purchase of Care,13-Jul-16,3153730-2321883,"2,400.00",BOWES COURT CARE HOME.
Children and Adult Services,Head of Adults,Third Party Payments,474101,Purchase of Care,13-Jul-16,3153730-2321884,"4,800.00",BOWES COURT CARE HOME.
Children and Adult Services,Head of Adults,Third Party Payments,470101,Purchase of Care,13-Jul-16,3153730-2321886,"3,672.00",BOWES COURT CARE HOME.
Children and Adult Services,Head of Adults,Third Party Payments,470101,Purchase of Care,13-Jul-16,3153730-2323636,"16,407.86",BOWES COURT CARE HOME.
Children and Adult Services,Head of Adults,Third Party Payments,474101,Purchase of Care,13-Jul-16,3153731-2318757,"2,156.96",BRANCEPETH COURT.
Children and Adult Services,Head of Adults,Third Party Payments,474101,Purchase of Care,13-Jul-16,3153731-2318759,"2,156.96",BRANCEPETH COURT.
Children and Adult Services,Head of Adults,Third Party Payments,470101,Purchase of Care,13-Jul-16,3153731-2318761,"2,124.52",BRANCEPETH COURT.
Children and Adult Services,Head of Adults,Third Party Payments,470101,Purchase of Care,13-Jul-16,3153731-2318762,"2,059.56",BRANCEPETH COURT.
Children and Adult Services,Head of Adults,Third Party Payments,474101,Purchase of Care,13-Jul-16,3153731-2318763,"2,156.96",BRANCEPETH COURT.
Children and Adult Services,Head of Adults,Third Party Payments,470101,Purchase of Care,13-Jul-16,3153731-2318765,"1,471.11",BRANCEPETH COURT.
Children and Adult Services,Head of Adults,Third Party Payments,474101,Purchase of Care,13-Jul-16,3153731-2318766,539.24,BRANCEPETH COURT.
Children and Adult Services,Head of Adults,Third Party Payments,470101,Purchase of Care,13-Jul-16,3153731-2318769,"2,059.56",BRANCEPETH COURT.
Children and Adult Services,Head of Adults,Third Party Payments,474101,Purchase of Care,13-Jul-16,3153731-2318770,"2,156.96",BRANCEPETH COURT.
Children and Adult Services,Head of Adults,Third Party Payments,471101,Purchase of Care,13-Jul-16,3153731-2318772,"2,135.60",BRANCEPETH COURT.
Children and Adult Services,Head of Adults,Third Party Payments,474101,Purchase of Care,13-Jul-16,3153731-2318773,"2,166.20",BRANCEPETH COURT.
Children and Adult Services,Head of Adults,Third Party Payments,470101,Purchase of Care,13-Jul-16,3153731-2318775,"2,059.56",BRANCEPETH COURT.
Children and Adult Services,Head of Adults,Third Party Payments,474101,Purchase of Care,13-Jul-16,3153731-2318776,"2,342.44",BRANCEPETH COURT.
Children and Adult Services,Head of Adults,Third Party Payments,470101,Purchase of Care,13-Jul-16,3153731-2318780,"2,059.56",BRANCEPETH COURT.
Children and Adult Services,Head of Adults,Third Party Payments,470101,Purchase of Care,13-Jul-16,3153731-2318781,"2,059.56",BRANCEPETH COURT.
Children and Adult Services,Head of Adults,Third Party Payments,470101,Purchase of Care,13-Jul-16,3153731-2318782,"2,059.56",BRANCEPETH COURT.
Children and Adult Services,Head of Adults,Third Party Payments,470101,Purchase of Care,13-Jul-16,3153731-2318783,"2,124.52",BRANCEPETH COURT.
Children and Adult Services,Head of Adults,Third Party Payments,470101,Purchase of Care,13-Jul-16,3153731-2318784,"2,124.52",BRANCEPETH COURT.
Children and Adult Services,Head of Adults,Third Party Payments,474101,Purchase of Care,13-Jul-16,3153731-2318785,"2,156.96",BRANCEPETH COURT.
Children and Adult Services,Head of Adults,Third Party Payments,470101,Purchase of Care,13-Jul-16,3153731-2318787,"2,059.56",BRANCEPETH COURT.
Children and Adult Services,Head of Adults,Third Party Payments,474101,Purchase of Care,13-Jul-16,3153731-2318788,"2,156.96",BRANCEPETH COURT.
Children and Adult Services,Head of Adults,Third Party Payments,470101,Purchase of Care,13-Jul-16,3153731-2318790,"2,059.56",BRANCEPETH COURT.
Children and Adult Services,Head of Adults,Third Party Payments,470101,Purchase of Care,13-Jul-16,3153731-2318791,"2,124.52",BRANCEPETH COURT.
Children and Adult Services,Head of Adults,Third Party Payments,474101,Purchase of Care,13-Jul-16,3153731-2318792,"2,156.96",BRANCEPETH COURT.
Children and Adult Services,Head of Adults,Third Party Payments,470101,Purchase of Care,13-Jul-16,3153731-2318794,"2,124.52",BRANCEPETH COURT.
Children and Adult Services,Head of Adults,Third Party Payments,470101,Purchase of Care,13-Jul-16,3153731-2318795,"2,124.52",BRANCEPETH COURT.
Children and Adult Services,Head of Adults,Third Party Payments,470101,Purchase of Care,13-Jul-16,3153731-2318796,"2,124.52",BRANCEPETH COURT.
Children and Adult Services,Head of Adults,Third Party Payments,470101,Purchase of Care,13-Jul-16,3153731-2318797,"2,124.52",BRANCEPETH COURT.
Children and Adult Services,Head of Adults,Third Party Payments,470101,Purchase of Care,13-Jul-16,3153731-2318798,"2,124.52",BRANCEPETH COURT.
Children and Adult Services,Head of Adults,Third Party Payments,470101,Purchase of Care,13-Jul-16,3153731-2323142,514.89,BRANCEPETH COURT.
Children and Adult Services,Head of Adults,Third Party Payments,470101,Purchase of Care,13-Jul-16,3153731-2323437,"1,324.00",BRANCEPETH COURT.
Children and Adult Services,Head of Adults,Third Party Payments,470101,Purchase of Care,13-Jul-16,3153732-2319457,"2,059.56",BROOMHOUSE CARE LTD.
Children and Adult Services,Head of Adults,Third Party Payments,471101,Purchase of Care,13-Jul-16,3153732-2319458,"2,135.60",BROOMHOUSE CARE LTD.
Children and Adult Services,Head of Adults,Third Party Payments,471101,Purchase of Care,13-Jul-16,3153732-2319459,"4,024.12",BROOMHOUSE CARE LTD.
Children and Adult Services,Head of Adults,Third Party Payments,471101,Purchase of Care,13-Jul-16,3153732-2319460,"2,135.60",BROOMHOUSE CARE LTD.
Children and Adult Services,Head of Adults,Third Party Payments,471101,Purchase of Care,13-Jul-16,3153732-2319461,"1,593.60",BROOMHOUSE CARE LTD.
Children and Adult Services,Head of Adults,Third Party Payments,471101,Purchase of Care,13-Jul-16,3153732-2319462,"2,135.60",BROOMHOUSE CARE LTD.
Children and Adult Services,Head of Adults,Third Party Payments,471101,Purchase of Care,13-Jul-16,3153732-2319463,"2,135.60",BROOMHOUSE CARE LTD.
Children and Adult Services,Head of Adults,Third Party Payments,470101,Purchase of Care,13-Jul-16,3153732-2319464,"2,059.56",BROOMHOUSE CARE LTD.
Children and Adult Services,Head of Adults,Third Party Payments,471101,Purchase of Care,13-Jul-16,3153732-2319465,"2,135.60",BROOMHOUSE CARE LTD.
Children and Adult Services,Head of Adults,Third Party Payments,470101,Purchase of Care,13-Jul-16,3153732-2319466,"1,453.96",BROOMHOUSE CARE LTD.
Children and Adult Services,Head of Adults,Third Party Payments,471101,Purchase of Care,13-Jul-16,3153732-2319467,"1,312.40",BROOMHOUSE CARE LTD.
Children and Adult Services,Head of Adults,Third Party Payments,470101,Purchase of Care,13-Jul-16,3153732-2319468,"1,301.36",BROOMHOUSE CARE LTD.
Children and Adult Services,Head of Adults,Third Party Payments,471101,Purchase of Care,13-Jul-16,3153732-2319469,"1,417.72",BROOMHOUSE CARE LTD.
Children and Adult Services,Head of Adults,Third Party Payments,470101,Purchase of Care,13-Jul-16,3153732-2319470,"2,059.56",BROOMHOUSE CARE LTD.
Children and Adult Services,Head of Adults,Third Party Payments,471101,Purchase of Care,13-Jul-16,3153732-2319471,"1,672.80",BROOMHOUSE CARE LTD.
Children and Adult Services,Head of Adults,Third Party Payments,470101,Purchase of Care,13-Jul-16,3153732-2319472,"1,536.76",BROOMHOUSE CARE LTD.
Children and Adult Services,Head of Adults,Third Party Payments,471101,Purchase of Care,13-Jul-16,3153732-2319473,"1,187.16",BROOMHOUSE CARE LTD.
Children and Adult Services,Head of Adults,Third Party Payments,470101,Purchase of Care,13-Jul-16,3153732-2323145,987.91,BROOMHOUSE CARE LTD.
Children and Adult Services,Head of Adults,Third Party Payments,474101,Purchase of Care,13-Jul-16,3153733-2315716,844.06,BURLINGTON CARE LTD T/A MAPLE LODGE CARE HOME.
Children and Adult Services,Head of Adults,Third Party Payments,474101,Purchase of Care,13-Jul-16,3153733-2320775,"1,688.12",BURLINGTON CARE LTD T/A MAPLE LODGE CARE HOME.
Children and Adult Services,Head of Adults,Third Party Payments,478101,Purchase of Care,13-Jul-16,3153734-2322659,"1,396.24",REDACTED - PAYMENT TO INDIVIDUAL
Children and Adult Services,Head of Adults,Third Party Payments,470101,Purchase of Care,13-Jul-16,3153735-2322455,"1,655.20",CARE UK..
Children and Adult Services,Head of Adults,Third Party Payments,471101,Purchase of Care,13-Jul-16,3153735-2322456,"1,818.96",CARE UK..
Children and Adult Services,Head of Adults,Third Party Payments,471101,Purchase of Care,13-Jul-16,3153735-2322457,"1,818.96",CARE UK..
Children and Adult Services,Head of Adults,Third Party Payments,474101,Purchase of Care,13-Jul-16,3153736-2318753,"1,972.00",CARE UK..
Children and Adult Services,Head of Adults,Third Party Payments,470101,Purchase of Care,13-Jul-16,3153736-2318754,"1,197.28",CARE UK..
Children and Adult Services,Head of Adults,Third Party Payments,474101,Purchase of Care,13-Jul-16,3153736-2318755,"1,972.00",CARE UK..
Children and Adult Services,Head of Adults,Third Party Payments,470101,Purchase of Care,13-Jul-16,3153736-2318756,"1,972.00",CARE UK..
Children and Adult Services,Head of Adults,Third Party Payments,470101,Purchase of Care,13-Jul-16,3153737-2321504,"2,461.68",CARELINE LIFESTYLES (UK) LTD.
Children and Adult Services,Head of Adults,Third Party Payments,474101,Purchase of Care,13-Jul-16,3153738-2321850,"2,694.00",CARELINE LIFESTYLES (UK) LTD.
Children and Adult Services,Head of Adults,Third Party Payments,470101,Purchase of Care,13-Jul-16,3153738-2321852,"2,500.00",CARELINE LIFESTYLES (UK) LTD.
Children and Adult Services,Head of Adults,Third Party Payments,470101,Purchase of Care,13-Jul-16,3153738-2321853,"2,016.00",CARELINE LIFESTYLES (UK) LTD.
Children and Adult Services,Head of Adults,Third Party Payments,470101,Purchase of Care,13-Jul-16,3153738-2323170,"3,486.33",CARELINE LIFESTYLES (UK) LTD.
Children and Adult Services,Head of Adults,Third Party Payments,474101,Purchase of Care,13-Jul-16,3153739-2322653,"4,800.00",CARELINE LIFESTYLES (UK) LTD.
Children and Adult Services,Head of Adults,Third Party Payments,474101,Purchase of Care,13-Jul-16,3153739-2322654,"2,808.00",CARELINE LIFESTYLES (UK) LTD.
Children and Adult Services,Head of Adults,Third Party Payments,474101,Purchase of Care,13-Jul-16,3153740-2322902,"3,908.00",CARELINE LIFESTYLES (UK) LTD.
Children and Adult Services,Head of Adults,Third Party Payments,474101,Purchase of Care,13-Jul-16,3153740-2322903,"5,400.00",CARELINE LIFESTYLES (UK) LTD.
Children and Adult Services,Head of Adults,Third Party Payments,474101,Purchase of Care,13-Jul-16,3153740-2322904,"2,300.00",CARELINE LIFESTYLES (UK) LTD.
Children and Adult Services,Head of Adults,Third Party Payments,474101,Purchase of Care,13-Jul-16,3153740-2323111,"24,025.06",CARELINE LIFESTYLES (UK) LTD.
Children and Adult Services,Head of Adults,Third Party Payments,474101,Purchase of Care,13-Jul-16,3153741-2321854,"1,860.00",CEDAR LODGE CARE HOME.
Children and Adult Services,Head of Adults,Third Party Payments,471101,Purchase of Care,13-Jul-16,3153742-2323035,"1,909.84",CHHG LTD T/A GILDAWOOD COURT CARE HOME.
Children and Adult Services,Head of Adults,Third Party Payments,471101,Purchase of Care,13-Jul-16,3153743-2321751,"2,135.60",CHILTON CARE CENTRE.
Children and Adult Services,Head of Adults,Third Party Payments,471101,Purchase of Care,13-Jul-16,3153743-2321752,"1,612.80",CHILTON CARE CENTRE.
Children and Adult Services,Head of Adults,Third Party Payments,470101,Purchase of Care,13-Jul-16,3153743-2321753,"2,059.56",CHILTON CARE CENTRE.
Children and Adult Services,Head of Adults,Third Party Payments,471101,Purchase of Care,13-Jul-16,3153743-2321754,"1,547.00",CHILTON CARE CENTRE.
Children and Adult Services,Head of Adults,Third Party Payments,471101,Purchase of Care,13-Jul-16,3153743-2321755,"1,635.80",CHILTON CARE CENTRE.
Children and Adult Services,Head of Adults,Third Party Payments,471101,Purchase of Care,13-Jul-16,3153743-2321756,654.88,CHILTON CARE CENTRE.
Children and Adult Services,Head of Adults,Third Party Payments,470101,Purchase of Care,13-Jul-16,3153743-2321757,"1,529.36",CHILTON CARE CENTRE.
Children and Adult Services,Head of Adults,Third Party Payments,471101,Purchase of Care,13-Jul-16,3153743-2321758,"1,367.84",CHILTON CARE CENTRE.
Children and Adult Services,Head of Adults,Third Party Payments,470101,Purchase of Care,13-Jul-16,3153743-2321760,"2,059.56",CHILTON CARE CENTRE.
Children and Adult Services,Head of Adults,Third Party Payments,471101,Purchase of Care,13-Jul-16,3153743-2321761,"2,135.60",CHILTON CARE CENTRE.
Children and Adult Services,Head of Adults,Third Party Payments,470101,Purchase of Care,13-Jul-16,3153743-2321762,"2,059.56",CHILTON CARE CENTRE.
Children and Adult Services,Head of Adults,Third Party Payments,471101,Purchase of Care,13-Jul-16,3153743-2321763,"1,249.76",CHILTON CARE CENTRE.
Children and Adult Services,Head of Adults,Third Party Payments,470101,Purchase of Care,13-Jul-16,3153743-2321764,748.99,CHILTON CARE CENTRE.
Children and Adult Services,Head of Adults,Third Party Payments,470101,Purchase of Care,13-Jul-16,3153743-2321765,"1,536.76",CHILTON CARE CENTRE.
Children and Adult Services,Head of Adults,Third Party Payments,471101,Purchase of Care,13-Jul-16,3153743-2321766,"1,595.12",CHILTON CARE CENTRE.
Children and Adult Services,Head of Adults,Third Party Payments,470101,Purchase of Care,13-Jul-16,3153743-2321767,"1,492.16",CHILTON CARE CENTRE.
Children and Adult Services,Head of Adults,Third Party Payments,471101,Purchase of Care,13-Jul-16,3153743-2321768,"1,445.20",CHILTON CARE CENTRE.
Children and Adult Services,Head of Adults,Third Party Payments,471101,Purchase of Care,13-Jul-16,3153743-2321769,"2,135.60",CHILTON CARE CENTRE.
Children and Adult Services,Head of Adults,Third Party Payments,471101,Purchase of Care,13-Jul-16,3153743-2321770,"2,135.60",CHILTON CARE CENTRE.
Children and Adult Services,Head of Adults,Third Party Payments,471101,Purchase of Care,13-Jul-16,3153743-2321771,"2,135.60",CHILTON CARE CENTRE.
Children and Adult Services,Head of Adults,Third Party Payments,471101,Purchase of Care,13-Jul-16,3153743-2321772,"1,298.40",CHILTON CARE CENTRE.
Children and Adult Services,Head of Adults,Third Party Payments,470101,Purchase of Care,13-Jul-16,3153743-2321773,"1,467.96",CHILTON CARE CENTRE.
Children and Adult Services,Head of Adults,Third Party Payments,470101,Purchase of Care,13-Jul-16,3153743-2321775,"1,505.28",CHILTON CARE CENTRE.
Children and Adult Services,Head of Adults,Third Party Payments,470101,Purchase of Care,13-Jul-16,3153743-2321776,"1,289.72",CHILTON CARE CENTRE.
Children and Adult Services,Head of Adults,Third Party Payments,470101,Purchase of Care,13-Jul-16,3153743-2321777,"2,059.56",CHILTON CARE CENTRE.
Children and Adult Services,Head of Adults,Third Party Payments,471101,Purchase of Care,13-Jul-16,3153743-2321778,"1,612.80",CHILTON CARE CENTRE.
Children and Adult Services,Head of Adults,Third Party Payments,471101,Purchase of Care,13-Jul-16,3153743-2321779,"1,305.24",CHILTON CARE CENTRE.
Children and Adult Services,Head of Adults,Third Party Payments,471101,Purchase of Care,13-Jul-16,3153743-2321780,"2,135.60",CHILTON CARE CENTRE.
Children and Adult Services,Head of Adults,Third Party Payments,471101,Purchase of Care,13-Jul-16,3153743-2321781,"2,135.60",CHILTON CARE CENTRE.
Children and Adult Services,Head of Adults,Third Party Payments,471101,Purchase of Care,13-Jul-16,3153743-2321782,"1,612.80",CHILTON CARE CENTRE.
Children and Adult Services,Head of Adults,Third Party Payments,471101,Purchase of Care,13-Jul-16,3153743-2321783,"1,612.80",CHILTON CARE CENTRE.
Children and Adult Services,Head of Adults,Third Party Payments,471101,Purchase of Care,13-Jul-16,3153743-2321784,748.79,CHILTON CARE CENTRE.
Children and Adult Services,Head of Adults,Third Party Payments,470101,Purchase of Care,13-Jul-16,3153743-2321785,"1,408.56",CHILTON CARE CENTRE.
Children and Adult Services,Head of Adults,Third Party Payments,470101,Purchase of Care,13-Jul-16,3153743-2323146,514.89,CHILTON CARE CENTRE.
Children and Adult Services,Head of Adults,Third Party Payments,470101,Purchase of Care,13-Jul-16,3153743-2323158,588.45,CHILTON CARE CENTRE.
Children and Adult Services,Head of Adults,Third Party Payments,470101,Purchase of Care,13-Jul-16,3153743-2323383,915.05,CHILTON CARE CENTRE.
Children and Adult Services,Head of Adults,Third Party Payments,470101,Purchase of Care,13-Jul-16,3153743-2323613,"1,061.74",CHILTON CARE CENTRE.
Children and Adult Services,Head of Adults,Third Party Payments,471101,Purchase of Care,13-Jul-16,3153744-2318000,"2,252.00",CHRISTIAN HEAD CARE HOME.
Children and Adult Services,Head of Adults,Third Party Payments,470101,Purchase of Care,13-Jul-16,3153745-2321477,"2,059.56",CHURCH VIEW CARE HOME.
Children and Adult Services,Head of Adults,Third Party Payments,471101,Purchase of Care,13-Jul-16,3153745-2321478,"2,135.60",CHURCH VIEW CARE HOME.
Children and Adult Services,Head of Adults,Third Party Payments,471101,Purchase of Care,13-Jul-16,3153745-2321479,"2,135.60",CHURCH VIEW CARE HOME.
Children and Adult Services,Head of Adults,Third Party Payments,470101,Purchase of Care,13-Jul-16,3153745-2321480,"2,059.56",CHURCH VIEW CARE HOME.
Children and Adult Services,Head of Adults,Third Party Payments,470101,Purchase of Care,13-Jul-16,3153745-2321481,"2,059.56",CHURCH VIEW CARE HOME.
Children and Adult Services,Head of Adults,Third Party Payments,470101,Purchase of Care,13-Jul-16,3153745-2321482,"2,059.56",CHURCH VIEW CARE HOME.
Children and Adult Services,Head of Adults,Third Party Payments,471101,Purchase of Care,13-Jul-16,3153745-2321484,"2,135.60",CHURCH VIEW CARE HOME.
Children and Adult Services,Head of Adults,Third Party Payments,470101,Purchase of Care,13-Jul-16,3153745-2321485,"2,059.56",CHURCH VIEW CARE HOME.
Children and Adult Services,Head of Adults,Third Party Payments,471101,Purchase of Care,13-Jul-16,3153745-2321486,"2,135.60",CHURCH VIEW CARE HOME.
Children and Adult Services,Head of Adults,Third Party Payments,471101,Purchase of Care,13-Jul-16,3153745-2321487,"2,135.60",CHURCH VIEW CARE HOME.
Children and Adult Services,Head of Adults,Third Party Payments,471101,Purchase of Care,13-Jul-16,3153745-2321488,"2,135.60",CHURCH VIEW CARE HOME.
Children and Adult Services,Head of Adults,Third Party Payments,471101,Purchase of Care,13-Jul-16,3153745-2321489,"2,135.60",CHURCH VIEW CARE HOME.
Children and Adult Services,Head of Adults,Third Party Payments,471101,Purchase of Care,13-Jul-16,3153745-2321490,"2,135.60",CHURCH VIEW CARE HOME.
Children and Adult Services,Head of Adults,Third Party Payments,470101,Purchase of Care,13-Jul-16,3153745-2321491,"2,059.56",CHURCH VIEW CARE HOME.
Children and Adult Services,Head of Adults,Third Party Payments,470101,Purchase of Care,13-Jul-16,3153745-2321492,"3,089.34",CHURCH VIEW CARE HOME.
Children and Adult Services,Head of Adults,Third Party Payments,470101,Purchase of Care,13-Jul-16,3153745-2321493,"2,059.56",CHURCH VIEW CARE HOME.
Children and Adult Services,Head of Adults,Third Party Payments,471101,Purchase of Care,13-Jul-16,3153745-2321494,"2,135.60",CHURCH VIEW CARE HOME.
Children and Adult Services,Head of Adults,Third Party Payments,471101,Purchase of Care,13-Jul-16,3153745-2321495,"2,135.60",CHURCH VIEW CARE HOME.
Children and Adult Services,Head of Adults,Third Party Payments,470101,Purchase of Care,13-Jul-16,3153745-2321496,"2,059.56",CHURCH VIEW CARE HOME.
Children and Adult Services,Head of Adults,Third Party Payments,471101,Purchase of Care,13-Jul-16,3153745-2321497,"2,135.60",CHURCH VIEW CARE HOME.
Children and Adult Services,Head of Adults,Third Party Payments,471101,Purchase of Care,13-Jul-16,3153745-2321498,"2,135.60",CHURCH VIEW CARE HOME.
Children and Adult Services,Head of Adults,Third Party Payments,470101,Purchase of Care,13-Jul-16,3153745-2321499,"2,059.56",CHURCH VIEW CARE HOME.
Children and Adult Services,Head of Adults,Third Party Payments,470101,Purchase of Care,13-Jul-16,3153745-2321500,"2,059.56",CHURCH VIEW CARE HOME.
Children and Adult Services,Head of Adults,Third Party Payments,471101,Purchase of Care,13-Jul-16,3153745-2321501,"2,135.60",CHURCH VIEW CARE HOME.
Children and Adult Services,Head of Adults,Third Party Payments,471101,Purchase of Care,13-Jul-16,3153745-2321502,717.92,CHURCH VIEW CARE HOME.
Children and Adult Services,Head of Adults,Third Party Payments,470101,Purchase of Care,13-Jul-16,3153745-2321503,"2,059.56",CHURCH VIEW CARE HOME.
Children and Adult Services,Head of Adults,Third Party Payments,471101,Purchase of Care,13-Jul-16,3153746-2322417,"2,026.40",CHURCH VIEW RESIDENTIAL CARE HOME.
Children and Adult Services,Head of Adults,Third Party Payments,470101,Purchase of Care,13-Jul-16,3153746-2322418,"1,949.24",CHURCH VIEW RESIDENTIAL CARE HOME.
Children and Adult Services,Head of Adults,Third Party Payments,471101,Purchase of Care,13-Jul-16,3153746-2322419,"2,026.40",CHURCH VIEW RESIDENTIAL CARE HOME.
Children and Adult Services,Head of Adults,Third Party Payments,470101,Purchase of Care,13-Jul-16,3153746-2322420,"1,949.24",CHURCH VIEW RESIDENTIAL CARE HOME.
Children and Adult Services,Head of Adults,Third Party Payments,470101,Purchase of Care,13-Jul-16,3153746-2322421,"1,949.24",CHURCH VIEW RESIDENTIAL CARE HOME.
Children and Adult Services,Head of Adults,Third Party Payments,471101,Purchase of Care,13-Jul-16,3153746-2322422,"2,026.40",CHURCH VIEW RESIDENTIAL CARE HOME.
Children and Adult Services,Head of Adults,Third Party Payments,471101,Purchase of Care,13-Jul-16,3153746-2322423,"2,026.40",CHURCH VIEW RESIDENTIAL CARE HOME.
Children and Adult Services,Head of Adults,Third Party Payments,470101,Purchase of Care,13-Jul-16,3153746-2322424,974.64,CHURCH VIEW RESIDENTIAL CARE HOME.
Children and Adult Services,Head of Adults,Third Party Payments,471101,Purchase of Care,13-Jul-16,3153746-2322425,"2,026.40",CHURCH VIEW RESIDENTIAL CARE HOME.
Children and Adult Services,Head of Adults,Third Party Payments,471101,Purchase of Care,13-Jul-16,3153746-2322426,"1,013.20",CHURCH VIEW RESIDENTIAL CARE HOME.
Children and Adult Services,Head of Adults,Third Party Payments,471101,Purchase of Care,13-Jul-16,3153746-2322427,"2,026.40",CHURCH VIEW RESIDENTIAL CARE HOME.
Children and Adult Services,Head of Adults,Third Party Payments,470101,Purchase of Care,13-Jul-16,3153746-2322428,"1,949.24",CHURCH VIEW RESIDENTIAL CARE HOME.
Children and Adult Services,Head of Adults,Third Party Payments,471101,Purchase of Care,13-Jul-16,3153746-2322429,"2,026.40",CHURCH VIEW RESIDENTIAL CARE HOME.
Children and Adult Services,Head of Adults,Third Party Payments,471101,Purchase of Care,13-Jul-16,3153746-2322430,"2,026.40",CHURCH VIEW RESIDENTIAL CARE HOME.
Children and Adult Services,Head of Adults,Third Party Payments,470101,Purchase of Care,13-Jul-16,3153746-2322431,"1,949.24",CHURCH VIEW RESIDENTIAL CARE HOME.
Children and Adult Services,Head of Adults,Third Party Payments,471101,Purchase of Care,13-Jul-16,3153746-2322432,"2,026.40",CHURCH VIEW RESIDENTIAL CARE HOME.
Children and Adult Services,Head of Adults,Third Party Payments,470101,Purchase of Care,13-Jul-16,3153746-2322433,"1,949.24",CHURCH VIEW RESIDENTIAL CARE HOME.
